Ref No,Fund Type,Dept,Cost Centre Description    ,Description    ,Creditor Name    ,GL Code Net Amount,Payment date        
2,Revenue,CCHD,Supporting People Programme,Grants to Voluntary Bodies,1625 Independent People,17380, 01-May-2013
3,Revenue,CCHD,Supporting People Programme,Grants to Voluntary Bodies,1625 Independent People,17380, 31-May-2013
4,Revenue,CCHD,Home Care - Elderly - North,Other Small Contracts,3 Trees Community Support Ltd,1607.52, 22-May-2013
5,Revenue,CCHD,Day Care - North,Private & Voluntary Day Care,3 Trees Community Support Ltd,86.68, 22-May-2013
6,Revenue,CCHD,Home Care - Elderly - South,Other Small Contracts,3 Trees Community Support Ltd,95.52, 15-May-2013
7,Revenue,CCHD,Home Care - Elderly - North,Other Small Contracts,3 Trees Community Support Ltd,2360.14, 15-May-2013
8,Revenue,CCHD,Day Care - North,Private & Voluntary Day Care,3 Trees Community Support Ltd,99.5, 15-May-2013
9,Revenue,CCHD,Home Care - Elderly - South,Other Small Contracts,3 Trees Community Support Ltd,95.52, 03-May-2013
10,Revenue,CCHD,Home Care - Elderly - North,Other Small Contracts,3 Trees Community Support Ltd,1560.16, 03-May-2013
11,Revenue,CCHD,Day Care - North,Private & Voluntary Day Care,3 Trees Community Support Ltd,99.5, 03-May-2013
12,Revenue,CCHD,Home Care - Elderly - South,Other Small Contracts,3 Trees Community Support Ltd,95.52, 22-May-2013
13,Revenue,CCHD,Home Care - Elderly - North,Other Small Contracts,3 Trees Community Support Ltd,2260.64, 22-May-2013
14,Revenue,CCHD,Day Care - North,Private & Voluntary Day Care,3 Trees Community Support Ltd,95.52, 22-May-2013
15,Revenue,CCHD,Home Care - Elderly - South,Other Small Contracts,3 Trees Community Support Ltd,95.52, 22-May-2013
16,Revenue,CCHD,Home Care - Elderly - North,Other Small Contracts,3 Trees Community Support Ltd,1990, 22-May-2013
17,Revenue,CCHD,Day Care - North,Private & Voluntary Day Care,3 Trees Community Support Ltd,95.52, 22-May-2013
18,Revenue,CCHD,Supported Living - South,Private & Voluntary Home Care,3 Trees Community Support Ltd,1520.8, 03-May-2013
19,Revenue,CCHD,Supported Living - South,Private & Voluntary Home Care,3 Trees Community Support Ltd,2379.36, 03-May-2013
20,Revenue,CCHD,Purchase of Non-Res Care - South,Private & Voluntary Day Care,3 Trees Community Support Ltd,3918.65, 03-May-2013
21,Revenue,CCHD,Supported Living - South,Private & Voluntary Home Care,3 Trees Community Support Ltd,591.06, 21-May-2013
22,Revenue,CCHD,Supported Living - South,Private & Voluntary Home Care,3 Trees Community Support Ltd,1102.15, 24-May-2013
23,Revenue,CCHD,Purchase of Non-Res Care - North,Private & Voluntary Day Care,3 Trees Community Support Ltd,4652.91, 21-May-2013
24,Revenue,CCHD,Supported Living - South,Private & Voluntary Home Care,3 Trees Community Support Ltd,1827.96, 20-May-2013
25,Revenue,CCHD,Purchase of Non-Res Care - North,Private & Voluntary Day Care,3 Trees Community Support Ltd,1500.39, 20-May-2013
26,Revenue,CCHD,Purchase of Non-Res Care - North,Private & Voluntary Day Care,3 Trees Community Support Ltd,1702.11, 20-May-2013
27,Revenue,CCHD,Supported Living - North,Private & Voluntary Home Care,3 Trees Community Support Ltd,7632.8, 20-May-2013
28,Revenue,CCHD,Purchase of Non-Res Care - North,Private & Voluntary Day Care,3 Trees Community Support Ltd,1216.09, 20-May-2013
29,Revenue,CCHD,Purchase of Non-Res Care - North,Private & Voluntary Day Care,3 Trees Community Support Ltd,5528.89, 20-May-2013
30,Revenue,CCHD,Supported Living - North,Private & Voluntary Home Care,3 Trees Community Support Ltd,8024.87, 22-May-2013
31,Revenue,CCHD,Purchase of Non-Res Care - South,Private & Voluntary Day Care,3 Trees Community Support Ltd,2962.69, 24-May-2013
32,Revenue,CCHD,Bed Purchasing - Under 65s PWLD - South,Residential Homes,5Th Floor Harlech Court,15830.96, 14-May-2013
33,Revenue,CCHD,Bed purchasing - Under 65s PWLD - North,Residential Homes,5Th Floor Harlech Court,13758.48, 14-May-2013
34,Revenue,CCHD,Bed purchasing - Under 65s PWLD - North,Residential Homes,5Th Floor Harlech Court,16352.68, 14-May-2013
35,Revenue,CCHD,Direct Payments - Phys Dis - North,Grants to Voluntary Bodies,A4E Management Limited,22857.93, 30-May-2013
36,Revenue,CCHD,Bed Purchasing - Frenchay Hospital,Nursing Homes,Aabletone Nursing Home,826.76, 14-May-2013
37,Revenue,CCHD,Home Care - Elderly - South,Other Small Contracts,Abacus Care (Western) Ltd,991.2, 10-May-2013
38,Revenue,CCHD,Home Care - Elderly - North,Other Small Contracts,Abacus Care (Western) Ltd,995.25, 10-May-2013
39,Revenue,CCHD,Home Care - Elderly - South,Other Small Contracts,Abacus Care (Western) Ltd,1073.8, 15-May-2013
40,Revenue,CCHD,Home Care - Elderly - North,Other Small Contracts,Abacus Care (Western) Ltd,995.25, 15-May-2013
41,Revenue,CCHD,Home Care - Elderly - South,Other Small Contracts,Abacus Care (Western) Ltd,941.64, 30-May-2013
42,Revenue,CCHD,Home Care - Elderly - North,Other Small Contracts,Abacus Care (Western) Ltd,995.25, 30-May-2013
43,Revenue,CCHD,Home Care - Elderly - South,Other Small Contracts,Abacus Care (Western) Ltd,937.51, 30-May-2013
44,Revenue,CCHD,Home Care - Elderly - North,Other Small Contracts,Abacus Care (Western) Ltd,995.25, 30-May-2013
45,Revenue,CCHD,Bed Purchasing - Frenchay Hospital,Residential Homes,Abbey Grange,1292.4, 14-May-2013
46,Revenue,CCHD,Day Care - North,Private & Voluntary Day Care,About Me Care and Support Limited,515.9, 21-May-2013
47,Revenue,CCHD,Day Care - North,Private & Voluntary Day Care,About Me Care and Support Limited,1465.92, 21-May-2013
48,Revenue,CCHD,Day Care - South,Private & Voluntary Day Care,About Me Care and Support Limited,1202.16, 31-May-2013
49,Revenue,CCHD,Day Care - North,Private & Voluntary Day Care,About Me Care and Support Limited,527.1, 21-May-2013
50,Revenue,CCHD,Day Care - South,Private & Voluntary Day Care,About Me Care and Support Limited,833.94, 31-May-2013
51,Revenue,CCHD,Section 117 Placements MH Younger,Private & Voluntary Day Care,Adolphus Care Ltd,8325.6, 09-May-2013
52,Revenue,CCHD,Section 117 Placements MH Younger,Private & Voluntary Day Care,Adolphus Care Ltd,4087.02, 09-May-2013
53,Revenue,CCHD,Section 117 Placements MH Younger,Private & Voluntary Day Care,Adolphus Care Ltd,4087.02, 28-May-2013
54,Revenue,CCHD,Elderly MH Day Care South,Private & Voluntary Day Care,Age UK South Gloucestershire,516, 10-May-2013
55,Revenue,CCHD,Day Care - South,Private & Voluntary Day Care,Age UK South Gloucestershire,634.84, 10-May-2013
56,Revenue,CCHD,Day Care - South,Private & Voluntary Day Care,Age UK South Gloucestershire,652.56, 10-May-2013
57,Revenue,CCHD,Day Care - North,Private & Voluntary Day Care,Age UK South Gloucestershire,516, 13-May-2013
58,Revenue,CCHD,Day Care - North,Private & Voluntary Day Care,Age UK South Gloucestershire,516, 28-May-2013
59,Revenue,CCHD,Elderly MH Day Care South,Private & Voluntary Day Care,Age UK South Gloucestershire,516, 30-May-2013
60,Revenue,CCHD,Day Care - South,Private & Voluntary Day Care,Age UK South Gloucestershire,634.84, 31-May-2013
61,Revenue,CCHD,Day Care - South,Private & Voluntary Day Care,Age UK South Gloucestershire,1245.7, 31-May-2013
62,Revenue,CCHD,Day Care - South,Private & Voluntary Day Care,Age UK South Gloucestershire,652.56, 31-May-2013
63,Revenue,CCHD,Home Care - Elderly - South,Other Small Contracts,Agincare UK Limited,785.61, 13-May-2013
64,Revenue,CCHD,Home Care - Elderly - North,Other Small Contracts,Agincare UK Limited,73.53, 13-May-2013
65,Revenue,CCHD,Day Care - South,Private & Voluntary Day Care,Agincare UK Limited,131.58, 13-May-2013
66,Revenue,CCHD,Elderly MH Day Care North,Private & Voluntary Day Care,Agincare UK Limited,85.14, 13-May-2013
67,Revenue,CCHD,Home Care - Elderly - South,Other Small Contracts,Agincare UK Limited,832.83, 13-May-2013
68,Revenue,CCHD,Home Care - Elderly - North,Other Small Contracts,Agincare UK Limited,78.2, 13-May-2013
69,Revenue,CCHD,Day Care - South,Private & Voluntary Day Care,Agincare UK Limited,132.94, 13-May-2013
70,Revenue,CCHD,Elderly MH Day Care North,Private & Voluntary Day Care,Agincare UK Limited,117.3, 13-May-2013
71,Revenue,CCHD,Home Care - Elderly - South,Other Small Contracts,Agincare UK Limited,844.56, 13-May-2013
72,Revenue,CCHD,Home Care - Elderly - North,Other Small Contracts,Agincare UK Limited,70.38, 13-May-2013
73,Revenue,CCHD,Day Care - South,Private & Voluntary Day Care,Agincare UK Limited,132.94, 13-May-2013
74,Revenue,CCHD,Elderly MH Day Care North,Private & Voluntary Day Care,Agincare UK Limited,117.3, 13-May-2013
75,Revenue,CCHD,Home Care - Elderly - South,Other Small Contracts,Agincare UK Limited,852.38, 13-May-2013
76,Revenue,CCHD,Home Care - Elderly - North,Other Small Contracts,Agincare UK Limited,74.29, 13-May-2013
77,Revenue,CCHD,Day Care - South,Private & Voluntary Day Care,Agincare UK Limited,132.94, 13-May-2013
78,Revenue,CCHD,Elderly MH Day Care North,Private & Voluntary Day Care,Agincare UK Limited,117.3, 13-May-2013
79,Revenue,CCHD,S117 Placements PCT,Residential Homes,Alexandra House,6875.64, 14-May-2013
80,Revenue,CCHD,Section 117 Placements MH Younger,Residential Homes,Alexandra House,6400.88, 14-May-2013
81,Revenue,CCHD,Bed Purchasing - Elderly S117- North,Private & Voluntary Day Care,Alzheimer`s Society Bristol,577.68, 30-May-2013
82,Revenue,CCHD,Elderly MH Day Care South,Private & Voluntary Day Care,Alzheimer`s Society Bristol,577.68, 30-May-2013
83,Revenue,CCHD,Elderly MH Day Care North,Private & Voluntary Day Care,Alzheimer`s Society Bristol,577.68, 30-May-2013
84,Revenue,CCHD,Elderly MH Day Care North,Private & Voluntary Day Care,Alzheimer`s Society Bristol,866.52, 30-May-2013
85,Revenue,CCHD,Day Care - South,Private & Voluntary Day Care,Alzheimer`s Society Bristol,649.89, 31-May-2013
86,Revenue,CCHD,Bed Purchasing - Frenchay Hospital,Residential Homes,Amber Care Ltd,1305.96, 14-May-2013
87,Revenue,CCHD,Bed Purchasing - Southmead Hospital,Nursing Homes,Ambleside Nusing Ho!,1425.36, 14-May-2013
88,Revenue,CCHD,Bed Purchasing - Frenchay Hospital,Residential Homes,Anbridge Care Home,819.35, 14-May-2013
89,Revenue,CCHD,Bed Purchasing - Elderly - North,Nursing Homes,Annabel House,1401.52, 14-May-2013
90,Revenue,CCHD,Bed purchasing - Under 65s PWLD - North,Residential Homes,Ark Care Homes Ltd,10070.76, 14-May-2013
91,Revenue,CCHD,Bed Purchasing - Elderly - South,Residential Homes,Ashbourne House Care Home Limited,1107.96, 14-May-2013
92,Revenue,CCHD,Bed and Breakfast,Bed & Breakfast,Ashley Guest Houses Limited,840, 03-May-2013
93,Revenue,CCHD,Bed and Breakfast,Bed & Breakfast,Ashley Guest Houses Limited,840, 08-May-2013
94,Revenue,CCHD,Bed and Breakfast,Bed & Breakfast,Ashley Guest Houses Limited,648, 15-May-2013
95,Revenue,CCHD,Bed and Breakfast,Bed & Breakfast,Ashley Guest Houses Limited,1008, 03-May-2013
96,Revenue,CCHD,Bed and Breakfast,Bed & Breakfast,Ashley Guest Houses Limited,504, 22-May-2013
97,Revenue,CCHD,Bed purchasing - Under 65s PWLD - North,Residential Homes,Aspects 2 Limited,6265.24, 14-May-2013
98,Revenue,CCHD,Supporting People Programme,Grants to Voluntary Bodies,Aspects and Milestones Trust,3172.58, 01-May-2013
99,Revenue,CCHD,Supporting People Programme,Grants to Voluntary Bodies,Aspects and Milestones Trust,1590.58, 01-May-2013
100,Revenue,CCHD,Supporting People Programme,Grants to Voluntary Bodies,Aspects and Milestones Trust,1937.33, 01-May-2013
101,Revenue,CCHD,Supporting People Programme,Grants to Voluntary Bodies,Aspects and Milestones Trust,2414.33, 01-May-2013
102,Revenue,CCHD,Supporting People Programme,Grants to Voluntary Bodies,Aspects and Milestones Trust,3172.58, 31-May-2013
103,Revenue,CCHD,Supporting People Programme,Grants to Voluntary Bodies,Aspects and Milestones Trust,1590.58, 31-May-2013
104,Revenue,CCHD,Supporting People Programme,Grants to Voluntary Bodies,Aspects and Milestones Trust,1937.33, 31-May-2013
105,Revenue,CCHD,Supporting People Programme,Grants to Voluntary Bodies,Aspects and Milestones Trust,2414.33, 31-May-2013
106,Revenue,CCHD,Supported Living - South,Private & Voluntary Home Care,Aspects and Milestones Trust,1044.08, 07-May-2013
107,Revenue,CCHD,Supported Living - North,Private & Voluntary Home Care,Aspirations Support Bristol Limited,1275.03, 08-May-2013
108,Revenue,CCHD,Supported Living - North,Private & Voluntary Home Care,Aspirations Support Bristol Limited,4244.29, 08-May-2013
109,Revenue,CCHD,Supported Living - South,Private & Voluntary Home Care,Aspirations Support Bristol Limited,903.51, 15-May-2013
110,Revenue,CCHD,Supported Living - South,Private & Voluntary Home Care,Aspirations Support Bristol Limited,3104.37, 15-May-2013
111,Revenue,CCHD,Supported Living - South,Private & Voluntary Home Care,Aspirations Support Bristol Limited,890.31, 15-May-2013
112,Revenue,CCHD,Supported Living - South,Private & Voluntary Home Care,Aspirations Support Bristol Limited,3016.42, 15-May-2013
113,Revenue,CCHD,Supported Living - North,Private & Voluntary Home Care,Aspirations Support Bristol Limited,1405.78, 09-May-2013
114,Revenue,CCHD,Supported Living - North,Private & Voluntary Home Care,Aspirations Support Bristol Limited,4558.29, 09-May-2013
115,Revenue,CCHD,Supported Living - South,Private & Voluntary Home Care,Aspirations Support Bristol Limited,1070.75, 15-May-2013
116,Revenue,CCHD,Supported Living - South,Private & Voluntary Home Care,Aspirations Support Bristol Limited,3692.25, 15-May-2013
117,Revenue,CCHD,Supported Living - South,Private & Voluntary Home Care,Aspirations Support Bristol Limited,1337.14, 09-May-2013
118,Revenue,CCHD,Supported Living - South,Private & Voluntary Home Care,Aspirations Support Bristol Limited,4435.82, 09-May-2013
119,Revenue,CCHD,Purchase of Non-Res Care - South,Private & Voluntary Day Care,Aspirations Support Bristol Limited,2617.32, 15-May-2013
120,Revenue,CCHD,Supported Living - North,Private & Voluntary Home Care,Aspirations Support Bristol Limited,1854.58, 09-May-2013
121,Revenue,CCHD,Supported Living - North,Private & Voluntary Home Care,Aspirations Support Bristol Limited,6151.39, 09-May-2013
122,Revenue,CCHD,Bed Purchasing - Under 65s PWLD - South,Residential Homes,Autism Specialised Care Homes,5568.12, 14-May-2013
123,Revenue,CCHD,Purchase of Non-Res Care - North,Private & Voluntary Day Care,Avon Autistic Foundation Limited,2871.54, 21-May-2013
124,Revenue,CCHD,Purchase of Non-Res Care - North,Private & Voluntary Day Care,Avon Autistic Foundation Limited,4214.52, 21-May-2013
125,Revenue,CCHD,Learning Difficulties Development Fund,Other Supplies & Services,Avon Valley Railway Company Limited,3500, 17-May-2013
126,Revenue,CCHD,Bed Purchasing - Frenchay Hospital,Nursing Homes,Bayview Nursing & Residential Home,4691.48, 14-May-2013
127,Revenue,CCHD,Bed purchasing - Elderly MH - North,Residential Homes,Beaufort House,1427.44, 14-May-2013
128,Revenue,CCHD,Bed Purchasing - Elderly S117- North,Residential Homes,Beaufort House,2322.08, 14-May-2013
129,Revenue,CCHD,Bed purchasing - Elderly MH - North,Residential Homes,Beaufort House,1735.12, 14-May-2013
130,Revenue,CCHD,Bed Purchasing - Frenchay Hospital,Residential Homes,Beaufort House,1285.32, 14-May-2013
131,Revenue,CCHD,Bed Purchasing - Elderly - North,Residential Homes,Beaufort House,1711.44, 14-May-2013
132,Revenue,CCHD,Bed purchasing - Elderly MH - North,Residential Homes,Beaufort House,878.76, 14-May-2013
133,Revenue,CCHD,Bed purchasing - Elderly MH - North,Residential Homes,Beaufort House,1018.44, 14-May-2013
134,Revenue,CCHD,Bed purchasing - Elderly MH - North,Residential Homes,Beaufort House,1684.12, 14-May-2013
135,Revenue,CCHD,Bed Purchasing - Elderly - North,Residential Homes,Beaufort House,1518.2, 14-May-2013
136,Revenue,CCHD,Bed purchasing - Elderly PWLD - South,Residential Homes,Bedrock Lodge,2930.4, 14-May-2013
137,Revenue,CCHD,Section 117 Placements MH Younger,Residential Homes,Bedrock Lodge,1837.68, 14-May-2013
138,Revenue,CCHD,Bed Purchasing - Frenchay Hospital,Nursing Homes,Beech House,698.16, 14-May-2013
139,Revenue,CCHD,Bed Purchasing - Elderly - North,Nursing Homes,Beech House,693.56, 14-May-2013
140,Revenue,CCHD,Bed Purchasing - Elderly - North,Nursing Homes,Beech House,2095.68, 14-May-2013
141,Revenue,CCHD,Bed Purchasing - Elderly - North,Nursing Homes,Beech House,4409.74, 14-May-2013
142,Revenue,CCHD,Bed Purchasing - Elderly - North,Nursing Homes,Beech House,2327.4, 14-May-2013
143,Revenue,CCHD,Bed Purchasing - Southmead Hospital,Nursing Homes,Beech House,2305.76, 14-May-2013
144,Revenue,CCHD,Bed Purchasing - Elderly - North,Nursing Homes,Beech House,2220.52, 14-May-2013
145,Revenue,CCHD,Bed Purchasing - Elderly - North,Nursing Homes,Blossom Field,1096.6, 14-May-2013
146,Revenue,CCHD,Bed purchasing - Elderly MH - North,Nursing Homes,Blossom Field,1400.04, 14-May-2013
147,Revenue,CCHD,Bed Purchasing - Elderly - South,Nursing Homes,Blossom Field,1884.56, 14-May-2013
148,Revenue,CCHD,Bed Purchasing - Elderly - South,Nursing Homes,Blossom Fields,2984.31, 28-May-2013
149,Revenue,CCHD,Bed Purchasing - Elderly - North,Nursing Homes,Blossom Fields,6823.68, 28-May-2013
150,Revenue,CCHD,South Glos Users in South Glos Homes,Nursing Homes,Blossom Fields,1317.48, 28-May-2013
151,Revenue,CCHD,Bed purchasing - Elderly MH - North,Nursing Homes,Blossom Fields,1542.49, 28-May-2013
152,Revenue,CCHD,Training - Adult Services,Training Expenses,Bob Dawson,1400, 17-May-2013
153,Revenue,CCHD,Bed Purchasing - Frenchay Hospital,Nursing Homes,Bradbury House,1337.3, 14-May-2013
154,Revenue,CCHD,Bed purchasing - Under 65s PWLD - North,Residential Homes,Bradbury House,8632.8, 14-May-2013
155,Revenue,CCHD,Home Care - Elderly - North,Other Small Contracts,Bradley House Home Care Services,1056.71, 15-May-2013
156,Revenue,CCHD,Day Care - North,Private & Voluntary Day Care,Bradley House Home Care Services,101.04, 15-May-2013
157,Revenue,CCHD,Home Care - Elderly - North,Other Small Contracts,Bradley House Home Care Services,1031.45, 15-May-2013
158,Revenue,CCHD,Day Care - North,Private & Voluntary Day Care,Bradley House Home Care Services,101.04, 15-May-2013
159,Revenue,CCHD,Home Care - Elderly - North,Other Small Contracts,Bradley House Home Care Services,917.78, 22-May-2013
160,Revenue,CCHD,Day Care - North,Private & Voluntary Day Care,Bradley House Home Care Services,101.04, 22-May-2013
161,Revenue,CCHD,Alexandra Way,"Provisions (Food, etc)",Brake Bros,516.8, 08-May-2013
162,Revenue,CCHD,Woodleaze,"Provisions (Food, etc)",Brake Bros,763.27, 01-May-2013
163,Revenue,CCHD,Alexandra Way,"Provisions (Food, etc)",Brake Bros,511.83, 08-May-2013
164,Revenue,CCHD,Alexandra Way,"Provisions (Food, etc)",Brake Bros,886.56, 23-May-2013
165,Revenue,CCHD,Bed Purchasing - Elderly - North,Residential Homes,Bridge House Care Home,1246, 14-May-2013
166,Revenue,CCHD,Bed Purchasing - Elderly - North,Residential Homes,Bridge House Care Home,1485.04, 14-May-2013
167,Revenue,CCHD,Bed Purchasing - Elderly - North,Residential Homes,Bridge House Care Home,1465.8, 14-May-2013
168,Revenue,CCHD,Bed Purchasing - Elderly - North,Residential Homes,Bridge House Care Home,1325.32, 14-May-2013
169,Revenue,CCHD,Bed Purchasing - Elderly MH - South,Residential Homes,Brightbow,2067.28, 14-May-2013
170,Revenue,CCHD,MH Purchasing - Younger,Residential Homes,Brightbow,920.8, 14-May-2013
171,Revenue,CCHD,Supported Living - North,Private & Voluntary Home Care,Bristol Houses UK Limited,1296.94, 22-May-2013
172,Revenue,CCHD,Purchase of Non-Res Care - North,Private & Voluntary Day Care,Bristol Houses UK Limited,1042.57, 22-May-2013
173,Revenue,CCHD,Day Care - North,Private & Voluntary Day Care,Bristol Houses UK Limited,1543.22, 22-May-2013
174,Revenue,CCHD,Supported Living - North,Private & Voluntary Home Care,Bristol Houses UK Limited,894.54, 22-May-2013
175,Revenue,CCHD,Day Care - North,Private & Voluntary Day Care,Bristol Houses UK Limited,2383.66, 22-May-2013
176,Revenue,CCHD,Supported Living - North,Private & Voluntary Home Care,Bristol Houses UK Limited,602.8, 22-May-2013
177,Revenue,CCHD,Supported Living - North,Private & Voluntary Home Care,Bristol Houses UK Limited,964.27, 22-May-2013
178,Revenue,CCHD,Younger MH non-res purchasing,Private & Voluntary Day Care,Bristol Houses UK Limited,723.36, 22-May-2013
179,Revenue,CCHD,Supported Living - North,Private & Voluntary Home Care,Bristol Houses UK Limited,602.8, 22-May-2013
180,Revenue,CCHD,Bed and Breakfast,Bed & Breakfast,Bristol Housing & Support Limited,904, 15-May-2013
181,Revenue,CCHD,Bed and Breakfast,Bed & Breakfast,Bristol Housing & Support Limited,952, 15-May-2013
182,Revenue,CCHD,Bed and Breakfast,Bed & Breakfast,Bristol Housing & Support Limited,544, 15-May-2013
183,Revenue,CCHD,Bed and Breakfast,Bed & Breakfast,Bristol Housing & Support Limited,1288, 24-May-2013
184,Revenue,CCHD,Bed and Breakfast,Bed & Breakfast,Bristol Housing & Support Limited,2324, 03-May-2013
185,Revenue,CCHD,Bed and Breakfast,Bed & Breakfast,Bristol Housing & Support Limited,2100, 13-May-2013
186,Revenue,CCHD,Bed and Breakfast,Bed & Breakfast,Bristol Housing & Support Limited,1936, 13-May-2013
187,Revenue,CCHD,Bed and Breakfast,Bed & Breakfast,Bristol Housing & Support Limited,2086, 07-May-2013
188,Revenue,CCHD,Bed and Breakfast,Bed & Breakfast,Bristol Housing & Support Limited,1836, 13-May-2013
189,Revenue,CCHD,Bed and Breakfast,Bed & Breakfast,Bristol Housing & Support Limited,1616, 22-May-2013
190,Revenue,CCHD,Bed and Breakfast,Bed & Breakfast,Bristol Housing & Support Limited,1568, 30-May-2013
191,Revenue,CCHD,Alexandra Way,Water Charges,Bristol Wessex Billing Services Limited,4881.94, 31-May-2013
192,Revenue,CCHD,Supporting People Programme,Grants to Voluntary Bodies,Bromford Housing Group,14050.25, 01-May-2013
193,Revenue,CCHD,Supporting People Programme,Grants to Voluntary Bodies,Bromford Housing Group,14050.25, 31-May-2013
194,Revenue,CCHD,Bed Purchasing - Elderly - North,Residential Homes,Brook Lane Residential Home,910.08, 14-May-2013
195,Revenue,CCHD,Home Care - Elderly - North,Private & Voluntary Home Care,Brunelcare,15809.01, 07-May-2013
196,Revenue,CCHD,Home Care - Elderly - North,Private & Voluntary Home Care,Brunelcare,15809.01, 13-May-2013
197,Revenue,CCHD,Home Care - Elderly - North,Private & Voluntary Home Care,Brunelcare,15809.01, 20-May-2013
198,Revenue,CCHD,Home Care - Elderly - North,Private & Voluntary Home Care,Brunelcare,15809.01, 28-May-2013
199,Revenue,CCHD,Home Care - Elderly - South,Other Small Contracts,Brunelcare,3017.88, 30-May-2013
200,Revenue,CCHD,Home Care - Elderly - North,Other Small Contracts,Brunelcare,4031.92, 30-May-2013
201,Revenue,CCHD,Day Care - South,Private & Voluntary Day Care,Brunelcare,137.36, 30-May-2013
202,Revenue,CCHD,Day Care - North,Private & Voluntary Day Care,Brunelcare,80.8, 30-May-2013
203,Revenue,CCHD,Home care - Elderly MH - North,Other Small Contracts,Brunelcare,145.44, 30-May-2013
204,Revenue,CCHD,Home Care - Elderly - South,Other Small Contracts,Brunelcare,3027.36, 30-May-2013
205,Revenue,CCHD,Home Care - Elderly - North,Other Small Contracts,Brunelcare,4036.96, 30-May-2013
206,Revenue,CCHD,Day Care - South,Private & Voluntary Day Care,Brunelcare,142.8, 30-May-2013
207,Revenue,CCHD,Day Care - North,Private & Voluntary Day Care,Brunelcare,32.64, 30-May-2013
208,Revenue,CCHD,Home care - Elderly MH - North,Other Small Contracts,Brunelcare,146.88, 30-May-2013
209,Revenue,CCHD,Home Care - Elderly - South,Other Small Contracts,Brunelcare,2778.48, 30-May-2013
210,Revenue,CCHD,Home Care - Elderly - North,Other Small Contracts,Brunelcare,4082, 30-May-2013
211,Revenue,CCHD,Day Care - South,Private & Voluntary Day Care,Brunelcare,138.72, 30-May-2013
212,Revenue,CCHD,Day Care - North,Private & Voluntary Day Care,Brunelcare,36.72, 30-May-2013
213,Revenue,CCHD,Home care - Elderly MH - North,Other Small Contracts,Brunelcare,155.04, 30-May-2013
214,Revenue,CCHD,Home Care - Elderly - South,Other Small Contracts,Brunelcare,2990.64, 30-May-2013
215,Revenue,CCHD,Home Care - Elderly - North,Other Small Contracts,Brunelcare,4163.76, 30-May-2013
216,Revenue,CCHD,Day Care - South,Private & Voluntary Day Care,Brunelcare,73.44, 30-May-2013
217,Revenue,CCHD,Day Care - North,Private & Voluntary Day Care,Brunelcare,77.52, 30-May-2013
218,Revenue,CCHD,Home care - Elderly MH - North,Other Small Contracts,Brunelcare,155.04, 30-May-2013
219,Revenue,CCHD,Information Systems - Software,Computer Equipment - Purchase,BT Global Services Solutions,978.04, 15-May-2013
220,Revenue,CCHD,Woodleaze,Cleaning & Domestic Services,Bunzl Cleaning & Hygiene Supplies,631.06, 21-May-2013
221,Revenue,CCHD,Bed Purchasing - Frenchay Hospital,Nursing Homes,BUPA Care Service,1302, 10-May-2013
222,Revenue,CCHD,Bed purchasing - Phys Dis - North,Nursing Homes,Bupa Care Services  Bridge House,5851.68, 14-May-2013
223,Revenue,CCHD,South Glos Users in all other LA Homes,Nursing Homes,Bupa Care Services  Bridge House,604.4, 14-May-2013
224,Revenue,CCHD,Bed purchasing - Elderly MH - North,Residential Homes,Bupa Care Services  Bridge House,1900, 14-May-2013
225,Revenue,CCHD,Supported Living - North,Private & Voluntary Home Care,Camphill Communities Thornbury Limited,1736.4, 03-May-2013
226,Revenue,CCHD,Supported Living - North,Private & Voluntary Home Care,Camphill Communities Thornbury Limited,2475, 01-May-2013
227,Revenue,CCHD,Supported Living - North,Private & Voluntary Home Care,Camphill Communities Thornbury Limited,2572.8, 01-May-2013
228,Revenue,CCHD,Supported Living - North,Private & Voluntary Home Care,Camphill Communities Thornbury Limited,1804.92, 03-May-2013
229,Revenue,CCHD,Supported Living - North,Private & Voluntary Home Care,Camphill Communities Thornbury Limited,2269.12, 08-May-2013
230,Revenue,CCHD,Supported Living - North,Private & Voluntary Home Care,Camphill Communities Thornbury Limited,2030.28, 08-May-2013
231,Revenue,CCHD,Supported Living - North,Private & Voluntary Home Care,Camphill Communities Thornbury Limited,1997.32, 08-May-2013
232,Revenue,CCHD,Supported Living - North,Private & Voluntary Home Care,Camphill Communities Thornbury Limited,2117.71, 15-May-2013
233,Revenue,CCHD,Supported Living - North,Private & Voluntary Home Care,Camphill Communities Thornbury Limited,2002.11, 16-May-2013
234,Revenue,CCHD,Supported Living - North,Private & Voluntary Home Care,Camphill Communities Thornbury Limited,2221.36, 16-May-2013
235,Revenue,CCHD,Supported Living - North,Private & Voluntary Home Care,Camphill Communities Thornbury Limited,1780.18, 16-May-2013
236,Revenue,CCHD,Supported Living - North,Private & Voluntary Home Care,Camphill Communities Thornbury Limited,2091.81, 16-May-2013
237,Revenue,CCHD,Supported Living - North,Private & Voluntary Home Care,Camphill Communities Thornbury Limited,2609.58, 23-May-2013
238,Revenue,CCHD,Supported Living - North,Private & Voluntary Home Care,Camphill Communities Thornbury Limited,2780.52, 23-May-2013
239,Revenue,CCHD,Supported Living - North,Private & Voluntary Home Care,Camphill Communities Thornbury Limited,1748.91, 29-May-2013
240,Revenue,CCHD,Supported Living - North,Private & Voluntary Home Care,Camphill Communities Thornbury Limited,2492.82, 29-May-2013
241,Revenue,CCHD,Supported Living - North,Private & Voluntary Home Care,Camphill Communities Thornbury Limited,2591.31, 29-May-2013
242,Revenue,CCHD,Supported Living - North,Private & Voluntary Home Care,Camphill Communities Thornbury Limited,1817.91, 31-May-2013
243,Revenue,CCHD,Bed purchasing - Under 65s PWLD - North,Residential Homes,Camphill Devon Community,3215, 14-May-2013
244,Revenue,CCHD,Home Care - Elderly - South,Other Small Contracts,Care 1st Homecare,2381.4, 13-May-2013
245,Revenue,CCHD,Home Care - Elderly - North,Other Small Contracts,Care 1st Homecare,5540.19, 13-May-2013
246,Revenue,CCHD,Day Care - South,Private & Voluntary Day Care,Care 1st Homecare,113.4, 13-May-2013
247,Revenue,CCHD,Day Care - North,Private & Voluntary Day Care,Care 1st Homecare,48.6, 13-May-2013
248,Revenue,CCHD,Home Care - Elderly - South,Other Small Contracts,Care 1st Homecare,2442.15, 13-May-2013
249,Revenue,CCHD,Home Care - Elderly - North,Other Small Contracts,Care 1st Homecare,5503.74, 13-May-2013
250,Revenue,CCHD,Day Care - South,Private & Voluntary Day Care,Care 1st Homecare,113.4, 13-May-2013
251,Revenue,CCHD,Day Care - North,Private & Voluntary Day Care,Care 1st Homecare,52.65, 13-May-2013
252,Revenue,CCHD,Home Care - Elderly - South,Other Small Contracts,Care 1st Homecare,2486.72, 13-May-2013
253,Revenue,CCHD,Home Care - Elderly - North,Other Small Contracts,Care 1st Homecare,5760.8, 13-May-2013
254,Revenue,CCHD,Day Care - South,Private & Voluntary Day Care,Care 1st Homecare,110.43, 13-May-2013
255,Revenue,CCHD,Day Care - North,Private & Voluntary Day Care,Care 1st Homecare,49.08, 13-May-2013
256,Revenue,CCHD,Home Care - Elderly - South,Other Small Contracts,Care 1st Homecare,2151.34, 13-May-2013
257,Revenue,CCHD,Home Care - Elderly - North,Other Small Contracts,Care 1st Homecare,5494.95, 13-May-2013
258,Revenue,CCHD,Day Care - South,Private & Voluntary Day Care,Care 1st Homecare,114.52, 13-May-2013
259,Revenue,CCHD,Day Care - North,Private & Voluntary Day Care,Care 1st Homecare,44.99, 13-May-2013
260,Revenue,CCHD,Bed Purchasing - PWLD S 117 Placements,Residential Homes,Care Community Ltd,7536.4, 14-May-2013
261,Revenue,CCHD,Supported Living - North,Private & Voluntary Home Care,Care Horizons Limited,5373.79, 23-May-2013
262,Revenue,CCHD,Supported Living - North,Private & Voluntary Home Care,Care Horizons Limited,5400.12, 16-May-2013
263,Revenue,CCHD,Purchase of Non-Res Care - North,Private & Voluntary Day Care,Care Horizons Limited,1691.95, 16-May-2013
264,Revenue,CCHD,Purchase of Non-Res Care - North,Private & Voluntary Day Care,Care Horizons Limited,1253.74, 17-May-2013
265,Revenue,CCHD,Purchase of Non-Res Care - North,Private & Voluntary Day Care,Care Horizons Limited,1173.23, 16-May-2013
266,Revenue,CCHD,Purchase of Non-Res Care - North,Private & Voluntary Day Care,Care Horizons Limited,1420.8, 16-May-2013
267,Revenue,CCHD,Supported Living - South,Private & Voluntary Home Care,Care Horizons Limited,1798.48, 17-May-2013
268,Revenue,CCHD,Home Care - Elderly - North,Other Small Contracts,Care Horizons Limited,2981.12, 03-May-2013
269,Revenue,CCHD,Day Care - South,Private & Voluntary Day Care,Care Horizons Limited,363.54, 03-May-2013
270,Revenue,CCHD,Home Care - Elderly - North,Other Small Contracts,Care Horizons Limited,3011.96, 30-May-2013
271,Revenue,CCHD,Day Care - South,Private & Voluntary Day Care,Care Horizons Limited,363.54, 30-May-2013
272,Revenue,CCHD,Home Care - Elderly - North,Other Small Contracts,Care Horizons Limited,2973.9, 22-May-2013
273,Revenue,CCHD,Day Care - South,Private & Voluntary Day Care,Care Horizons Limited,359.16, 22-May-2013
274,Revenue,CCHD,Home Care - Elderly - North,Other Small Contracts,Care Horizons Limited,2910.84, 30-May-2013
275,Revenue,CCHD,Day Care - South,Private & Voluntary Day Care,Care Horizons Limited,376.68, 30-May-2013
276,Revenue,CCHD,Training - Adult Services,Training Expenses,Care Learning Limited,650, 13-May-2013
277,Revenue,CCHD,Electronic Home Care Monitoring,Other Supplies & Services,Care Monitoring 2000 Limited,5429.41, 17-May-2013
278,Revenue,CCHD,Home Care - General,Other Supplies & Services,Care Monitoring 2000 Limited,7042.4, 17-May-2013
279,Revenue,CCHD,Electronic Home Care Monitoring,Other Supplies & Services,Care Monitoring 2000 Limited,12700.64, 17-May-2013
280,Revenue,CCHD,Home Care - Elderly - South,Other Small Contracts,Care UK,5836.32, 30-May-2013
281,Revenue,CCHD,Home Care - Elderly - North,Other Small Contracts,Care UK,2512.86, 30-May-2013
282,Revenue,CCHD,Day Care - South,Private & Voluntary Day Care,Care UK,289.5, 30-May-2013
283,Revenue,CCHD,Day Care - North,Private & Voluntary Day Care,Care UK,660.06, 30-May-2013
284,Revenue,CCHD,Home care - Elderly MH - North,Other Small Contracts,Care UK,586.72, 30-May-2013
285,Revenue,CCHD,Elderly MH Day Care North,Private & Voluntary Day Care,Care UK,123.52, 30-May-2013
286,Revenue,CCHD,Home Care - Elderly - South,Other Small Contracts,Care UK,6704.1, 15-May-2013
287,Revenue,CCHD,Home Care - Elderly - North,Other Small Contracts,Care UK,2574.68, 15-May-2013
288,Revenue,CCHD,Day Care - South,Private & Voluntary Day Care,Care UK,267.4, 15-May-2013
289,Revenue,CCHD,Day Care - North,Private & Voluntary Day Care,Care UK,676.14, 15-May-2013
290,Revenue,CCHD,Home care - Elderly MH - North,Other Small Contracts,Care UK,573, 15-May-2013
291,Revenue,CCHD,Elderly MH Day Care North,Private & Voluntary Day Care,Care UK,91.68, 15-May-2013
292,Revenue,CCHD,Home Care - Elderly - South,Other Small Contracts,Care UK,7183.46, 15-May-2013
293,Revenue,CCHD,Home Care - Elderly - North,Other Small Contracts,Care UK,2563.04, 15-May-2013
294,Revenue,CCHD,Day Care - South,Private & Voluntary Day Care,Care UK,304.94, 15-May-2013
295,Revenue,CCHD,Day Care - North,Private & Voluntary Day Care,Care UK,694.8, 15-May-2013
296,Revenue,CCHD,Home care - Elderly MH - North,Other Small Contracts,Care UK,582.86, 15-May-2013
297,Revenue,CCHD,Elderly MH Day Care North,Private & Voluntary Day Care,Care UK,150.54, 15-May-2013
298,Revenue,CCHD,Home Care - Elderly - South,Other Small Contracts,Care UK,6654.64, 15-May-2013
299,Revenue,CCHD,Home Care - Elderly - North,Other Small Contracts,Care UK,2493.56, 15-May-2013
300,Revenue,CCHD,Day Care - South,Private & Voluntary Day Care,Care UK,304.94, 15-May-2013
301,Revenue,CCHD,Day Care - North,Private & Voluntary Day Care,Care UK,683.22, 15-May-2013
302,Revenue,CCHD,Home care - Elderly MH - North,Other Small Contracts,Care UK,586.72, 15-May-2013
303,Revenue,CCHD,Elderly MH Day Care North,Private & Voluntary Day Care,Care UK,142.82, 15-May-2013
304,Revenue,CCHD,Home Care - Elderly - South,Other Small Contracts,Care UK,6017.74, 30-May-2013
305,Revenue,CCHD,Home Care - Elderly - North,Other Small Contracts,Care UK,2609.36, 30-May-2013
306,Revenue,CCHD,Day Care - South,Private & Voluntary Day Care,Care UK,308.8, 30-May-2013
307,Revenue,CCHD,Day Care - North,Private & Voluntary Day Care,Care UK,679.36, 30-May-2013
308,Revenue,CCHD,Home care - Elderly MH - North,Other Small Contracts,Care UK,579, 30-May-2013
309,Revenue,CCHD,Elderly MH Day Care North,Private & Voluntary Day Care,Care UK,138.96, 30-May-2013
310,Revenue,CCHD,Home Care - Elderly - North,Other Small Contracts,Carers R Us (Bristol) Limited,575.14, 03-May-2013
311,Revenue,CCHD,Home Care - Elderly - North,Other Small Contracts,Carers R Us (Bristol) Limited,579, 03-May-2013
312,Revenue,CCHD,Home Care - Elderly - North,Other Small Contracts,Carers R Us (Bristol) Limited,594.44, 15-May-2013
313,Revenue,CCHD,Home Care - Elderly - North,Other Small Contracts,Carers R Us (Bristol) Limited,575.14, 30-May-2013
314,Revenue,CCHD,Home Care - Elderly - North,Other Small Contracts,Carers R Us (Bristol) Limited,579, 30-May-2013
315,Revenue,CCHD,Home Care - Elderly - South,Other Small Contracts,Carewatch (Bristol),960.5, 30-May-2013
316,Revenue,CCHD,Home Care - Elderly - North,Other Small Contracts,Carewatch (Bristol),1653.25, 30-May-2013
317,Revenue,CCHD,Home Care - Elderly - South,Other Small Contracts,Carewatch (Bristol),998.75, 30-May-2013
318,Revenue,CCHD,Home Care - Elderly - North,Other Small Contracts,Carewatch (Bristol),1581, 30-May-2013
319,Revenue,CCHD,Home Care - Elderly - South,Other Small Contracts,Carewatch (Bristol),998.75, 30-May-2013
320,Revenue,CCHD,Home Care - Elderly - North,Other Small Contracts,Carewatch (Bristol),1547, 30-May-2013
321,Revenue,CCHD,Home Care - Elderly - South,Other Small Contracts,Carewatch (Bristol),1058.25, 30-May-2013
322,Revenue,CCHD,Home Care - Elderly - North,Other Small Contracts,Carewatch (Bristol),1491.75, 30-May-2013
323,Revenue,CCHD,Home Care - Elderly - South,Other Small Contracts,Carewatch (Bristol),1003, 30-May-2013
324,Revenue,CCHD,Home Care - Elderly - North,Other Small Contracts,Carewatch (Bristol),1542.75, 30-May-2013
325,Revenue,CCHD,Home Care - Elderly - South,Other Small Contracts,Cash Friday at Lloyds TSB,101.4, 22-May-2013
326,Revenue,CCHD,Home Care - Elderly - North,Other Small Contracts,Cash Friday at Lloyds TSB,904.8, 22-May-2013
327,Revenue,CCHD,Home Care - Elderly - South,Other Small Contracts,Cash Friday at Lloyds TSB,70.2, 30-May-2013
328,Revenue,CCHD,Home Care - Elderly - North,Other Small Contracts,Cash Friday at Lloyds TSB,900.9, 30-May-2013
329,Revenue,CCHD,Home Care - Elderly - South,Other Small Contracts,Cash Friday at Lloyds TSB,101.4, 23-May-2013
330,Revenue,CCHD,Home Care - Elderly - North,Other Small Contracts,Cash Friday at Lloyds TSB,1002.3, 23-May-2013
331,Revenue,CCHD,Home Care - Elderly - South,Other Small Contracts,Cash Friday at Lloyds TSB,97.5, 30-May-2013
332,Revenue,CCHD,Home Care - Elderly - North,Other Small Contracts,Cash Friday at Lloyds TSB,916.5, 30-May-2013
333,Revenue,CCHD,Home Care - Elderly - South,Other Small Contracts,Cash Friday at Lloyds TSB,97.5, 30-May-2013
334,Revenue,CCHD,Home Care - Elderly - North,Other Small Contracts,Cash Friday at Lloyds TSB,900.9, 30-May-2013
335,Revenue,CCHD,Bed Purchasing - Frenchay Hospital,Residential Homes,Centenary Care Homes Ltd,1246, 14-May-2013
336,Revenue,CCHD,Home Energy Conservation Act Activities,Other Supplies & Services,Centre For Sustainable Energy,6260, 22-May-2013
337,Revenue,CCHD,Bed Purchasing - Elderly - South,Residential Homes,Cepen Lodge Care Home,2176.28, 14-May-2013
338,Revenue,CCHD,Bed Purchasing - Southmead Hospital,Residential Homes,Charlton House Residential Home,1385.36, 14-May-2013
339,Revenue,CCHD,Home Care - Elderly - South,Other Small Contracts,Cherish Able Care Limited,4573.2, 02-May-2013
340,Revenue,CCHD,Home Care - Elderly - South,Other Small Contracts,Cherish Able Care Limited,4812.16, 03-May-2013
341,Revenue,CCHD,Home Care - Elderly - South,Other Small Contracts,Cherish Able Care Limited,4902.8, 10-May-2013
342,Revenue,CCHD,Home Care - Elderly - South,Other Small Contracts,Cherish Able Care Limited,4908.8, 17-May-2013
343,Revenue,CCHD,Home Care - Elderly - South,Other Small Contracts,Cherish Able Care Limited,4983.68, 31-May-2013
344,Revenue,CCHD,Home Care - Elderly - South,Other Small Contracts,Cherish Able Care Limited,4748.64, 31-May-2013
345,Revenue,CCHD,Bed purchasing -S28A  Under 65 - North,Residential Homes,Chescombe Lodge,8569.72, 14-May-2013
346,Revenue,CCHD,Bed Purchasing - Under 65s PWLD - South,Residential Homes,Chosen Court,6910.16, 14-May-2013
347,Revenue,CCHD,Bed Purchasing - PWLD S 117 Placements,Residential Homes,Chosen Court,8801.84, 14-May-2013
348,Revenue,CCHD,Bed Purchasing - Under 65s PWLD - South,Residential Homes,Chosen Court,5247.98, 14-May-2013
349,Revenue,CCHD,Bed purchasing - Under 65s PWLD - North,Residential Homes,Church House,10354.44, 14-May-2013
350,Revenue,CCHD,Bed purchasing - Under 65s PWLD - North,Residential Homes,Church House,5813.24, 14-May-2013
351,Revenue,CCHD,Supported Living - South,Private & Voluntary Home Care,Cintre Community,540.48, 03-May-2013
352,Revenue,CCHD,Bed Purchasing - Elderly - South,Residential Homes,Cleeve Lodge,1600.84, 14-May-2013
353,Revenue,CCHD,Bed Purchasing - Elderly - North,Residential Homes,Cleeve Lodge,1007.64, 14-May-2013
354,Revenue,CCHD,Bed Purchasing - Southmead Hospital,Residential Homes,Cleeve Lodge,1435.24, 14-May-2013
355,Revenue,CCHD,Bed Purchasing - Elderly - South,Residential Homes,Cleeve Lodge,612.86, 14-May-2013
356,Revenue,CCHD,Bed Purchasing - Elderly - North,Residential Homes,Cleeve Lodge,1105.92, 14-May-2013
357,Revenue,CCHD,Bed Purchasing - Frenchay Hospital,Residential Homes,Cleeve Lodge,1836.08, 14-May-2013
358,Revenue,CCHD,Bed Purchasing - Frenchay Hospital,Residential Homes,Cleeve Lodge,1377.06, 14-May-2013
359,Revenue,CCHD,Bed Purchasing - Elderly - South,Residential Homes,Cleeve Lodge,1775.52, 14-May-2013
360,Revenue,CCHD,Bed Purchasing - Elderly - South,Residential Homes,Cleeve Lodge,1764.48, 14-May-2013
361,Revenue,CCHD,Bed Purchasing - Elderly - South,Residential Homes,Cleeve Lodge,2258.44, 14-May-2013
362,Revenue,CCHD,Bed Purchasing - Elderly - South,Residential Homes,Cleeve Lodge,1779.92, 14-May-2013
363,Revenue,CCHD,Bed Purchasing - Elderly - South,Residential Homes,Cleeve Lodge,1481.12, 14-May-2013
364,Revenue,CCHD,Bed Purchasing - Elderly - South,Residential Homes,Collingwood Residential Home,1298.48, 14-May-2013
365,Revenue,CCHD,Bed Purchasing - Elderly - South,Residential Homes,Collingwood Residential Home,1403.68, 14-May-2013
366,Revenue,CCHD,Bed Purchasing - Elderly - South,Residential Homes,Collingwood Residential Home,1426.32, 14-May-2013
367,Revenue,CCHD,Bed Purchasing - Elderly - South,Residential Homes,Collingwood Residential Home,1907.43, 14-May-2013
368,Revenue,CCHD,Bed Purchasing - Elderly - South,Residential Homes,Collingwood Residential Home,1334.28, 14-May-2013
369,Revenue,CCHD,Bed Purchasing - Elderly MH - South,Residential Homes,Collingwood Residential Home,1306.28, 14-May-2013
370,Revenue,CCHD,Bed Purchasing - Elderly - South,Residential Homes,Collingwood Residential Home,1156.52, 14-May-2013
371,Revenue,CCHD,Bed Purchasing - Elderly - South,Residential Homes,Collingwood Residential Home,1268.04, 14-May-2013
372,Revenue,CCHD,Bed Purchasing - Elderly - South,Residential Homes,Collingwood Residential Home,1405.32, 14-May-2013
373,Revenue,CCHD,Bed and Breakfast,Bed & Breakfast,Connolly & Callaghan Limited,546, 01-May-2013
374,Revenue,CCHD,Bed and Breakfast,Bed & Breakfast,Connolly & Callaghan Limited,441, 01-May-2013
375,Revenue,CCHD,Bed and Breakfast,Bed & Breakfast,Connolly & Callaghan Limited,441, 01-May-2013
376,Revenue,CCHD,Bed and Breakfast,Bed & Breakfast,Connolly & Callaghan Limited,441, 01-May-2013
377,Revenue,CCHD,Bed and Breakfast,Bed & Breakfast,Connolly & Callaghan Limited,441, 01-May-2013
378,Revenue,CCHD,Bed and Breakfast,Bed & Breakfast,Connolly & Callaghan Limited,441, 01-May-2013
379,Revenue,CCHD,Bed and Breakfast,Bed & Breakfast,Connolly & Callaghan Limited,441, 01-May-2013
380,Revenue,CCHD,Bed and Breakfast,Bed & Breakfast,Connolly & Callaghan Limited,441, 01-May-2013
381,Revenue,CCHD,Bed and Breakfast,Bed & Breakfast,Connolly & Callaghan Limited,441, 01-May-2013
382,Revenue,CCHD,Bed and Breakfast,Bed & Breakfast,Connolly & Callaghan Limited,441, 01-May-2013
383,Revenue,CCHD,Bed and Breakfast,Bed & Breakfast,Connolly & Callaghan Limited,441, 01-May-2013
384,Revenue,CCHD,Bed and Breakfast,Bed & Breakfast,Connolly & Callaghan Limited,441, 01-May-2013
385,Revenue,CCHD,Bed and Breakfast,Bed & Breakfast,Connolly & Callaghan Limited,441, 01-May-2013
386,Revenue,CCHD,Bed and Breakfast,Bed & Breakfast,Connolly & Callaghan Limited,441, 01-May-2013
387,Revenue,CCHD,Bed and Breakfast,Bed & Breakfast,Connolly & Callaghan Limited,441, 01-May-2013
388,Revenue,CCHD,Bed and Breakfast,Bed & Breakfast,Connolly & Callaghan Limited,441, 01-May-2013
389,Revenue,CCHD,Bed and Breakfast,Bed & Breakfast,Connolly & Callaghan Limited,651, 01-May-2013
390,Revenue,CCHD,Bed and Breakfast,Bed & Breakfast,Connolly & Callaghan Limited,441, 01-May-2013
391,Revenue,CCHD,Bed and Breakfast,Bed & Breakfast,Connolly & Callaghan Limited,441, 01-May-2013
392,Revenue,CCHD,Bed and Breakfast,Bed & Breakfast,Connolly & Callaghan Limited,441, 01-May-2013
393,Revenue,CCHD,Bed and Breakfast,Bed & Breakfast,Connolly & Callaghan Limited,441, 01-May-2013
394,Revenue,CCHD,Bed and Breakfast,Bed & Breakfast,Connolly & Callaghan Limited,651, 01-May-2013
395,Revenue,CCHD,Bed and Breakfast,Bed & Breakfast,Connolly & Callaghan Limited,441, 01-May-2013
396,Revenue,CCHD,Bed and Breakfast,Bed & Breakfast,Connolly & Callaghan Limited,441, 01-May-2013
397,Revenue,CCHD,Bed and Breakfast,Bed & Breakfast,Connolly & Callaghan Limited,441, 01-May-2013
398,Revenue,CCHD,Bed and Breakfast,Bed & Breakfast,Connolly & Callaghan Limited,441, 01-May-2013
399,Revenue,CCHD,Bed and Breakfast,Bed & Breakfast,Connolly & Callaghan Limited,651, 01-May-2013
400,Revenue,CCHD,Bed and Breakfast,Bed & Breakfast,Connolly & Callaghan Limited,441, 03-May-2013
401,Revenue,CCHD,Bed and Breakfast,Bed & Breakfast,Connolly & Callaghan Limited,441, 03-May-2013
402,Revenue,CCHD,Bed and Breakfast,Bed & Breakfast,Connolly & Callaghan Limited,441, 03-May-2013
403,Revenue,CCHD,Bed and Breakfast,Bed & Breakfast,Connolly & Callaghan Limited,441, 08-May-2013
404,Revenue,CCHD,Bed and Breakfast,Bed & Breakfast,Connolly & Callaghan Limited,441, 08-May-2013
405,Revenue,CCHD,Bed and Breakfast,Bed & Breakfast,Connolly & Callaghan Limited,441, 13-May-2013
406,Revenue,CCHD,Bed and Breakfast,Bed & Breakfast,Connolly & Callaghan Limited,441, 15-May-2013
407,Revenue,CCHD,Bed and Breakfast,Bed & Breakfast,Connolly & Callaghan Limited,441, 15-May-2013
408,Revenue,CCHD,Bed and Breakfast,Bed & Breakfast,Connolly & Callaghan Limited,441, 08-May-2013
409,Revenue,CCHD,Bed and Breakfast,Bed & Breakfast,Connolly & Callaghan Limited,441, 08-May-2013
410,Revenue,CCHD,Bed and Breakfast,Bed & Breakfast,Connolly & Callaghan Limited,476, 15-May-2013
411,Revenue,CCHD,Bed and Breakfast,Bed & Breakfast,Connolly & Callaghan Limited,546, 15-May-2013
412,Revenue,CCHD,Bed and Breakfast,Bed & Breakfast,Connolly & Callaghan Limited,511, 08-May-2013
413,Revenue,CCHD,Bed and Breakfast,Bed & Breakfast,Connolly & Callaghan Limited,616, 15-May-2013
414,Revenue,CCHD,Bed and Breakfast,Bed & Breakfast,Connolly & Callaghan Limited,441, 10-May-2013
415,Revenue,CCHD,Bed and Breakfast,Bed & Breakfast,Connolly & Callaghan Limited,441, 10-May-2013
416,Revenue,CCHD,Bed and Breakfast,Bed & Breakfast,Connolly & Callaghan Limited,441, 15-May-2013
417,Revenue,CCHD,Bed and Breakfast,Bed & Breakfast,Connolly & Callaghan Limited,441, 14-May-2013
418,Revenue,CCHD,Bed and Breakfast,Bed & Breakfast,Connolly & Callaghan Limited,441, 10-May-2013
419,Revenue,CCHD,Bed and Breakfast,Bed & Breakfast,Connolly & Callaghan Limited,441, 10-May-2013
420,Revenue,CCHD,Bed and Breakfast,Bed & Breakfast,Connolly & Callaghan Limited,441, 10-May-2013
421,Revenue,CCHD,Bed and Breakfast,Bed & Breakfast,Connolly & Callaghan Limited,476, 15-May-2013
422,Revenue,CCHD,Bed and Breakfast,Bed & Breakfast,Connolly & Callaghan Limited,546, 15-May-2013
423,Revenue,CCHD,Bed and Breakfast,Bed & Breakfast,Connolly & Callaghan Limited,511, 10-May-2013
424,Revenue,CCHD,Bed and Breakfast,Bed & Breakfast,Connolly & Callaghan Limited,616, 15-May-2013
425,Revenue,CCHD,Bed and Breakfast,Bed & Breakfast,Connolly & Callaghan Limited,511, 13-May-2013
426,Revenue,CCHD,Bed and Breakfast,Bed & Breakfast,Connolly & Callaghan Limited,441, 22-May-2013
427,Revenue,CCHD,Bed and Breakfast,Bed & Breakfast,Connolly & Callaghan Limited,441, 22-May-2013
428,Revenue,CCHD,Bed and Breakfast,Bed & Breakfast,Connolly & Callaghan Limited,441, 22-May-2013
429,Revenue,CCHD,Bed and Breakfast,Bed & Breakfast,Connolly & Callaghan Limited,441, 22-May-2013
430,Revenue,CCHD,Bed and Breakfast,Bed & Breakfast,Connolly & Callaghan Limited,441, 22-May-2013
431,Revenue,CCHD,Bed and Breakfast,Bed & Breakfast,Connolly & Callaghan Limited,511, 22-May-2013
432,Revenue,CCHD,Bed and Breakfast,Bed & Breakfast,Connolly & Callaghan Limited,441, 22-May-2013
433,Revenue,CCHD,Bed and Breakfast,Bed & Breakfast,Connolly & Callaghan Limited,441, 22-May-2013
434,Revenue,CCHD,Bed and Breakfast,Bed & Breakfast,Connolly & Callaghan Limited,441, 22-May-2013
435,Revenue,CCHD,Bed and Breakfast,Bed & Breakfast,Connolly & Callaghan Limited,441, 22-May-2013
436,Revenue,CCHD,Bed and Breakfast,Bed & Breakfast,Connolly & Callaghan Limited,441, 22-May-2013
437,Revenue,CCHD,Bed Purchasing - Frenchay Hospital,Residential Homes,Coombs Wood House,962.96, 14-May-2013
438,Revenue,CCHD,Bed purchasing -S28A  Under 65 - North,Residential Homes,Cream Ii Ltd  Longrun House,7924.8, 14-May-2013
439,Revenue,CCHD,Bed Purchasing - Under 65s PWLD - South,Residential Homes,Cream Ii Ltd  Longrun House,5546.44, 14-May-2013
440,Revenue,CCHD,Bed purchasing -S28A  Under 65 - North,Residential Homes,Creedy Court,9157.32, 14-May-2013
441,Revenue,CCHD,Bed Purchasing - S28A - Over 65- North,Residential Homes,Creedy Court,7616.76, 14-May-2013
442,Revenue,CCHD,Tenancy Start Up Scheme,Other Supplies & Services,D A Lettings,1590, 22-May-2013
443,Revenue,CCHD,Brokerage and Information Service,Grants to Voluntary Bodies,D H I,9210.08, 28-May-2013
444,Revenue,CCHD,Purchase of Non-Res Care - South,Private & Voluntary Day Care,Daneswood,4771.85, 17-May-2013
445,Revenue,CCHD,Bed Purchasing - Under 65s PWLD - South,Residential Homes,Daneswood,10848.44, 14-May-2013
446,Revenue,CCHD,Bed purchasing - Under 65s PWLD - North,Residential Homes,Daneswood,8986.84, 14-May-2013
447,Revenue,CCHD,Learning Difficulties PSL,Other Supplies & Services,Individual,2016.44, 22-May-2013
448,Revenue,CCHD,Tenancy Start Up Scheme,Other Supplies & Services,Individual,1900, 14-May-2013
449,Revenue,CCHD,Training - Adult Services,Training Expenses,Denise Hope,750, 31-May-2013
450,Revenue,CCHD,Purchase of Non-Res Care - North,Private & Voluntary Day Care,Design 4 Life Ltd,1677.3, 28-May-2013
451,Revenue,CCHD,Purchase of Non-Res Care - North,Private & Voluntary Day Care,Design 4 Life Ltd,903.9, 21-May-2013
452,Revenue,CCHD,Bed Purchasing - Under 65s PWLD - South,Residential Homes,Devon & Cornwall Autistic Community Trus,8668.84, 14-May-2013
453,Revenue,CCHD,Day Care - South,Private & Voluntary Day Care,Dhek Bhal,835.6, 07-May-2013
454,Revenue,CCHD,Day Care - South,Private & Voluntary Day Care,Dhek Bhal,668.48, 07-May-2013
455,Revenue,CCHD,Day Care - South,Private & Voluntary Day Care,Dhek Bhal,898.27, 31-May-2013
456,Revenue,CCHD,Bed Purchasing - Under 65s PWLD - South,Residential Homes,Dimensions (Uk),4808.36, 14-May-2013
457,Revenue,CCHD,Supported Living - South,Private & Voluntary Home Care,Dimensions (UK) Ltd,1726.2, 22-May-2013
458,Revenue,CCHD,Supported Living - South,Private & Voluntary Home Care,Dimensions (UK) Ltd,1726.2, 22-May-2013
459,Revenue,CCHD,Supported Living - South,Private & Voluntary Home Care,Dimensions (UK) Ltd,1726.2, 22-May-2013
460,Revenue,CCHD,Supported Living - South,Private & Voluntary Home Care,Dimensions (UK) Ltd,1109.7, 22-May-2013
461,Revenue,CCHD,Home Care - Elderly - South,Other Small Contracts,DoCare Ltd,3932.14, 22-May-2013
462,Revenue,CCHD,Home Care - Elderly - North,Other Small Contracts,DoCare Ltd,6603.38, 22-May-2013
463,Revenue,CCHD,Day Care - North,Private & Voluntary Day Care,DoCare Ltd,200.81, 22-May-2013
464,Revenue,CCHD,Home Care - Elderly - South,Other Small Contracts,DoCare Ltd,4291.73, 23-May-2013
465,Revenue,CCHD,Home Care - Elderly - North,Other Small Contracts,DoCare Ltd,6575.36, 23-May-2013
466,Revenue,CCHD,Day Care - North,Private & Voluntary Day Care,DoCare Ltd,228.83, 23-May-2013
467,Revenue,CCHD,Home Care - Elderly - South,Other Small Contracts,DoCare Ltd,4263.71, 24-May-2013
468,Revenue,CCHD,Home Care - Elderly - North,Other Small Contracts,DoCare Ltd,6608.05, 24-May-2013
469,Revenue,CCHD,Day Care - North,Private & Voluntary Day Care,DoCare Ltd,228.83, 24-May-2013
470,Revenue,CCHD,Tenancy Start Up Scheme,Other Supplies & Services,Dovetail Properties,1390, 13-May-2013
471,Revenue,CCHD,Bed Purchasing - Elderly - South,Nursing Homes,Dunkirk Memorial House,1159.07, 14-May-2013
472,Revenue,CCHD,MH Purchasing - Younger,Residential Homes,Dunraven House,1826.8, 14-May-2013
473,Revenue,CCHD,Bed and Breakfast,Bed & Breakfast,E J Bartlett,651, 30-May-2013
474,Revenue,CCHD,Bed and Breakfast,Other Supplies & Services,E J Bartlett,651, 03-May-2013
475,Revenue,CCHD,Bed and Breakfast,Other Supplies & Services,E J Bartlett,759.5, 03-May-2013
476,Revenue,CCHD,Bed and Breakfast,Other Supplies & Services,E J Bartlett,868, 03-May-2013
477,Revenue,CCHD,Bed and Breakfast,Other Supplies & Services,E J Bartlett,527, 03-May-2013
478,Revenue,CCHD,Bed and Breakfast,Other Supplies & Services,E J Bartlett,434, 03-May-2013
479,Revenue,CCHD,Bed and Breakfast,Other Supplies & Services,E J Bartlett,434, 03-May-2013
480,Revenue,CCHD,Bed and Breakfast,Other Supplies & Services,E J Bartlett,651, 03-May-2013
481,Revenue,CCHD,Bed and Breakfast,Other Supplies & Services,E J Bartlett,651, 03-May-2013
482,Revenue,CCHD,Bed and Breakfast,Other Supplies & Services,E J Bartlett,759.5, 03-May-2013
483,Revenue,CCHD,Bed and Breakfast,Other Supplies & Services,E J Bartlett,868, 03-May-2013
484,Revenue,CCHD,Bed and Breakfast,Other Supplies & Services,E J Bartlett,527, 03-May-2013
485,Revenue,CCHD,Bed and Breakfast,Other Supplies & Services,E J Bartlett,434, 03-May-2013
486,Revenue,CCHD,Bed and Breakfast,Other Supplies & Services,E J Bartlett,434, 03-May-2013
487,Revenue,CCHD,Bed and Breakfast,Other Supplies & Services,E J Bartlett,651, 03-May-2013
488,Revenue,CCHD,Bed and Breakfast,Bed & Breakfast,E J Bartlett,651, 08-May-2013
489,Revenue,CCHD,Bed and Breakfast,Bed & Breakfast,E J Bartlett,759.5, 08-May-2013
490,Revenue,CCHD,Bed and Breakfast,Bed & Breakfast,E J Bartlett,868, 08-May-2013
491,Revenue,CCHD,Bed and Breakfast,Bed & Breakfast,E J Bartlett,465, 08-May-2013
492,Revenue,CCHD,Bed and Breakfast,Bed & Breakfast,E J Bartlett,930, 08-May-2013
493,Revenue,CCHD,Bed and Breakfast,Bed & Breakfast,E J Bartlett,434, 08-May-2013
494,Revenue,CCHD,Bed and Breakfast,Bed & Breakfast,E J Bartlett,651, 20-May-2013
495,Revenue,CCHD,Bed and Breakfast,Bed & Breakfast,E J Bartlett,759.5, 20-May-2013
496,Revenue,CCHD,Bed and Breakfast,Bed & Breakfast,E J Bartlett,868, 20-May-2013
497,Revenue,CCHD,Bed and Breakfast,Bed & Breakfast,E J Bartlett,651, 20-May-2013
498,Revenue,CCHD,Bed and Breakfast,Bed & Breakfast,E J Bartlett,651, 20-May-2013
499,Revenue,CCHD,Bed and Breakfast,Bed & Breakfast,E J Bartlett,651, 28-May-2013
500,Revenue,CCHD,Bed and Breakfast,Bed & Breakfast,E J Bartlett,759.5, 28-May-2013
501,Revenue,CCHD,Bed and Breakfast,Bed & Breakfast,E J Bartlett,868, 28-May-2013
502,Revenue,CCHD,Bed and Breakfast,Bed & Breakfast,E J Bartlett,651, 28-May-2013
503,Revenue,CCHD,Bed and Breakfast,Bed & Breakfast,E J Bartlett,465, 28-May-2013
504,Revenue,CCHD,Bed and Breakfast,Bed & Breakfast,E J Bartlett,651, 28-May-2013
505,Revenue,CCHD,Bed and Breakfast,Bed & Breakfast,E J Bartlett,651, 30-May-2013
506,Revenue,CCHD,Bed and Breakfast,Bed & Breakfast,E J Bartlett,759.5, 30-May-2013
507,Revenue,CCHD,Bed and Breakfast,Bed & Breakfast,E J Bartlett,868, 30-May-2013
508,Revenue,CCHD,Bed and Breakfast,Bed & Breakfast,E J Bartlett,651, 30-May-2013
509,Revenue,CCHD,Bed and Breakfast,Bed & Breakfast,E J Bartlett,434, 30-May-2013
510,Revenue,CCHD,Bed and Breakfast,Bed & Breakfast,E J Bartlett,651, 30-May-2013
511,Revenue,CCHD,Bed purchasing - Under 65s PWLD - North,Residential Homes,East Court,2180.72, 14-May-2013
512,Revenue,CCHD,Minor Adaptations Service,Operational Equipment,Eastman & Co (Timber) Limited,1138.82, 30-May-2013
513,Revenue,CCHD,Bed Purchasing - Southmead Hospital,Residential Homes,Edgecumbe Lodge,1246, 14-May-2013
514,Revenue,CCHD,Bed Purchasing - Elderly - South,Residential Homes,Edgecumbe Lodge,1052.16, 14-May-2013
515,Revenue,CCHD,Bed Purchasing - Elderly - South,Residential Homes,Edgecumbe Lodge,1312.64, 14-May-2013
516,Revenue,CCHD,Bed Purchasing - Elderly - South,Residential Homes,Edgecumbe Lodge,1405.12, 14-May-2013
517,Revenue,CCHD,Bed Purchasing - Elderly - South,Residential Homes,Edgecumbe Lodge,991.96, 14-May-2013
518,Revenue,CCHD,Bed Purchasing - Frenchay Hospital,Residential Homes,Edgecumbe Lodge,1276.24, 14-May-2013
519,Revenue,CCHD,Bed Purchasing - Frenchay Hospital,Residential Homes,Edgecumbe Lodge,1223.16, 14-May-2013
520,Revenue,CCHD,Bed Purchasing - Elderly MH - South,Residential Homes,Edgecumbe Lodge,1151.68, 14-May-2013
521,Revenue,CCHD,Bed Purchasing - Southmead Hospital,Residential Homes,Edgemont House Ltd,1414, 14-May-2013
522,Revenue,CCHD,Bed Purchasing - Elderly - South,Residential Homes,Edgemont House Ltd,1246, 14-May-2013
523,Revenue,CCHD,Bed Purchasing - Elderly - South,Residential Homes,Edgemont House Ltd,1246, 14-May-2013
524,Revenue,CCHD,Bed Purchasing - Elderly - South,Residential Homes,Edgemont House Ltd,1412.04, 14-May-2013
525,Revenue,CCHD,Bed Purchasing - Elderly - South,Nursing Homes,Edgemont View Nursing Home,1427.52, 14-May-2013
526,Revenue,CCHD,Bed Purchasing - Frenchay Hospital,Nursing Homes,Edgemont View Nursing Home,1352, 14-May-2013
527,Revenue,CCHD,Bed Purchasing - Elderly - South,Nursing Homes,Edgemont View Nursing Home,1302, 14-May-2013
528,Revenue,CCHD,Bed Purchasing - Elderly - South,Nursing Homes,Edgemont View Nursing Home,1674.84, 14-May-2013
529,Revenue,CCHD,Bed Purchasing - Elderly - South,Nursing Homes,Edgemont View Nursing Home,837.42, 14-May-2013
530,Revenue,CCHD,Bed Purchasing - Elderly - South,Nursing Homes,Edgemont View Nursing Home,1613.52, 14-May-2013
531,Revenue,CCHD,Bed Purchasing - Elderly - South,Nursing Homes,Edgemont View Nursing Home,1177.24, 14-May-2013
532,Revenue,CCHD,Bed Purchasing - Under 65s PWLD - South,Residential Homes,Education & Services for People with Autism,10615.08, 03-May-2013
533,Revenue,CCHD,Supporting People Programme,Grants to Voluntary Bodies,Elim Housing Association Limited,4945.25, 01-May-2013
534,Revenue,CCHD,Supporting People Programme,Grants to Voluntary Bodies,Elim Housing Association Limited,4945.25, 31-May-2013
535,Revenue,CCHD,Home Care - Elderly - South,Other Small Contracts,Elite Home Care Ltd,4867.7, 07-May-2013
536,Revenue,CCHD,Home care - Elderly MH - North,Other Small Contracts,Elite Home Care Ltd,157.32, 07-May-2013
537,Revenue,CCHD,Bed Purchasing - Elderly - South,Residential Homes,Elmbridge Residential Home Ltd,1319.27, 14-May-2013
538,Revenue,CCHD,Bed Purchasing - Frenchay Hospital,Nursing Homes,Elmwood Nursing Home,2223.88, 14-May-2013
539,Revenue,CCHD,Younger MH non-res purchasing,Private & Voluntary Day Care,Enham,638.72, 13-May-2013
540,Revenue,CCHD,Bed Purchasing - Southmead Hospital,Nursing Homes,Epworth House,1335, 14-May-2013
541,Revenue,CCHD,Home Care - Elderly - South,Other Small Contracts,Everycare (Bristol) Ltd,4312.08, 15-May-2013
542,Revenue,CCHD,Home Care - Elderly - North,Other Small Contracts,Everycare (Bristol) Ltd,3007.56, 15-May-2013
543,Revenue,CCHD,Home Care - Elderly - South,Other Small Contracts,Everycare (Bristol) Ltd,4541.04, 30-May-2013
544,Revenue,CCHD,Home Care - Elderly - North,Other Small Contracts,Everycare (Bristol) Ltd,3122.32, 30-May-2013
545,Revenue,CCHD,Day Care - South,Private & Voluntary Day Care,Everycare (Bristol) Ltd,67.84, 30-May-2013
546,Revenue,CCHD,Home Care - Elderly - South,Other Small Contracts,Everycare (Bristol) Ltd,4600.4, 30-May-2013
547,Revenue,CCHD,Home Care - Elderly - North,Other Small Contracts,Everycare (Bristol) Ltd,3209.68, 30-May-2013
548,Revenue,CCHD,Day Care - South,Private & Voluntary Day Care,Everycare (Bristol) Ltd,101.76, 30-May-2013
549,Revenue,CCHD,Bed Purchasing - Elderly MH - South,Residential Homes,Exmouth House,1397.88, 14-May-2013
550,Revenue,CCHD,Bed Purchasing - Southmead Hospital,Residential Homes,Fairfield House Care Home,1436.28, 14-May-2013
551,Revenue,CCHD,Bed Purchasing - Elderly - South,Nursing Homes,Fairview Court,1180.4, 14-May-2013
552,Revenue,CCHD,Bed purchasing - Elderly MH - North,Nursing Homes,Fairview Court,1595.96, 14-May-2013
553,Revenue,CCHD,Bed Purchasing - Elderly MH - South,Nursing Homes,Fairview Court,1779.32, 14-May-2013
554,Revenue,CCHD,Bed Purchasing - Southmead Hospital,Nursing Homes,Fairview Court,1023.72, 14-May-2013
555,Revenue,CCHD,Bed Purchasing - Elderly MH - South,Residential Homes,Fairview Court,1364.76, 14-May-2013
556,Revenue,CCHD,Bed Purchasing - Elderly - South,Residential Homes,Fairview Court,2648.56, 14-May-2013
557,Revenue,CCHD,Bed Purchasing - Elderly - South,Residential Homes,Fairview Court,2154.56, 14-May-2013
558,Revenue,CCHD,Bed Purchasing - Elderly - South,Nursing Homes,Fairview Court,8043.17, 14-May-2013
559,Revenue,CCHD,Bed Purchasing - Elderly - South,Nursing Homes,Fairview Court,1830.44, 14-May-2013
560,Revenue,CCHD,Bed Purchasing - Elderly - South,Nursing Homes,Fairview Court,1372.83, 14-May-2013
561,Revenue,CCHD,Bed Purchasing - Frenchay Hospital,Nursing Homes,Fairview Court,1836.08, 14-May-2013
562,Revenue,CCHD,Bed Purchasing - Frenchay Hospital,Nursing Homes,Fairview Court,1377.06, 14-May-2013
563,Revenue,CCHD,Bed Purchasing - Frenchay Hospital,Nursing Homes,Fairview Court,1041.83, 14-May-2013
564,Revenue,CCHD,Bed Purchasing - Elderly MH - South,Nursing Homes,Fairview Court,2002.88, 14-May-2013
565,Revenue,CCHD,Bed purchasing - Elderly MH - North,Nursing Homes,Fairview Court,1699.6, 14-May-2013
566,Revenue,CCHD,Bed Purchasing - Frenchay Hospital,Nursing Homes,Fairview Court Care Home,1473.4, 08-May-2013
567,Revenue,CCHD,South Glos Users in South Glos Homes,Nursing Homes,Fairview Court Care Home,2823.17, 08-May-2013
568,Revenue,CCHD,Bed purchasing - Phys Dis - North,Nursing Homes,Fairview Court Care Home,1923.98, 08-May-2013
569,Revenue,CCHD,Bed Purchasing - Elderly MH - South,Nursing Homes,Fairview Court Care Home,4528.06, 08-May-2013
570,Revenue,CCHD,Bed purchasing - Elderly S117 - South,Nursing Homes,Fairview Court Care Home,2485.94, 08-May-2013
571,Revenue,CCHD,Bed Purchasing - Elderly - South,Residential Homes,Fairview House,865.48, 14-May-2013
572,Revenue,CCHD,Bed Purchasing - Elderly - South,Residential Homes,Fairview House,1265.24, 14-May-2013
573,Revenue,CCHD,Bed Purchasing - Frenchay Hospital,Residential Homes,Fairview House,992.24, 14-May-2013
574,Revenue,CCHD,Bed Purchasing - Elderly - South,Residential Homes,Fairview House,928.12, 14-May-2013
575,Revenue,CCHD,Bed purchasing - Elderly S117 - South,Residential Homes,Fairview House,1402.88, 14-May-2013
576,Revenue,CCHD,Bed Purchasing - Southmead Hospital,Residential Homes,Fairview House,1019.48, 14-May-2013
577,Revenue,CCHD,Bed Purchasing - Elderly - South,Residential Homes,Fairview House,1158.84, 14-May-2013
578,Revenue,CCHD,Bed Purchasing - Southmead Hospital,Residential Homes,Fairview House,1116.24, 14-May-2013
579,Revenue,CCHD,Bed Purchasing - Elderly MH - South,Residential Homes,Fairview House,1103.08, 14-May-2013
580,Revenue,CCHD,Bed Purchasing - Frenchay Hospital,Residential Homes,Fairview House,1246, 14-May-2013
581,Revenue,CCHD,Bed Purchasing - Elderly MH - South,Residential Homes,Fairview House,1036.08, 14-May-2013
582,Revenue,CCHD,Bed Purchasing - Elderly MH - South,Residential Homes,Fairview House,1192.92, 14-May-2013
583,Revenue,CCHD,Bed Purchasing - Frenchay Hospital,Residential Homes,Faith House,1310.92, 14-May-2013
584,Revenue,CCHD,Bed purchasing - Under 65s PWLD - North,Residential Homes,Fernbank,8560, 14-May-2013
585,Revenue,CCHD,Purchase of Non-Res Care - South,Private & Voluntary Day Care,Firstpoint Homecare Ltd,1173.2, 17-May-2013
586,Revenue,CCHD,Home Care - LD Under 65 - South,Private & Voluntary Home Care,Firstpoint Homecare Ltd,703.92, 10-May-2013
587,Revenue,CCHD,Home Care - Elderly - South,Other Small Contracts,Firstpoint Homecare Ltd,1562.88, 15-May-2013
588,Revenue,CCHD,Home Care - Elderly - North,Other Small Contracts,Firstpoint Homecare Ltd,1190.4, 15-May-2013
589,Revenue,CCHD,Day Care - South,Private & Voluntary Day Care,Firstpoint Homecare Ltd,399.36, 15-May-2013
590,Revenue,CCHD,Day Care - North,Private & Voluntary Day Care,Firstpoint Homecare Ltd,199.68, 15-May-2013
591,Revenue,CCHD,Under 65s -MH  Home Care Purch,Other Small Contracts,Firstpoint Homecare Ltd,46.08, 15-May-2013
592,Revenue,CCHD,Younger MH non-res purchasing,Private & Voluntary Day Care,Firstpoint Homecare Ltd,130.56, 15-May-2013
593,Revenue,CCHD,Home care - Elderly MH - North,Other Small Contracts,Firstpoint Homecare Ltd,192, 15-May-2013
594,Revenue,CCHD,Elderly MH Day Care North,Private & Voluntary Day Care,Firstpoint Homecare Ltd,96, 15-May-2013
595,Revenue,CCHD,Home Care - Elderly - South,Other Small Contracts,Firstpoint Homecare Ltd,1486.08, 15-May-2013
596,Revenue,CCHD,Home Care - Elderly - North,Other Small Contracts,Firstpoint Homecare Ltd,1052.16, 15-May-2013
597,Revenue,CCHD,Day Care - South,Private & Voluntary Day Care,Firstpoint Homecare Ltd,403.2, 15-May-2013
598,Revenue,CCHD,Day Care - North,Private & Voluntary Day Care,Firstpoint Homecare Ltd,199.68, 15-May-2013
599,Revenue,CCHD,Under 65s -MH  Home Care Purch,Other Small Contracts,Firstpoint Homecare Ltd,46.08, 15-May-2013
600,Revenue,CCHD,Younger MH non-res purchasing,Private & Voluntary Day Care,Firstpoint Homecare Ltd,69.12, 15-May-2013
601,Revenue,CCHD,Home care - Elderly MH - North,Other Small Contracts,Firstpoint Homecare Ltd,199.68, 15-May-2013
602,Revenue,CCHD,Elderly MH Day Care North,Private & Voluntary Day Care,Firstpoint Homecare Ltd,92.16, 15-May-2013
603,Revenue,CCHD,Home Care - Elderly - South,Other Small Contracts,Firstpoint Homecare Ltd,1701.12, 23-May-2013
604,Revenue,CCHD,Home Care - Elderly - North,Other Small Contracts,Firstpoint Homecare Ltd,1267.2, 23-May-2013
605,Revenue,CCHD,Day Care - South,Private & Voluntary Day Care,Firstpoint Homecare Ltd,337.92, 23-May-2013
606,Revenue,CCHD,Day Care - North,Private & Voluntary Day Care,Firstpoint Homecare Ltd,203.52, 23-May-2013
607,Revenue,CCHD,Under 65s -MH  Home Care Purch,Other Small Contracts,Firstpoint Homecare Ltd,46.08, 23-May-2013
608,Revenue,CCHD,Younger MH non-res purchasing,Private & Voluntary Day Care,Firstpoint Homecare Ltd,69.12, 23-May-2013
609,Revenue,CCHD,Home care - Elderly MH - North,Other Small Contracts,Firstpoint Homecare Ltd,199.68, 23-May-2013
610,Revenue,CCHD,Elderly MH Day Care North,Private & Voluntary Day Care,Firstpoint Homecare Ltd,92.16, 23-May-2013
611,Revenue,CCHD,Home Care - Elderly - South,Other Small Contracts,Firstpoint Homecare Ltd,1831.68, 23-May-2013
612,Revenue,CCHD,Home Care - Elderly - North,Other Small Contracts,Firstpoint Homecare Ltd,1267.2, 23-May-2013
613,Revenue,CCHD,Day Care - South,Private & Voluntary Day Care,Firstpoint Homecare Ltd,368.64, 23-May-2013
614,Revenue,CCHD,Day Care - North,Private & Voluntary Day Care,Firstpoint Homecare Ltd,245.76, 23-May-2013
615,Revenue,CCHD,Under 65s -MH  Home Care Purch,Other Small Contracts,Firstpoint Homecare Ltd,46.08, 23-May-2013
616,Revenue,CCHD,Younger MH non-res purchasing,Private & Voluntary Day Care,Firstpoint Homecare Ltd,130.56, 23-May-2013
617,Revenue,CCHD,Home care - Elderly MH - North,Other Small Contracts,Firstpoint Homecare Ltd,203.52, 23-May-2013
618,Revenue,CCHD,Elderly MH Day Care North,Private & Voluntary Day Care,Firstpoint Homecare Ltd,92.16, 23-May-2013
619,Revenue,CCHD,Tenancy Start Up Scheme,Other Supplies & Services,Flamingo Investments Ltd,625, 15-May-2013
620,Revenue,CCHD,Learning Difficulties Development Fund,Other Supplies & Services,Forest of Avon Trust,3415, 29-May-2013
621,Revenue,CCHD,Bed Purchasing - Elderly - South,Nursing Homes,Four Seasons Health Care,1177.16, 14-May-2013
622,Revenue,CCHD,Bed Purchasing - Elderly S117- North,Residential Homes,Four Seasons Health Care,2030.36, 14-May-2013
623,Revenue,CCHD,Bed Purchasing - Frenchay Hospital,Residential Homes,Four Seasons Health Care,1526.6, 14-May-2013
624,Revenue,CCHD,Home Care - Elderly - South,Other Small Contracts,Freedom Social Care Recruitment,829.5, 03-May-2013
625,Revenue,CCHD,Home Care - Elderly - North,Other Small Contracts,Freedom Social Care Recruitment,3152.63, 03-May-2013
626,Revenue,CCHD,Home care - Elderly MH - North,Other Small Contracts,Freedom Social Care Recruitment,15.8, 03-May-2013
627,Revenue,CCHD,Home Care - Elderly - South,Other Small Contracts,Freedom Social Care Recruitment,853.2, 03-May-2013
628,Revenue,CCHD,Home Care - Elderly - North,Other Small Contracts,Freedom Social Care Recruitment,2635.36, 03-May-2013
629,Revenue,CCHD,Home Care - Elderly - South,Other Small Contracts,Freedom Social Care Recruitment,1188.95, 03-May-2013
630,Revenue,CCHD,Home Care - Elderly - North,Other Small Contracts,Freedom Social Care Recruitment,2648.15, 03-May-2013
631,Revenue,CCHD,Home care - Elderly MH - North,Other Small Contracts,Freedom Social Care Recruitment,15.79, 03-May-2013
632,Revenue,CCHD,Freeways,Residential Homes,Freeways Trust Limited,44545.41, 08-May-2013
633,Revenue,CCHD,Freeways,Residential Homes,Freeways Trust Limited,44763.39, 24-May-2013
634,Revenue,CCHD,Supported Living - South,Private & Voluntary Home Care,Freeways Trust Limited,1208.16, 17-May-2013
635,Revenue,CCHD,Supported Living - South,Private & Voluntary Home Care,Freeways Trust Limited,1427.16, 17-May-2013
636,Revenue,CCHD,Bed purchasing - Under 65s PWLD - North,Residential Homes,Freeways Trust Ltd,2817.88, 14-May-2013
637,Revenue,CCHD,Bed purchasing - S28A Under 65 - South,Residential Homes,Freeways Trust Ltd,2899.4, 14-May-2013
638,Revenue,CCHD,Bed purchasing - Under 65s PWLD - North,Residential Homes,Freeways Trust Ltd,2682.36, 14-May-2013
639,Revenue,CCHD,Bed purchasing - Under 65s PWLD - North,Residential Homes,Freeways Trust Ltd,2253.16, 14-May-2013
640,Revenue,CCHD,Bed purchasing - Under 65s PWLD - North,Residential Homes,Freeways Trust Ltd,2691.08, 14-May-2013
641,Revenue,CCHD,Bed Purchasing - Under 65s PWLD - South,Residential Homes,Freeways Trust Ltd,3289.6, 14-May-2013
642,Revenue,CCHD,Bed Purchasing - Under 65s PWLD - South,Residential Homes,Freeways Trust Ltd,2467.2, 14-May-2013
643,Revenue,CCHD,Bed purchasing - Elderly PWLD - North,Residential Homes,Freeways Trust Ltd,2235.92, 14-May-2013
644,Revenue,CCHD,Bed Purchasing - Under 65s PWLD - South,Residential Homes,Freeways Trust Ltd,2382.36, 14-May-2013
645,Revenue,CCHD,Bed purchasing - Under 65s PWLD - North,Residential Homes,Freeways Trust Ltd,2691.08, 14-May-2013
646,Revenue,CCHD,Bed purchasing - Elderly PWLD - North,Residential Homes,Freeways Trust Ltd,2511.56, 14-May-2013
647,Revenue,CCHD,Section 117 Placements MH Younger,Residential Homes,Freeways Trust Ltd,3324, 14-May-2013
648,Revenue,CCHD,Bed Purchasing - Under 65s PWLD - South,Residential Homes,Freeways Trust Ltd,6117.96, 14-May-2013
649,Revenue,CCHD,Bed Purchasing - Frenchay Hospital,Nursing Homes,Frenchay Park Nursing Home,1303.04, 14-May-2013
650,Revenue,CCHD,Bed Purchasing - Frenchay Hospital,Nursing Homes,Frenchay Park Nursing Home,1004.36, 14-May-2013
651,Revenue,CCHD,South Glos Users in South Glos Homes,Nursing Homes,Frenchay Park Nursing Home,7904.04, 14-May-2013
652,Revenue,CCHD,Bed Purchasing - Elderly - South,Nursing Homes,Fshc  1St Floor,918.56, 14-May-2013
653,Revenue,CCHD,Bed Purchasing - Elderly - South,Nursing Homes,Fshc  1St Floor,1287.08, 14-May-2013
654,Revenue,CCHD,Bed Purchasing - Frenchay Hospital,Residential Homes,Fshc  1St Floor,893.96, 14-May-2013
655,Revenue,CCHD,Bed Purchasing - Frenchay Hospital,Nursing Homes,Fshc  1St Floor,1370, 14-May-2013
656,Revenue,CCHD,Bed Purchasing - Southmead Hospital,Nursing Homes,Fshc  1St Floor,1370, 14-May-2013
657,Revenue,CCHD,Bed purchasing - Elderly MH - North,Residential Homes,Fshc  1St Floor,958.24, 14-May-2013
658,Revenue,CCHD,Bed purchasing - Elderly MH - North,Residential Homes,Fshc  1St Floor,718.68, 14-May-2013
659,Revenue,CCHD,Bed Purchasing - Southmead Hospital,Nursing Homes,Fshc  1St Floor,814.64, 14-May-2013
660,Revenue,CCHD,Bed Purchasing - Frenchay Hospital,Nursing Homes,Fshc  1St Floor,1343.12, 14-May-2013
661,Revenue,CCHD,Bed Purchasing - Elderly - South,Nursing Homes,Fshc  1St Floor,1572.96, 14-May-2013
662,Revenue,CCHD,Bed Purchasing - Elderly - South,Nursing Homes,Fshc  1St Floor,1048.64, 14-May-2013
663,Revenue,CCHD,Bed Purchasing - Frenchay Hospital,Nursing Homes,Fshc  1St Floor,830.14, 14-May-2013
664,Revenue,CCHD,Bed Purchasing - Southmead Hospital,Nursing Homes,Fshc  1St Floor,1370, 14-May-2013
665,Revenue,CCHD,Bed Purchasing - Elderly - South,Nursing Homes,Fshc  1St Floor,1207.6, 14-May-2013
666,Revenue,CCHD,Bed Purchasing - Elderly - South,Nursing Homes,Fshc  1St Floor,1370.36, 14-May-2013
667,Revenue,CCHD,Bed Purchasing - Frenchay Hospital,Nursing Homes,Fshc  1St Floor,1370, 14-May-2013
668,Revenue,CCHD,Bed Purchasing - Frenchay Hospital,Nursing Homes,Fshc  1St Floor,1027.5, 14-May-2013
669,Revenue,CCHD,Bed Purchasing - Frenchay Hospital,Nursing Homes,Fshc  1St Floor,827.65, 14-May-2013
670,Revenue,CCHD,Bed Purchasing - Southmead Hospital,Nursing Homes,Fshc  1St Floor,1370, 14-May-2013
671,Revenue,CCHD,Bed Purchasing - Elderly - South,Nursing Homes,Fshc  1St Floor,1265.64, 14-May-2013
672,Revenue,CCHD,Bed Purchasing - Southmead Hospital,Residential Homes,Fshc  1St Floor,533.6, 14-May-2013
673,Revenue,CCHD,Bed Purchasing - Elderly - North,Residential Homes,Fshc  1St Floor,1246, 14-May-2013
674,Revenue,CCHD,Bed Purchasing - Southmead Hospital,Nursing Homes,Fshc  1St Floor,1080.92, 14-May-2013
675,Revenue,CCHD,Bed Purchasing - Elderly - North,Nursing Homes,Fshc  1St Floor,1370, 14-May-2013
676,Revenue,CCHD,Bed Purchasing - Southmead Hospital,Nursing Homes,Fshc  1St Floor,1275.88, 14-May-2013
677,Revenue,CCHD,Bed Purchasing - Elderly - South,Nursing Homes,Fshc  1St Floor,1357.44, 14-May-2013
678,Revenue,CCHD,Bed Purchasing - Frenchay Hospital,Nursing Homes,Fshc  1St Floor,1180.6, 14-May-2013
679,Revenue,CCHD,Bed Purchasing - Elderly - South,Nursing Homes,Fshc  1St Floor,1370, 14-May-2013
680,Revenue,CCHD,Bed Purchasing - Elderly - South,Nursing Homes,Fshc  1St Floor,1314.88, 14-May-2013
681,Revenue,CCHD,Bed Purchasing - Elderly MH - South,Nursing Homes,Fshc  1St Floor,1370, 14-May-2013
682,Revenue,CCHD,Bed Purchasing - Elderly - South,Nursing Homes,Fshc  1St Floor,1082.04, 14-May-2013
683,Revenue,CCHD,Bed Purchasing - Elderly - South,Nursing Homes,Fshc  1St Floor,811.53, 14-May-2013
684,Revenue,CCHD,Bed Purchasing - Elderly - South,Nursing Homes,Fshc  1St Floor,1371.6, 14-May-2013
685,Revenue,CCHD,Bed Purchasing - Elderly - South,Nursing Homes,Fshc  1St Floor,1028.7, 14-May-2013
686,Revenue,CCHD,Bed Purchasing - Frenchay Hospital,Nursing Homes,Fshc  1St Floor,1078.4, 14-May-2013
687,Revenue,CCHD,Bed Purchasing - Elderly MH - South,Residential Homes,Fshc  1St Floor,1090.48, 14-May-2013
688,Revenue,CCHD,Bed Purchasing - Elderly - South,Nursing Homes,Fshc  1St Floor,1370, 14-May-2013
689,Revenue,CCHD,Bed Purchasing - Elderly - South,Nursing Homes,Fshc  1St Floor,1369.68, 14-May-2013
690,Revenue,CCHD,Bed Purchasing - Southmead Hospital,Nursing Homes,Fshc  1St Floor,940.4, 14-May-2013
691,Revenue,CCHD,South Glos Users in South Glos Homes,Nursing Homes,Fshc  1St Floor,900.66, 14-May-2013
692,Revenue,CCHD,Bed Purchasing - Elderly MH - South,Nursing Homes,Fshc  1St Floor,1216.84, 14-May-2013
693,Revenue,CCHD,Bed Purchasing - Southmead Hospital,Nursing Homes,Fshc  1St Floor,1362.4, 14-May-2013
694,Revenue,CCHD,Bed purchasing - Elderly MH - North,Nursing Homes,Fshc  1St Floor,771.92, 14-May-2013
695,Revenue,CCHD,Bed Purchasing - Elderly - South,Nursing Homes,Fshc  1St Floor,992.4, 14-May-2013
696,Revenue,CCHD,Bed Purchasing - Elderly - North,Nursing Homes,Fshc  1St Floor,974.36, 14-May-2013
697,Revenue,CCHD,Bed Purchasing - Frenchay Hospital,Residential Homes,Fshc  1St Floor,735.36, 14-May-2013
698,Revenue,CCHD,Bed Purchasing - Southmead Hospital,Nursing Homes,Fshc  1St Floor,1108.08, 14-May-2013
699,Revenue,CCHD,Bed Purchasing - Southmead Hospital,Residential Homes,Fshc  1St Floor,1232.92, 14-May-2013
700,Revenue,CCHD,Bed Purchasing - Southmead Hospital,Nursing Homes,Fshc  1St Floor,1215.4, 14-May-2013
701,Revenue,CCHD,Bed Purchasing - Frenchay Hospital,Residential Homes,Fshc  1St Floor,700.46, 14-May-2013
702,Revenue,CCHD,Bed Purchasing - Elderly - North,Residential Homes,Fshc  1St Floor,612.45, 14-May-2013
703,Revenue,CCHD,Bed Purchasing - Elderly - North,Residential Homes,Fshc  1St Floor,1438, 14-May-2013
704,Revenue,CCHD,Bed Purchasing - Elderly - North,Residential Homes,Fshc  1St Floor,1234.71, 14-May-2013
705,Revenue,CCHD,Bed Purchasing - Southmead Hospital,Nursing Homes,Fshc  1St Floor,1546, 14-May-2013
706,Revenue,CCHD,Bed Purchasing - Southmead Hospital,Nursing Homes,Fshc  1St Floor,1159.5, 14-May-2013
707,Revenue,CCHD,Bed Purchasing - Southmead Hospital,Nursing Homes,Fshc  1St Floor,603.12, 14-May-2013
708,Revenue,CCHD,Bed Purchasing - Frenchay Hospital,Residential Homes,Fshc  1St Floor,1411.88, 14-May-2013
709,Revenue,CCHD,Bed Purchasing - Frenchay Hospital,Nursing Homes,Fshc  1St Floor,1097.72, 14-May-2013
710,Revenue,CCHD,Bed Purchasing - Frenchay Hospital,Nursing Homes,Fshc  1St Floor,823.29, 14-May-2013
711,Revenue,CCHD,Bed Purchasing - Frenchay Hospital,Nursing Homes,Fshc  1St Floor,1370, 14-May-2013
712,Revenue,CCHD,Bed Purchasing - Elderly - South,Residential Homes,Fshc  1St Floor,1117.84, 14-May-2013
713,Revenue,CCHD,Bed Purchasing - Frenchay Hospital,Nursing Homes,Fshc  1St Floor,1546, 14-May-2013
714,Revenue,CCHD,Bed Purchasing - Elderly - North,Nursing Homes,Fshc  1St Floor,1370, 14-May-2013
715,Revenue,CCHD,Bed Purchasing - Southmead Hospital,Nursing Homes,Fshc  1St Floor,1370, 14-May-2013
716,Revenue,CCHD,Bed Purchasing - Elderly - North,Nursing Homes,Fshc  1St Floor,1295.6, 14-May-2013
717,Revenue,CCHD,Bed purchasing - Elderly MH - North,Nursing Homes,Fshc  1St Floor,1468.6, 14-May-2013
718,Revenue,CCHD,Bed Purchasing - Elderly - North,Nursing Homes,Fshc  1St Floor,1269.68, 14-May-2013
719,Revenue,CCHD,Bed Purchasing - Elderly - North,Nursing Homes,Fshc  1St Floor,1093.6, 14-May-2013
720,Revenue,CCHD,Bed Purchasing - Southmead Hospital,Nursing Homes,Fshc  1St Floor,1364.32, 14-May-2013
721,Revenue,CCHD,Bed Purchasing - Frenchay Hospital,Residential Homes,Fshc  1St Floor,628.4, 14-May-2013
722,Revenue,CCHD,Bed Purchasing - Frenchay Hospital,Nursing Homes,Fshc  1St Floor,1286.96, 14-May-2013
723,Revenue,CCHD,Bed Purchasing - Frenchay Hospital,Nursing Homes,Fshc  1St Floor,1350.84, 14-May-2013
724,Revenue,CCHD,Bed Purchasing - Elderly - North,Nursing Homes,Fshc  1St Floor,1041.72, 14-May-2013
725,Revenue,CCHD,Bed Purchasing - Elderly - North,Nursing Homes,Fshc  1St Floor,6097.09, 14-May-2013
726,Revenue,CCHD,Bed Purchasing - Elderly - North,Nursing Homes,Fshc  1St Floor,790.76, 14-May-2013
727,Revenue,CCHD,Bed Purchasing - Elderly - North,Nursing Homes,Fshc  1St Floor,593.07, 14-May-2013
728,Revenue,CCHD,Bed Purchasing - Frenchay Hospital,Nursing Homes,Fshc  1St Floor,1534.44, 14-May-2013
729,Revenue,CCHD,Bed purchasing - Elderly MH - North,Nursing Homes,Fshc  1St Floor,1422.76, 14-May-2013
730,Revenue,CCHD,Bed Purchasing - Elderly - North,Nursing Homes,Fshc  1St Floor,1510, 14-May-2013
731,Revenue,CCHD,Bed Purchasing - Southmead Hospital,Residential Homes,Fshc  1St Floor,813.33, 14-May-2013
732,Revenue,CCHD,Bed Purchasing - Elderly - North,Nursing Homes,Fshc  1St Floor,1370, 14-May-2013
733,Revenue,CCHD,Bed Purchasing - Elderly - North,Nursing Homes,Fshc  1St Floor,1392.52, 14-May-2013
734,Revenue,CCHD,Bed Purchasing - Frenchay Hospital,Nursing Homes,Fshc  1St Floor,1195.8, 14-May-2013
735,Revenue,CCHD,Bed Purchasing - Southmead Hospital,Nursing Homes,Fshc  1St Floor,1452.28, 14-May-2013
736,Revenue,CCHD,Bed Purchasing - Southmead Hospital,Nursing Homes,Fshc  1St Floor,1370, 14-May-2013
737,Revenue,CCHD,Bed Purchasing - Southmead Hospital,Nursing Homes,Fshc  1St Floor,1546, 14-May-2013
738,Revenue,CCHD,Bed Purchasing - Elderly MH - South,Nursing Homes,Fshc  1St Floor,1388.64, 14-May-2013
739,Revenue,CCHD,Bed Purchasing - Elderly - North,Residential Homes,Fshc  1St Floor,1246, 14-May-2013
740,Revenue,CCHD,Bed purchasing - Elderly MH - North,Residential Homes,Fshc  1St Floor,1246, 14-May-2013
741,Revenue,CCHD,Bed Purchasing - Southmead Hospital,Nursing Homes,Fshc  1St Floor,1530.84, 14-May-2013
742,Revenue,CCHD,Bed purchasing - Elderly MH - North,Residential Homes,Fshc  1St Floor,1198.84, 14-May-2013
743,Revenue,CCHD,Bed Purchasing - Elderly - South,Residential Homes,Fshc  1St Floor,1438, 14-May-2013
744,Revenue,CCHD,Bed Purchasing - Southmead Hospital,Residential Homes,Fshc  1St Floor,1246, 14-May-2013
745,Revenue,CCHD,Bed purchasing - Elderly MH - North,Residential Homes,Fshc  1St Floor,1378.88, 14-May-2013
746,Revenue,CCHD,Bed Purchasing - Elderly - North,Nursing Homes,Fshc  1St Floor,1349.52, 14-May-2013
747,Revenue,CCHD,Bed Purchasing - Southmead Hospital,Nursing Homes,Fshc  1St Floor,1213.24, 14-May-2013
748,Revenue,CCHD,Bed purchasing - Elderly MH - North,Nursing Homes,Fshc  1St Floor,1020.6, 14-May-2013
749,Revenue,CCHD,Bed Purchasing - Elderly - North,Residential Homes,Fshc  1St Floor,1254, 14-May-2013
750,Revenue,CCHD,Bed Purchasing - Elderly - North,Nursing Homes,Fshc  1St Floor,1145.72, 14-May-2013
751,Revenue,CCHD,Bed Purchasing - Frenchay Hospital,Residential Homes,Fshc  1St Floor,1246, 14-May-2013
752,Revenue,CCHD,Bed Purchasing - Frenchay Hospital,Nursing Homes,Fshc  1St Floor,1370, 14-May-2013
753,Revenue,CCHD,Bed Purchasing - Elderly - North,Nursing Homes,Fshc  1St Floor,1022.16, 14-May-2013
754,Revenue,CCHD,Bed Purchasing - Elderly - North,Nursing Homes,Fshc  1St Floor,1370, 14-May-2013
755,Revenue,CCHD,Bed Purchasing - Frenchay Hospital,Nursing Homes,Fshc  1St Floor,1370, 14-May-2013
756,Revenue,CCHD,Bed Purchasing - Frenchay Hospital,Nursing Homes,Fshc  1St Floor,1370, 14-May-2013
757,Revenue,CCHD,Bed Purchasing - Southmead Hospital,Nursing Homes,Fshc  1St Floor,592.56, 14-May-2013
758,Revenue,CCHD,Bed Purchasing - Elderly - North,Nursing Homes,Fshc  1St Floor,1071.64, 14-May-2013
759,Revenue,CCHD,Bed Purchasing - Frenchay Hospital,Nursing Homes,Fshc  1St Floor,1370, 14-May-2013
760,Revenue,CCHD,Bed Purchasing - Southmead Hospital,Nursing Homes,Fshc  1St Floor,754.48, 14-May-2013
761,Revenue,CCHD,Bed Purchasing - Elderly - North,Nursing Homes,Fshc  1St Floor,1379.28, 14-May-2013
762,Revenue,CCHD,Bed Purchasing - Elderly - North,Nursing Homes,Fshc  1St Floor,719.07, 14-May-2013
763,Revenue,CCHD,South Glos Users in South Glos Homes,Nursing Homes,Fshc  1St Floor,529.28, 14-May-2013
764,Revenue,CCHD,Bed Purchasing - Frenchay Hospital,Nursing Homes,Fshc  1St Floor,1378, 14-May-2013
765,Revenue,CCHD,Bed Purchasing - Elderly - South,Nursing Homes,Fshc  1St Floor,1041.56, 14-May-2013
766,Revenue,CCHD,Bed Purchasing - Southmead Hospital,Nursing Homes,Fshc  1St Floor,1292.6, 14-May-2013
767,Revenue,CCHD,Bed Purchasing - Elderly - North,Nursing Homes,Fshc  1St Floor,6121.48, 14-May-2013
768,Revenue,CCHD,Bed Purchasing - Elderly - North,Nursing Homes,Fshc  1St Floor,1249.04, 14-May-2013
769,Revenue,CCHD,Bed Purchasing - Elderly - North,Nursing Homes,Fshc  1St Floor,936.78, 14-May-2013
770,Revenue,CCHD,Bed Purchasing - Southmead Hospital,Nursing Homes,Fshc  1St Floor,1370, 14-May-2013
771,Revenue,CCHD,Bed Purchasing - Frenchay Hospital,Nursing Homes,Fshc  1St Floor,1366, 14-May-2013
772,Revenue,CCHD,Bed Purchasing - Frenchay Hospital,Nursing Homes,Fshc  1St Floor,1024.5, 14-May-2013
773,Revenue,CCHD,Bed Purchasing - Frenchay Hospital,Nursing Homes,Fshc  1St Floor,1336.6, 14-May-2013
774,Revenue,CCHD,Bed Purchasing - Southmead Hospital,Nursing Homes,Fshc  1St Floor,1344.2, 14-May-2013
775,Revenue,CCHD,Bed Purchasing - Elderly - North,Residential Homes,Fshc  1St Floor,3117.44, 14-May-2013
776,Revenue,CCHD,Bed Purchasing - Frenchay Hospital,Nursing Homes,Fshc  1St Floor,3176.43, 14-May-2013
777,Revenue,CCHD,Bed Purchasing - Frenchay Hospital,Nursing Homes,Fshc  1St Floor,1240.71, 14-May-2013
778,Revenue,CCHD,Bed purchasing - Phys Dis - North,Nursing Homes,Fshc  1St Floor,1376.28, 14-May-2013
779,Revenue,CCHD,Bed Purchasing - Frenchay Hospital,Nursing Homes,Fshc  1St Floor,792.96, 14-May-2013
780,Revenue,CCHD,Bed Purchasing - Southmead Hospital,Nursing Homes,Fshc  1St Floor,1298.96, 14-May-2013
781,Revenue,CCHD,Bed Purchasing - Elderly MH - South,Residential Homes,Fshc  1St Floor,5708.8, 14-May-2013
782,Revenue,CCHD,Bed Purchasing - Elderly MH - South,Residential Homes,Fshc  1St Floor,1438, 14-May-2013
783,Revenue,CCHD,Bed Purchasing - Elderly MH - South,Residential Homes,Fshc  1St Floor,1078.5, 14-May-2013
784,Revenue,CCHD,Bed purchasing - Elderly MH - North,Residential Homes,Fshc  1St Floor,1408.48, 14-May-2013
785,Revenue,CCHD,Bed Purchasing - Frenchay Hospital,Nursing Homes,Fshc  1St Floor,1359.08, 14-May-2013
786,Revenue,CCHD,Bed Purchasing - Frenchay Hospital,Nursing Homes,Fshc  1St Floor,1293.56, 14-May-2013
787,Revenue,CCHD,Bed Purchasing - Elderly - South,Residential Homes,Fshc  1St Floor,1399.72, 14-May-2013
788,Revenue,CCHD,Bed Purchasing - Elderly - North,Residential Homes,Fshc  1St Floor,1160.96, 14-May-2013
789,Revenue,CCHD,Bed Purchasing - Frenchay Hospital,Nursing Homes,Fshc  1St Floor,1856, 14-May-2013
790,Revenue,CCHD,Bed Purchasing - Frenchay Hospital,Nursing Homes,Fshc  1St Floor,1230.52, 14-May-2013
791,Revenue,CCHD,Bed Purchasing - Southmead Hospital,Nursing Homes,Fshc  1St Floor,1265.83, 14-May-2013
792,Revenue,CCHD,Bed Purchasing - Southmead Hospital,Nursing Homes,Fshc  1St Floor,538.21, 14-May-2013
793,Revenue,CCHD,Bed Purchasing - Elderly - South,Residential Homes,Fshc  1St Floor,7688.57, 14-May-2013
794,Revenue,CCHD,Bed Purchasing - Elderly - South,Nursing Homes,Fshc  1St Floor,1856, 14-May-2013
795,Revenue,CCHD,Bed Purchasing - Elderly - South,Nursing Homes,Fshc  1St Floor,6308.57, 14-May-2013
796,Revenue,CCHD,Bed Purchasing - Elderly - South,Nursing Homes,Fshc  1St Floor,1392, 14-May-2013
797,Revenue,CCHD,Bed purchasing - Elderly PWLD - South,Residential Homes,Fshc  1St Floor,1246, 14-May-2013
798,Revenue,CCHD,Bed Purchasing - Frenchay Hospital,Nursing Homes,Fshc  1St Floor,1370, 14-May-2013
799,Revenue,CCHD,Bed Purchasing - Southmead Hospital,Nursing Homes,Fshc  1St Floor,1101.08, 14-May-2013
800,Revenue,CCHD,Bed Purchasing - Elderly - South,Nursing Homes,Fshc  1St Floor,1294.68, 14-May-2013
801,Revenue,CCHD,Bed Purchasing - Elderly - North,Residential Homes,Fshc  1St Floor,1179.92, 14-May-2013
802,Revenue,CCHD,Bed Purchasing - Frenchay Hospital,Nursing Homes,Fshc  1St Floor,1370, 14-May-2013
803,Revenue,CCHD,Bed Purchasing - Southmead Hospital,Nursing Homes,Fshc  1St Floor,957.12, 14-May-2013
804,Revenue,CCHD,Bed Purchasing - Elderly - South,Residential Homes,Fshc  1St Floor,816.56, 14-May-2013
805,Revenue,CCHD,Bed Purchasing - Southmead Hospital,Residential Homes,Fshc  1St Floor,1397, 14-May-2013
806,Revenue,CCHD,Bed Purchasing - Southmead Hospital,Residential Homes,Fshc  1St Floor,1453.28, 14-May-2013
807,Revenue,CCHD,Bed Purchasing - Elderly - South,Nursing Homes,Fshc  1St Floor,941.76, 14-May-2013
808,Revenue,CCHD,Bed purchasing - Elderly S117 - South,Nursing Homes,Fshc  1St Floor,1856, 14-May-2013
809,Revenue,CCHD,Bed Purchasing - Frenchay Hospital,Residential Homes,Fshc  1St Floor,1107.56, 14-May-2013
810,Revenue,CCHD,Bed Purchasing - Elderly - North,Residential Homes,Fshc  1St Floor,866, 14-May-2013
811,Revenue,CCHD,Bed Purchasing - Elderly - North,Residential Homes,Fshc  1St Floor,866, 14-May-2013
812,Revenue,CCHD,Bed Purchasing - Southmead Hospital,Residential Homes,Fshc  1St Floor,1331.76, 14-May-2013
813,Revenue,CCHD,Bed Purchasing - Frenchay Hospital,Nursing Homes,Fshc  1St Floor,864.88, 14-May-2013
814,Revenue,CCHD,Bed Purchasing - Frenchay Hospital,Nursing Homes,Fshc  1St Floor,648.66, 14-May-2013
815,Revenue,CCHD,Bed Purchasing - Southmead Hospital,Nursing Homes,Fshc  1St Floor,1370, 14-May-2013
816,Revenue,CCHD,Bed Purchasing - Southmead Hospital,Nursing Homes,Fshc  1St Floor,1027.5, 14-May-2013
817,Revenue,CCHD,Bed Purchasing - Elderly - North,Residential Homes,Fshc  1St Floor,1199.92, 14-May-2013
818,Revenue,CCHD,Bed Purchasing - Southmead Hospital,Nursing Homes,Fshc  1St Floor,1370, 14-May-2013
819,Revenue,CCHD,Bed Purchasing - Frenchay Hospital,Nursing Homes,Fshc  1St Floor,1109.92, 14-May-2013
820,Revenue,CCHD,Bed Purchasing - Frenchay Hospital,Nursing Homes,Fshc  1St Floor,956.08, 14-May-2013
821,Revenue,CCHD,Bed Purchasing - Frenchay Hospital,Residential Homes,Fshc  1St Floor,1392, 14-May-2013
822,Revenue,CCHD,Bed Purchasing - Frenchay Hospital,Nursing Homes,Fshc  1St Floor,1193.14, 14-May-2013
823,Revenue,CCHD,Bed Purchasing - Frenchay Hospital,Residential Homes,Fshc  1St Floor,920, 14-May-2013
824,Revenue,CCHD,Bed Purchasing - Frenchay Hospital,Nursing Homes,Fshc  1St Floor,920, 14-May-2013
825,Revenue,CCHD,Bed Purchasing - Frenchay Hospital,Nursing Homes,Fshc  1St Floor,1392, 14-May-2013
826,Revenue,CCHD,Bed Purchasing - Frenchay Hospital,Nursing Homes,Fshc  1St Floor,1089.04, 14-May-2013
827,Revenue,CCHD,Bed Purchasing - Frenchay Hospital,Nursing Homes,Fshc  1St Floor,1030.08, 14-May-2013
828,Revenue,CCHD,Bed Purchasing - Frenchay Hospital,Nursing Homes,Fshc  1St Floor,1060.28, 14-May-2013
829,Revenue,CCHD,Bed Purchasing - Southmead Hospital,Nursing Homes,Fshc  1St Floor,1523.83, 14-May-2013
830,Revenue,CCHD,Bed Purchasing - Frenchay Hospital,Residential Homes,Fshc  1St Floor,1000.82, 14-May-2013
831,Revenue,CCHD,Bed Purchasing - Southmead Hospital,Nursing Homes,Fshc  1St Floor,1302, 14-May-2013
832,Revenue,CCHD,Bed Purchasing - Southmead Hospital,Residential Homes,Fshc  1St Floor,1246, 14-May-2013
833,Revenue,CCHD,Bed Purchasing - Elderly - North,Nursing Homes,Fshc  1St Floor,1277.04, 14-May-2013
834,Revenue,CCHD,Bed purchasing - Phys Dis - North,Nursing Homes,Fshc  1St Floor,840.44, 14-May-2013
835,Revenue,CCHD,Bed Purchasing - Frenchay Hospital,Nursing Homes,Fshc  1St Floor,1302, 14-May-2013
836,Revenue,CCHD,Bed purchasing - Elderly MH - North,Nursing Homes,Fshc  1St Floor,859.17, 14-May-2013
837,Revenue,CCHD,Bed purchasing - Elderly S117 - South,Nursing Homes,Fshc  1St Floor,1964, 14-May-2013
838,Revenue,CCHD,Bed Purchasing - Frenchay Hospital,Nursing Homes,Fshc  1St Floor,1075.2, 14-May-2013
839,Revenue,CCHD,Bed Purchasing - Frenchay Hospital,Nursing Homes,Fshc  1St Floor,955.44, 14-May-2013
840,Revenue,CCHD,Bed Purchasing - Frenchay Hospital,Nursing Homes,Fshc  1St Floor,1097.04, 14-May-2013
841,Revenue,CCHD,Woodleaze,Premises Maintenance by Contractor,Geoff Lewis Flooring Limited,755, 24-May-2013
842,Revenue,CCHD,Section 117 Placements MH Younger,Residential Homes,Gladstone House,2721.88, 14-May-2013
843,Revenue,CCHD,Bed Purchasing - Under 65s PWLD - South,Residential Homes,Glasallt Fawr,4547.84, 14-May-2013
844,Revenue,CCHD,Bed purchasing - Elderly MH - North,Nursing Homes,Glebe House Nursing Home,753.32, 14-May-2013
845,Revenue,CCHD,Bed Purchasing - Frenchay Hospital,Nursing Homes,Glebe House Nursing Home,1478, 14-May-2013
846,Revenue,CCHD,Bed Purchasing - Frenchay Hospital,Nursing Homes,Glebe House Nursing Home,1002.93, 14-May-2013
847,Revenue,CCHD,Bed Purchasing - Elderly - South,Residential Homes,Glebe House Nursing Home,1977.76, 14-May-2013
848,Revenue,CCHD,Bed Purchasing - Elderly - North,Nursing Homes,Glebe House Nursing Home,3665.06, 14-May-2013
849,Revenue,CCHD,Bed Purchasing - Elderly - North,Nursing Homes,Glebe House Nursing Home,1175.2, 14-May-2013
850,Revenue,CCHD,Bed Purchasing - Elderly - North,Residential Homes,Glebe House Nursing Home,2551.92, 14-May-2013
851,Revenue,CCHD,Bed Purchasing - Under 65s PWLD - South,Residential Homes,Gordena Care Home,2082.36, 14-May-2013
852,Revenue,CCHD,Bed purchasing - Elderly PWLD - South,Residential Homes,Gordena Care Home,4732.4, 14-May-2013
853,Revenue,CCHD,Bed purchasing - Elderly PWLD - South,Residential Homes,Gordena Care Home,3116.24, 14-May-2013
854,Revenue,CCHD,Bed purchasing - Elderly PWLD - South,Residential Homes,Gordena Care Home,2927.44, 14-May-2013
855,Revenue,CCHD,Bed Purchasing - Under 65s PWLD - South,Residential Homes,Gordena Care Home,1907.6, 14-May-2013
856,Revenue,CCHD,Bed Purchasing - Under 65s PWLD - South,Residential Homes,Gordena Care Limited,4158.56, 14-May-2013
857,Revenue,CCHD,Bed purchasing - S28A Under 65 - South,Residential Homes,Gordena Care Limited,4055.8, 14-May-2013
858,Revenue,CCHD,Bed purchasing - Under 65s PWLD - North,Residential Homes,Gordena Care Limited,4160, 14-May-2013
859,Revenue,CCHD,Bed Purchasing - Elderly - North,Residential Homes,Greensleeves,1313.88, 14-May-2013
860,Revenue,CCHD,Bed Purchasing - Elderly - South,Residential Homes,Gwendoline House,1490.04, 14-May-2013
861,Revenue,CCHD,Bed Purchasing - Elderly - South,Residential Homes,Gwendoline House,1164.96, 14-May-2013
862,Revenue,CCHD,Bed Purchasing - Elderly - North,Residential Homes,Gwendoline House,1654.36, 14-May-2013
863,Revenue,CCHD,Bed Purchasing - Elderly MH - South,Residential Homes,Gwendoline House,1284.64, 14-May-2013
864,Revenue,CCHD,Bed Purchasing - Southmead Hospital,Residential Homes,Gwendoline House,1686.64, 14-May-2013
865,Revenue,CCHD,Bed Purchasing - Elderly - South,Residential Homes,Gwendoline House,1128.52, 14-May-2013
866,Revenue,CCHD,Supporting People Programme,Grants to Voluntary Bodies,Habinteg Housing Association,1338.75, 01-May-2013
867,Revenue,CCHD,Supporting People Programme,Grants to Voluntary Bodies,Habinteg Housing Association,1338.75, 31-May-2013
868,Revenue,CCHD,Home Care - Elderly - South,Private & Voluntary Home Care,Hanover Housing Association,2315.44, 14-May-2013
869,Revenue,CCHD,Bed Purchasing - Elderly - South,Residential Homes,Harefield Hall,1327.24, 14-May-2013
870,Revenue,CCHD,Bed Purchasing - Elderly - South,Residential Homes,Harefield Hall,1111.16, 14-May-2013
871,Revenue,CCHD,Bed Purchasing - Elderly - South,Residential Homes,Harefield Hall,1778.56, 14-May-2013
872,Revenue,CCHD,Bed Purchasing - Elderly MH - South,Residential Homes,Harefield Hall,1086.52, 14-May-2013
873,Revenue,CCHD,Bed Purchasing - Southmead Hospital,Nursing Homes,Haven Lodge,1382.28, 14-May-2013
874,Revenue,CCHD,Bed Purchasing - Southmead Hospital,Nursing Homes,Hc-One Ltd,1613.52, 14-May-2013
875,Revenue,CCHD,Bed Purchasing - Elderly - North,Nursing Homes,Hc-One Ltd,1467.48, 14-May-2013
876,Revenue,CCHD,Bed Purchasing - Elderly - North,Nursing Homes,Hc-One Ltd,1100.61, 14-May-2013
877,Revenue,CCHD,Bed Purchasing - Elderly - North,Nursing Homes,Hc-One Ltd,967.32, 14-May-2013
878,Revenue,CCHD,Bed purchasing - Elderly PWLD - South,Nursing Homes,Hc-One Ltd,1929.96, 14-May-2013
879,Revenue,CCHD,Bed purchasing - Elderly MH - North,Nursing Homes,Hc-One Ltd,1478, 14-May-2013
880,Revenue,CCHD,Bed purchasing - Elderly MH - North,Nursing Homes,Hc-One Ltd,1211.48, 14-May-2013
881,Revenue,CCHD,Bed Purchasing - Frenchay Hospital,Nursing Homes,Hc-One Ltd,1471.16, 14-May-2013
882,Revenue,CCHD,Bed Purchasing - Elderly - South,Nursing Homes,Hc-One Ltd,819.2, 14-May-2013
883,Revenue,CCHD,Bed purchasing - Elderly MH - North,Nursing Homes,Hc-One Ltd,1478, 14-May-2013
884,Revenue,CCHD,Bed purchasing - Elderly MH - North,Nursing Homes,Hc-One Ltd,1160.36, 14-May-2013
885,Revenue,CCHD,Bed Purchasing - Elderly S117- North,Nursing Homes,Hc-One Ltd,1947.72, 14-May-2013
886,Revenue,CCHD,Bed Purchasing - Frenchay Hospital,Residential Homes,Hc-One Ltd,1489.64, 14-May-2013
887,Revenue,CCHD,Bed Purchasing - Southmead Hospital,Residential Homes,Highgate Studios,1166.84, 14-May-2013
888,Revenue,CCHD,Bed purchasing - Under 65s PWLD - North,Residential Homes,Holmleigh Care Homes Ltd,4000.16, 14-May-2013
889,Revenue,CCHD,Bed Purchasing - Under 65s PWLD - South,Residential Homes,Holmleigh Care Homes Ltd,5027.72, 14-May-2013
890,Revenue,CCHD,Bed Purchasing - Southmead Hospital,Nursing Homes,Holmwood House,1264.84, 14-May-2013
891,Revenue,CCHD,Bed Purchasing - Southmead Hospital,Nursing Homes,Holmwood House,836, 14-May-2013
892,Revenue,CCHD,Bed purchasing - Under 65s PWLD - North,Residential Homes,Home Farm Trust Ltd  5-6 Brook Office Pa,2639.24, 14-May-2013
893,Revenue,CCHD,Bed purchasing - Elderly PWLD - North,Residential Homes,Home Farm Trust Ltd  5-6 Brook Office Pa,5046.28, 14-May-2013
894,Revenue,CCHD,Bed purchasing - Elderly PWLD - North,Residential Homes,Home Farm Trust Ltd  5-6 Brook Office Pa,4370.28, 14-May-2013
895,Revenue,CCHD,Bed purchasing - Under 65s PWLD - North,Residential Homes,Home Farm Trust Ltd  5-6 Brook Office Pa,3396, 14-May-2013
896,Revenue,CCHD,Bed Purchasing - Under 65s PWLD - South,Residential Homes,Home Farm Trust Ltd  5-6 Brook Office Pa,4505.04, 14-May-2013
897,Revenue,CCHD,Bed purchasing - Under 65s PWLD - North,Residential Homes,Home From Home Care Ltd,8852.12, 14-May-2013
898,Revenue,CCHD,Bed purchasing - Under 65s PWLD - North,Residential Homes,Homes Caring For Autism Ltd  Churchill H,9755.64, 14-May-2013
899,Revenue,CCHD,Bed Purchasing - Under 65s PWLD - South,Residential Homes,Homes Caring For Autism Ltd  Churchill H,12715.92, 14-May-2013
900,Revenue,CCHD,Bed Purchasing - Elderly - South,Nursing Homes,Horfield Care Limited,3932.69, 08-May-2013
901,Revenue,CCHD,Bed Purchasing - Elderly - North,Nursing Homes,Horfield Care Limited,3176.89, 08-May-2013
902,Revenue,CCHD,Bed Purchasing - Frenchay Hospital,Nursing Homes,Horfield Care Limited,1434.96, 08-May-2013
903,Revenue,CCHD,Bed Purchasing - Southmead Hospital,Nursing Homes,Horfield Care Limited,7746.21, 08-May-2013
904,Revenue,CCHD,Supporting People Programme,Grants to Voluntary Bodies,Housing 21,921.33, 01-May-2013
905,Revenue,CCHD,Supporting People Programme,Grants to Voluntary Bodies,Housing 21,607.38, 01-May-2013
906,Revenue,CCHD,Supporting People Programme,Grants to Voluntary Bodies,Housing 21,921.33, 31-May-2013
907,Revenue,CCHD,Supporting People Programme,Grants to Voluntary Bodies,Housing 21,607.38, 31-May-2013
908,Revenue,CCHD,Home Care - Elderly - North,Private & Voluntary Home Care,Housing 21,37028.34, 10-May-2013
909,Revenue,CCHD,Home Care - Elderly - South,Private & Voluntary Home Care,Housing 21,23516.42, 01-May-2013
910,Revenue,CCHD,Home Care - Elderly - South,Private & Voluntary Home Care,Housing 21,23516.42, 31-May-2013
911,Revenue,CCHD,RSL Running Costs,Fees - General,Housing Partners Limited,750, 24-May-2013
912,Revenue,CCHD,Care Management Team - South,Agency Staff (Operational)/PCT Pay,IPE,4456.7, 01-May-2013
913,Revenue,CCHD,Care Management Team - South,Agency Staff (Operational)/PCT Pay,IPE,2629.56, 01-May-2013
914,Revenue,CCHD,Care Management Team - South,Agency Staff (Operational)/PCT Pay,IPE,2505, 01-May-2013
915,Revenue,CCHD,Minor Adaptations Service,Operational Equipment,IRM Mobility & Healthcare Limited,1245, 03-May-2013
916,Revenue,CCHD,Social Lettings Agency,Other Supplies & Services,Individual,655.41, 10-May-2013
917,Revenue,CCHD,Tenancy Start Up Scheme,Other Supplies & Services,Individual,625, 14-May-2013
918,Revenue,CCHD,Tenancy Start Up Scheme,Other Supplies & Services,Individual,625, 14-May-2013
919,Revenue,CCHD,Bed Purchasing - Southmead Hospital,Nursing Homes,Jasmine Court,1227.24, 14-May-2013
920,Revenue,CCHD,Training - Adult Services,Training Expenses,Jo Williams,595, 07-May-2013
921,Revenue,CCHD,Bed Purchasing - Under 65s PWLD - South,Residential Homes,Julia Simone- Supp. Ind.,3562.32, 14-May-2013
922,Revenue,CCHD,Bed purchasing -S28A  Under 65 - North,Residential Homes,Julia Simone- Supp. Ind.,3443.08, 14-May-2013
923,Revenue,CCHD,Bed Purchasing - Under 65s PWLD - South,Nursing Homes,K3 The Park Centre,4977.08, 14-May-2013
924,Revenue,CCHD,Bed Purchasing - LD S28A- Over 65- South,Residential Homes,K3 The Park Centre,3195.84, 14-May-2013
925,Revenue,CCHD,Bed Purchasing - Under 65s PWLD - South,Residential Homes,K3 The Park Centre,8651.44, 14-May-2013
926,Revenue,CCHD,Bed Purchasing - Under 65s PWLD - South,Residential Homes,K3 The Park Centre,3976.8, 14-May-2013
927,Revenue,CCHD,Bed Purchasing - Under 65s PWLD - South,Nursing Homes,K3 The Park Centre,6715.2, 14-May-2013
928,Revenue,CCHD,Bed purchasing - Elderly PWLD - South,Residential Homes,K3 The Park Centre,3412.04, 14-May-2013
929,Revenue,CCHD,Bed Purchasing - LD S28A- Over 65- South,Residential Homes,K3 The Park Centre,3867.32, 14-May-2013
930,Revenue,CCHD,Bed Purchasing - Under 65s PWLD - South,Nursing Homes,K3 The Park Centre,4977.08, 14-May-2013
931,Revenue,CCHD,Bed purchasing - S28A Under 65 - South,Nursing Homes,K3 The Park Centre,5298.64, 14-May-2013
932,Revenue,CCHD,Bed purchasing - S28A Under 65 - South,Nursing Homes,K3 The Park Centre,3973.98, 14-May-2013
933,Revenue,CCHD,Bed purchasing - S28A Under 65 - South,Residential Homes,K3 The Park Centre,4832.6, 14-May-2013
934,Revenue,CCHD,Bed purchasing - S28A Under 65 - South,Nursing Homes,K3 The Park Centre,5298.64, 14-May-2013
935,Revenue,CCHD,Bed Purchasing - LD S28A- Over 65- South,Nursing Homes,K3 The Park Centre,5127.84, 14-May-2013
936,Revenue,CCHD,Bed Purchasing - LD S28A- Over 65- South,Nursing Homes,K3 The Park Centre,4791.96, 14-May-2013
937,Revenue,CCHD,Bed Purchasing - LD S28A- Over 65- South,Nursing Homes,K3 The Park Centre,3593.97, 14-May-2013
938,Revenue,CCHD,Bed Purchasing - Under 65s PWLD - South,Residential Homes,K3 The Park Centre,3367.84, 14-May-2013
939,Revenue,CCHD,Bed Purchasing - S28A - Over 65- North,Nursing Homes,K3 The Park Centre,5416.64, 14-May-2013
940,Revenue,CCHD,Bed purchasing - S28A Under 65 - South,Residential Homes,K3 The Park Centre,5126.44, 14-May-2013
941,Revenue,CCHD,Bed purchasing - S28A Under 65 - South,Residential Homes,K3 The Park Centre,5181.28, 14-May-2013
942,Revenue,CCHD,Bed Purchasing - S28A - Over 65- North,Residential Homes,K3 The Park Centre,9371.64, 14-May-2013
943,Revenue,CCHD,Bed Purchasing - S28A - Over 65- North,Residential Homes,K3 The Park Centre,8598.75, 14-May-2013
944,Revenue,CCHD,Bed Purchasing - Under 65s PWLD - South,Residential Homes,K3 The Park Centre,13253.64, 14-May-2013
945,Revenue,CCHD,Bed purchasing - S28A Under 65 - South,Nursing Homes,K3 The Park Centre,5298.64, 14-May-2013
946,Revenue,CCHD,Bed purchasing - S28A Under 65 - South,Nursing Homes,K3 The Park Centre,5298.64, 14-May-2013
947,Revenue,CCHD,Bed purchasing -S28A  Under 65 - North,Nursing Homes,K3 The Park Centre,4712.96, 14-May-2013
948,Revenue,CCHD,Bed purchasing - S28A Under 65 - South,Residential Homes,K3 The Park Centre,5181.28, 14-May-2013
949,Revenue,CCHD,Bed Purchasing - LD S28A- Over 65- South,Residential Homes,K3 The Park Centre,4681.52, 14-May-2013
950,Revenue,CCHD,Bed Purchasing - Elderly - South,Residential Homes,Karenza Ltd,1732, 14-May-2013
951,Revenue,CCHD,Bed Purchasing - Elderly - North,Residential Homes,Katherine House,1199, 14-May-2013
952,Revenue,CCHD,Woodleaze,Furniture & Fittings Loose,Kensington Blinds,592.16, 17-May-2013
953,Revenue,CCHD,Home Care - Elderly - North,Other Small Contracts,Kensington Community Care,1705.53, 13-May-2013
954,Revenue,CCHD,Home Care - Elderly - South,Other Small Contracts,Kensington Community Care,596.31, 20-May-2013
955,Revenue,CCHD,Home Care - Elderly - North,Other Small Contracts,Kensington Community Care,1813.95, 20-May-2013
956,Revenue,CCHD,Home Care - Elderly - South,Other Small Contracts,Kensington Community Care,587.97, 31-May-2013
957,Revenue,CCHD,Home Care - Elderly - North,Other Small Contracts,Kensington Community Care,1684.68, 31-May-2013
958,Revenue,CCHD,Bed Purchasing - Elderly - South,Residential Homes,Kenver House Residential Home,4603.08, 14-May-2013
959,Revenue,CCHD,Bed Purchasing - Elderly - South,Residential Homes,Kenver House Residential Home,1545.64, 14-May-2013
960,Revenue,CCHD,Bed Purchasing - Elderly - South,Residential Homes,Kenver House Residential Home,1159.23, 14-May-2013
961,Revenue,CCHD,Bed purchasing - Elderly S117 - South,Residential Homes,Kenver House Residential Home,1897.08, 14-May-2013
962,Revenue,CCHD,Bed Purchasing - Elderly - South,Residential Homes,Kenver House Residential Home,517.28, 14-May-2013
963,Revenue,CCHD,Bed Purchasing - Frenchay Hospital,Residential Homes,Kenver House Residential Home,2135.28, 14-May-2013
964,Revenue,CCHD,Bed Purchasing - Elderly - South,Residential Homes,Kenver House Residential Home,1380.4, 14-May-2013
965,Revenue,CCHD,Section 117 Placements MH Younger,Residential Homes,Kenver House Residential Home,1900, 14-May-2013
966,Revenue,CCHD,Section 117 Placements MH Younger,Residential Homes,Kenver House Residential Home,1603.65, 14-May-2013
967,Revenue,CCHD,Bed Purchasing - Elderly MH - South,Residential Homes,Kenver House Residential Home,1285.96, 14-May-2013
968,Revenue,CCHD,Bed Purchasing - Elderly S117- North,Residential Homes,Kenver House Residential Home,1900, 14-May-2013
969,Revenue,CCHD,Bed Purchasing - Elderly - South,Residential Homes,Kenver House Residential Home,1649.28, 14-May-2013
970,Revenue,CCHD,Bed Purchasing - Frenchay Hospital,Residential Homes,Kenver House Residential Home,1412.16, 14-May-2013
971,Revenue,CCHD,Bed Purchasing - Frenchay Hospital,Residential Homes,Kenver House Residential Home,1649.28, 14-May-2013
972,Revenue,CCHD,Bed Purchasing - Elderly - South,Residential Homes,Kenver House Residential Home,1576.4, 14-May-2013
973,Revenue,CCHD,Bed Purchasing - Elderly MH - South,Residential Homes,Kenver House Residential Home,1189.68, 14-May-2013
974,Revenue,CCHD,Bed Purchasing - Frenchay Hospital,Residential Homes,Kenver House Residential Home,1414.88, 14-May-2013
975,Revenue,CCHD,Bed Purchasing - Elderly MH - South,Residential Homes,Kenver House Residential Home,1167.92, 14-May-2013
976,Revenue,CCHD,Bed Purchasing - Elderly MH - South,Residential Homes,Kenver House Residential Home,1414, 14-May-2013
977,Revenue,CCHD,Bed Purchasing - Elderly - South,Residential Homes,Kenver House Residential Home,1497.08, 14-May-2013
978,Revenue,CCHD,Bed Purchasing - Frenchay Hospital,Residential Homes,Kenver House Residential Home,1574.12, 14-May-2013
979,Revenue,CCHD,Bed Purchasing - Elderly - South,Residential Homes,Kenver House Residential Home,1649.28, 14-May-2013
980,Revenue,CCHD,Bed Purchasing - Frenchay Hospital,Residential Homes,Kenver House Residential Home,1539.76, 14-May-2013
981,Revenue,CCHD,Supporting People Programme,Grants to Voluntary Bodies,Keyring Living Support Networks,2874.42, 01-May-2013
982,Revenue,CCHD,Supporting People Programme,Grants to Voluntary Bodies,Keyring Living Support Networks,2874.42, 31-May-2013
983,Revenue,CCHD,Tenancy Start Up Scheme,Other Supplies & Services,Kingswood Accomodation Limited,1150, 09-May-2013
984,Revenue,CCHD,Supporting People Programme,Grants to Voluntary Bodies,Kingswood Young Homeless Project,17289.42, 01-May-2013
985,Revenue,CCHD,Supporting People Programme,Grants to Voluntary Bodies,Kingswood Young Homeless Project,17289.42, 31-May-2013
986,Revenue,CCHD,Bed purchasing - Under 65s PWLD - North,Residential Homes,Kisimul Group,11362.52, 14-May-2013
987,Revenue,CCHD,Supporting People Programme,Grants to Voluntary Bodies,Knightstone Housing Association Limited,13316.58, 01-May-2013
988,Revenue,CCHD,Supporting People Programme,Grants to Voluntary Bodies,Knightstone Housing Association Limited,8413.33, 01-May-2013
989,Revenue,CCHD,Supporting People Programme,Grants to Voluntary Bodies,Knightstone Housing Association Limited,7491.58, 01-May-2013
990,Revenue,CCHD,Supporting People Programme,Grants to Voluntary Bodies,Knightstone Housing Association Limited,1883.92, 01-May-2013
991,Revenue,CCHD,Supporting People Programme,Grants to Voluntary Bodies,Knightstone Housing Association Limited,2446.5, 01-May-2013
992,Revenue,CCHD,Supporting People Programme,Grants to Voluntary Bodies,Knightstone Housing Association Limited,2447.08, 01-May-2013
993,Revenue,CCHD,Supporting People Programme,Grants to Voluntary Bodies,Knightstone Housing Association Limited,1189.08, 01-May-2013
994,Revenue,CCHD,Supporting People Programme,Grants to Voluntary Bodies,Knightstone Housing Association Limited,2194.67, 01-May-2013
995,Revenue,CCHD,Supporting People Programme,Grants to Voluntary Bodies,Knightstone Housing Association Limited,13316.58, 31-May-2013
996,Revenue,CCHD,Supporting People Programme,Grants to Voluntary Bodies,Knightstone Housing Association Limited,8413.33, 31-May-2013
997,Revenue,CCHD,Supporting People Programme,Grants to Voluntary Bodies,Knightstone Housing Association Limited,7491.58, 31-May-2013
998,Revenue,CCHD,Supporting People Programme,Grants to Voluntary Bodies,Knightstone Housing Association Limited,1883.92, 31-May-2013
999,Revenue,CCHD,Supporting People Programme,Grants to Voluntary Bodies,Knightstone Housing Association Limited,2446.5, 31-May-2013
1000,Revenue,CCHD,Supporting People Programme,Grants to Voluntary Bodies,Knightstone Housing Association Limited,2447.08, 31-May-2013
1001,Revenue,CCHD,Supporting People Programme,Grants to Voluntary Bodies,Knightstone Housing Association Limited,1189.08, 31-May-2013
1002,Revenue,CCHD,Supporting People Programme,Grants to Voluntary Bodies,Knightstone Housing Association Limited,2194.67, 31-May-2013
1003,Revenue,CCHD,Home Care - Elderly - South,Other Small Contracts,Kumari Care Limited,4474.79, 15-May-2013
1004,Revenue,CCHD,Home Care - Elderly - North,Other Small Contracts,Kumari Care Limited,832.66, 15-May-2013
1005,Revenue,CCHD,Day Care - South,Private & Voluntary Day Care,Kumari Care Limited,108.08, 15-May-2013
1006,Revenue,CCHD,Under 65s -MH  Home Care Purch,Other Small Contracts,Kumari Care Limited,250.9, 15-May-2013
1007,Revenue,CCHD,PWLD Home Care - Under 65 - KH,Private & Voluntary Home Care,Kumari Care Limited,158.26, 15-May-2013
1008,Revenue,CCHD,Home Care - Elderly - South,Other Small Contracts,Kumari Care Limited,4357.94, 13-May-2013
1009,Revenue,CCHD,Home Care - Elderly - North,Other Small Contracts,Kumari Care Limited,833.9, 13-May-2013
1010,Revenue,CCHD,Day Care - South,Private & Voluntary Day Care,Kumari Care Limited,169.84, 13-May-2013
1011,Revenue,CCHD,Under 65s -MH  Home Care Purch,Other Small Contracts,Kumari Care Limited,258.62, 13-May-2013
1012,Revenue,CCHD,PWLD Home Care - Under 65 - KH,Private & Voluntary Home Care,Kumari Care Limited,304.94, 13-May-2013
1013,Revenue,CCHD,Home Care - Elderly - South,Other Small Contracts,Kumari Care Limited,4338.64, 22-May-2013
1014,Revenue,CCHD,Home Care - Elderly - North,Other Small Contracts,Kumari Care Limited,833.86, 22-May-2013
1015,Revenue,CCHD,Day Care - South,Private & Voluntary Day Care,Kumari Care Limited,154.4, 22-May-2013
1016,Revenue,CCHD,Under 65s -MH  Home Care Purch,Other Small Contracts,Kumari Care Limited,250.9, 22-May-2013
1017,Revenue,CCHD,Home Care - Elderly - South,Other Small Contracts,Kumari Care Limited,4218.98, 22-May-2013
1018,Revenue,CCHD,Home Care - Elderly - North,Other Small Contracts,Kumari Care Limited,833.86, 22-May-2013
1019,Revenue,CCHD,Day Care - South,Private & Voluntary Day Care,Kumari Care Limited,158.26, 22-May-2013
1020,Revenue,CCHD,Under 65s -MH  Home Care Purch,Other Small Contracts,Kumari Care Limited,258.62, 22-May-2013
1021,Revenue,CCHD,Social Lettings Agency,Other Supplies & Services,Individual,565, 07-May-2013
1022,Revenue,CCHD,Social Lettings Agency,Other Supplies & Services,Individual,565, 17-May-2013
1023,Revenue,CCHD,Bed purchasing - Phys Dis - North,Nursing Homes,Leonard Cheshire  National Account Centr,4963.04, 14-May-2013
1024,Revenue,CCHD,Bed purchasing - Phys Dis - North,Residential Homes,Leonard Cheshire  National Account Centr,2868.88, 14-May-2013
1025,Revenue,CCHD,Bed purchasing - Phys Dis - North,Residential Homes,Leonard Cheshire  National Account Centr,2151.66, 14-May-2013
1026,Revenue,CCHD,Bed Purchasing - Under 65s PWLD - South,Residential Homes,Leonard Cheshire  National Account Centr,2959.44, 14-May-2013
1027,Revenue,CCHD,Bed Purchasing - Under 65s PWLD - South,Residential Homes,Leonard Cheshire  National Account Centr,2219.58, 14-May-2013
1028,Revenue,CCHD,Bed Purchasing - Elderly - North,Nursing Homes,Leonard Cheshire  National Account Centr,3468.8, 14-May-2013
1029,Revenue,CCHD,Bed purchasing - Phys Dis - North,Nursing Homes,Leonard Cheshire  National Account Centr,2763.04, 14-May-2013
1030,Revenue,CCHD,Bed Purchasing - Elderly - North,Residential Homes,Leonard Cheshire  National Account Centr,3150.32, 14-May-2013
1031,Revenue,CCHD,Bed Purchasing - Elderly - North,Residential Homes,Leonard Cheshire  National Account Centr,2362.74, 14-May-2013
1032,Revenue,CCHD,Bed purchasing - Under 65s PWLD - North,Residential Homes,Leonard Cheshire  National Account Centr,5872.12, 14-May-2013
1033,Revenue,CCHD,Bed purchasing - Under 65s PWLD - North,Residential Homes,Leonard Cheshire  National Account Centr,5870.56, 14-May-2013
1034,Revenue,CCHD,Bed Purchasing - Elderly - South,Residential Homes,Leonard Cheshire  National Account Centr,4433.04, 14-May-2013
1035,Revenue,CCHD,Bed purchasing - Phys Dis - North,Nursing Homes,Leonard Cheshire  National Account Centr,2838.64, 14-May-2013
1036,Revenue,CCHD,Bed purchasing - Phys Dis - North,Nursing Homes,Leonard Cheshire  National Account Centr,3812.44, 14-May-2013
1037,Revenue,CCHD,Bed purchasing - Phys Dis - North,Nursing Homes,Leonard Cheshire  National Account Centr,3471.15, 14-May-2013
1038,Revenue,CCHD,Bed purchasing - Phys Dis - North,Nursing Homes,Leonard Cheshire  National Account Centr,2243.12, 14-May-2013
1039,Revenue,CCHD,Bed purchasing - Phys Dis - North,Residential Homes,Leonard Cheshire  National Account Centr,2889.4, 14-May-2013
1040,Revenue,CCHD,Bed purchasing - Phys Dis - North,Residential Homes,Leonard Cheshire  National Account Centr,2167.05, 14-May-2013
1041,Revenue,CCHD,Bed Purchasing - Elderly - North,Nursing Homes,Leonard Cheshire  National Account Centr,9490.24, 14-May-2013
1042,Revenue,CCHD,Bed purchasing - Phys Dis - North,Nursing Homes,Leonard Cheshire  National Account Centr,16788.2, 14-May-2013
1043,Revenue,CCHD,Bed purchasing - Phys Dis - North,Nursing Homes,Leonard Cheshire  National Account Centr,3223.8, 14-May-2013
1044,Revenue,CCHD,Bed purchasing - Phys Dis - South,Nursing Homes,Leonard Cheshire  National Account Centr,6114.8, 14-May-2013
1045,Revenue,CCHD,Bed purchasing - Phys Dis - North,Nursing Homes,Leonard Cheshire  National Account Centr,5521.36, 14-May-2013
1046,Revenue,CCHD,Bed Purchasing - Elderly - South,Nursing Homes,Leonard Cheshire  National Account Centr,2869.2, 14-May-2013
1047,Revenue,CCHD,Bed Purchasing - Southmead Hospital,Nursing Homes,Leonard Cheshire  National Account Centr,3002, 14-May-2013
1048,Revenue,CCHD,South Glos Users in all other LA Homes,Nursing Homes,Leonard Cheshire  National Account Centr,604.4, 14-May-2013
1049,Revenue,CCHD,Bed purchasing - Phys Dis - North,Nursing Homes,Leonard Cheshire  National Account Centr,3309.2, 14-May-2013
1050,Revenue,CCHD,Bed Purchasing - Frenchay Hospital,Residential Homes,Leonard Cheshire  National Account Centr,3773.4, 14-May-2013
1051,Revenue,CCHD,Bed Purchasing - Elderly - South,Nursing Homes,Leonard Cheshire  National Account Centr,4369.6, 14-May-2013
1052,Revenue,CCHD,Bed Purchasing - Elderly - South,Nursing Homes,Leonard Elms Care Home,1539.28, 14-May-2013
1053,Revenue,CCHD,Learning Difficulties Development Fund,Other Supplies & Services,Lifeskills,2700, 29-May-2013
1054,Revenue,CCHD,Supported Living - North,Carers Breaks & Services,Lifeways Community Care (Gloucester) Ltd,10990, 10-May-2013
1055,Revenue,CCHD,Supported Living - North,Private & Voluntary Home Care,Lifeways Community Care (Gloucester) Ltd,11373, 10-May-2013
1056,Revenue,CCHD,Bed Purchasing - Southmead Hospital,Residential Homes,Little Croft,1817.28, 14-May-2013
1057,Revenue,CCHD,Bed Purchasing - Elderly - South,Residential Homes,Little Croft,1246, 14-May-2013
1058,Revenue,CCHD,Bed Purchasing - Southmead Hospital,Residential Homes,Little Croft,1869, 14-May-2013
1059,Revenue,CCHD,Bed Purchasing - Elderly - South,Residential Homes,Little Croft,1473.2, 14-May-2013
1060,Revenue,CCHD,Bed Purchasing - Elderly - South,Residential Homes,Little Croft,1856, 14-May-2013
1061,Revenue,CCHD,Bed Purchasing - Elderly - South,Residential Homes,Little Croft,1522.8, 14-May-2013
1062,Revenue,CCHD,Bed Purchasing - Southmead Hospital,Residential Homes,Little Croft,1629.48, 14-May-2013
1063,Revenue,CCHD,Bed Purchasing - Frenchay Hospital,Residential Homes,Little Croft,1065.16, 14-May-2013
1064,Revenue,CCHD,Bed Purchasing - Frenchay Hospital,Residential Homes,Little Croft,1571.43, 14-May-2013
1065,Revenue,CCHD,Bed Purchasing - Elderly MH - South,Residential Homes,Little Croft,1173.28, 14-May-2013
1066,Revenue,CCHD,Bed Purchasing - Southmead Hospital,Residential Homes,Little Croft,1209.52, 14-May-2013
1067,Revenue,CCHD,Bed Purchasing - Southmead Hospital,Residential Homes,Little Croft,1246, 14-May-2013
1068,Revenue,CCHD,Bed purchasing - Under 65s PWLD - North,Residential Homes,Littlecroft Residential Homes  Longcroft,6436.28, 14-May-2013
1069,Revenue,CCHD,Learning Difficulties Development Fund,Other Supplies & Services,Lives Through Friends CIC,5000, 23-May-2013
1070,Revenue,CCHD,Home Care - Elderly - South,Other Small Contracts,Lloyds TSB Commercial Finance Limited,363.63, 17-May-2013
1071,Revenue,CCHD,Home Care - Elderly - North,Other Small Contracts,Lloyds TSB Commercial Finance Limited,7870.83, 17-May-2013
1072,Revenue,CCHD,Day Care - South,Private & Voluntary Day Care,Lloyds TSB Commercial Finance Limited,222.87, 17-May-2013
1073,Revenue,CCHD,Day Care - North,Private & Voluntary Day Care,Lloyds TSB Commercial Finance Limited,179.86, 17-May-2013
1074,Revenue,CCHD,Better Support for Older People,Other Supplies & Services,Lloyds TSB Commercial Finance Limited,1309, 31-May-2013
1075,Revenue,CCHD,Home Care - Elderly - South,Other Small Contracts,Lloyds TSB Commercial Finance Limited,371.52, 13-May-2013
1076,Revenue,CCHD,Home Care - Elderly - North,Other Small Contracts,Lloyds TSB Commercial Finance Limited,7353, 13-May-2013
1077,Revenue,CCHD,Day Care - South,Private & Voluntary Day Care,Lloyds TSB Commercial Finance Limited,239.94, 13-May-2013
1078,Revenue,CCHD,Day Care - North,Private & Voluntary Day Care,Lloyds TSB Commercial Finance Limited,170.28, 13-May-2013
1079,Revenue,CCHD,Supported Living - South,Private & Voluntary Home Care,Lloyds TSB Commercial Finance Limited,1095.1, 10-May-2013
1080,Revenue,CCHD,Supported Living - South,Private & Voluntary Home Care,Lloyds TSB Commercial Finance Limited,2955.94, 14-May-2013
1081,Revenue,CCHD,Supported Living - South,Private & Voluntary Home Care,Lloyds TSB Commercial Finance Limited,892.3, 15-May-2013
1082,Revenue,CCHD,Supported Living - South,Private & Voluntary Home Care,Lloyds TSB Commercial Finance Limited,2944.35, 14-May-2013
1083,Revenue,CCHD,Supported Living - South,Private & Voluntary Home Care,Lloyds TSB Commercial Finance Limited,850.96, 15-May-2013
1084,Revenue,CCHD,Supported Living - South,Private & Voluntary Home Care,Lloyds TSB Commercial Finance Limited,2780.01, 15-May-2013
1085,Revenue,CCHD,Supported Living - South,Private & Voluntary Home Care,Lloyds TSB Commercial Finance Limited,1390.7, 14-May-2013
1086,Revenue,CCHD,Supported Living - South,Private & Voluntary Home Care,Lloyds TSB Commercial Finance Limited,4610.53, 15-May-2013
1087,Revenue,CCHD,Supported Living - South,Private & Voluntary Home Care,Lloyds TSB Commercial Finance Limited,879.64, 15-May-2013
1088,Revenue,CCHD,Supported Living - South,Private & Voluntary Home Care,Lloyds TSB Commercial Finance Limited,2951.32, 15-May-2013
1089,Revenue,CCHD,Supported Living - South,Private & Voluntary Home Care,Lloyds TSB Commercial Finance Limited,1493.66, 14-May-2013
1090,Revenue,CCHD,Supported Living - South,Private & Voluntary Home Care,Lloyds TSB Commercial Finance Limited,3075.49, 10-May-2013
1091,Revenue,CCHD,Home Care - Elderly - South,Other Small Contracts,Lloyds TSB Commercial Finance Limited,371.52, 01-May-2013
1092,Revenue,CCHD,Home Care - Elderly - North,Other Small Contracts,Lloyds TSB Commercial Finance Limited,7256.25, 01-May-2013
1093,Revenue,CCHD,Day Care - South,Private & Voluntary Day Care,Lloyds TSB Commercial Finance Limited,247.68, 01-May-2013
1094,Revenue,CCHD,Day Care - North,Private & Voluntary Day Care,Lloyds TSB Commercial Finance Limited,228.33, 01-May-2013
1095,Revenue,CCHD,Home Care - Elderly - South,Other Small Contracts,Lloyds TSB Commercial Finance Limited,371.45, 17-May-2013
1096,Revenue,CCHD,Home Care - Elderly - North,Other Small Contracts,Lloyds TSB Commercial Finance Limited,7640.14, 17-May-2013
1097,Revenue,CCHD,Day Care - South,Private & Voluntary Day Care,Lloyds TSB Commercial Finance Limited,250.24, 17-May-2013
1098,Revenue,CCHD,Day Care - North,Private & Voluntary Day Care,Lloyds TSB Commercial Finance Limited,218.96, 17-May-2013
1099,Revenue,CCHD,Supported Living - South,Private & Voluntary Home Care,Lloyds TSB Commercial Finance Limited,850.96, 10-May-2013
1100,Revenue,CCHD,Supported Living - South,Private & Voluntary Home Care,Lloyds TSB Commercial Finance Limited,2747.11, 10-May-2013
1101,Revenue,CCHD,Supported Living - South,Private & Voluntary Home Care,Lloyds TSB Commercial Finance Limited,839.14, 10-May-2013
1102,Revenue,CCHD,Supported Living - South,Private & Voluntary Home Care,Lloyds TSB Commercial Finance Limited,2735.83, 10-May-2013
1103,Revenue,CCHD,Supported Living - South,Private & Voluntary Home Care,Lloyds TSB Commercial Finance Limited,833.86, 10-May-2013
1104,Revenue,CCHD,Supported Living - South,Private & Voluntary Home Care,Lloyds TSB Commercial Finance Limited,2655.88, 10-May-2013
1105,Revenue,CCHD,Supported Living - South,Private & Voluntary Home Care,Lloyds TSB Commercial Finance Limited,830.8, 15-May-2013
1106,Revenue,CCHD,Supported Living - South,Private & Voluntary Home Care,Lloyds TSB Commercial Finance Limited,2727.25, 15-May-2013
1107,Revenue,CCHD,Supported Living - South,Private & Voluntary Home Care,Lloyds TSB Commercial Finance Limited,799.12, 10-May-2013
1108,Revenue,CCHD,Supported Living - South,Private & Voluntary Home Care,Lloyds TSB Commercial Finance Limited,2688.82, 10-May-2013
1109,Revenue,CCHD,Supported Living - South,Private & Voluntary Home Care,Loga Care Ltd (T/A Logacare),3795.02, 02-May-2013
1110,Revenue,CCHD,Supported Living - South,Private & Voluntary Home Care,Loga Care Ltd (T/A Logacare),3672.9, 31-May-2013
1111,Revenue,CCHD,Bed Purchasing - Under 65s PWLD - South,Residential Homes,Longton Court,16456.12, 14-May-2013
1112,Revenue,CCHD,Social Lettings Agency,Other Supplies & Services,Individual,565, 01-May-2013
1113,Revenue,CCHD,Social Lettings Agency,Other Supplies & Services,Individual,565, 31-May-2013
1114,Revenue,CCHD,Bed Purchasing - Southmead Hospital,Nursing Homes,Majestic 3 Limited,998, 14-May-2013
1115,Revenue,CCHD,Bed Purchasing - Frenchay Hospital,Residential Homes,Manor Cottage,1059.52, 14-May-2013
1116,Revenue,CCHD,Bed Purchasing - Elderly - North,Residential Homes,Manor Cottage,1656.76, 14-May-2013
1117,Revenue,CCHD,Bed Purchasing - Southmead Hospital,Residential Homes,Manor Cottage,1246, 14-May-2013
1118,Revenue,CCHD,Bed Purchasing - Frenchay Hospital,Residential Homes,Manor Cottage,1150, 14-May-2013
1119,Revenue,CCHD,Bed Purchasing - Elderly - South,Residential Homes,Manor Cottage,1434.68, 14-May-2013
1120,Revenue,CCHD,Bed Purchasing - Southmead Hospital,Residential Homes,Manor Cottage,1246, 14-May-2013
1121,Revenue,CCHD,Bed Purchasing - Elderly - South,Residential Homes,Manor Cottage,1448.6, 14-May-2013
1122,Revenue,CCHD,Bed Purchasing - Elderly - North,Residential Homes,Manton Hall Residential Home,1496.44, 14-May-2013
1123,Revenue,CCHD,Section 117 Placements MH Younger,Private & Voluntary Day Care,Maples Community Care Limited,840.75, 10-May-2013
1124,Revenue,CCHD,Supporting People Programme,Grants to Voluntary Bodies,Maples Community Housing Limited,2677.58, 01-May-2013
1125,Revenue,CCHD,Supporting People Programme,Grants to Voluntary Bodies,Maples Community Housing Limited,2677.58, 31-May-2013
1126,Revenue,CCHD,Social Lettings Agency,Other Supplies & Services,Individual,655.41, 20-May-2013
1127,Revenue,CCHD,Bed Purchasing - Under 65s PWLD - South,Residential Homes,Marsden Healthcare Limited,911.04, 10-May-2013
1128,Revenue,CCHD,Bed purchasing - Elderly PWLD - South,Residential Homes,Marsden Healthcare Limited,3203, 10-May-2013
1129,Revenue,CCHD,Bed purchasing - Elderly PWLD - South,Residential Homes,Marsden Healthcare Limited,1505.96, 10-May-2013
1130,Revenue,CCHD,Bed Purchasing - Elderly MH - South,Nursing Homes,Meadow Care Home,1476.76, 14-May-2013
1131,Revenue,CCHD,Bed Purchasing - Elderly - South,Nursing Homes,Meadow Care Home,1879.2, 14-May-2013
1132,Revenue,CCHD,Bed Purchasing - Elderly - South,Nursing Homes,Meadow Care Home,805.37, 14-May-2013
1133,Revenue,CCHD,Home Care - Elderly - South,Private & Voluntary Home Care,Mears Care,48154.25, 28-May-2013
1134,Revenue,CCHD,Home Care - Elderly - South,Other Small Contracts,Mears Care,494.1, 13-May-2013
1135,Revenue,CCHD,Home Care - Elderly - North,Other Small Contracts,Mears Care,6254.94, 13-May-2013
1136,Revenue,CCHD,Day Care - South,Private & Voluntary Day Care,Mears Care,87.84, 13-May-2013
1137,Revenue,CCHD,Day Care - North,Private & Voluntary Day Care,Mears Care,248.88, 13-May-2013
1138,Revenue,CCHD,Under 65s -MH  Home Care Purch,Other Small Contracts,Mears Care,113.46, 13-May-2013
1139,Revenue,CCHD,Home Care - Elderly LD - KH,Private & Voluntary Home Care,Mears Care,51.24, 13-May-2013
1140,Revenue,CCHD,Home Care - Elderly - South,Other Small Contracts,Mears Care,596.58, 07-May-2013
1141,Revenue,CCHD,Home Care - Elderly - North,Other Small Contracts,Mears Care,6478.2, 07-May-2013
1142,Revenue,CCHD,Day Care - South,Private & Voluntary Day Care,Mears Care,87.84, 07-May-2013
1143,Revenue,CCHD,Day Care - North,Private & Voluntary Day Care,Mears Care,248.88, 07-May-2013
1144,Revenue,CCHD,Under 65s -MH  Home Care Purch,Other Small Contracts,Mears Care,109.8, 07-May-2013
1145,Revenue,CCHD,Home Care - Elderly LD - KH,Private & Voluntary Home Care,Mears Care,51.24, 07-May-2013
1146,Revenue,CCHD,Home Care - Elderly - South,Other Small Contracts,Mears Care,666, 07-May-2013
1147,Revenue,CCHD,Home Care - Elderly - North,Other Small Contracts,Mears Care,6800.6, 07-May-2013
1148,Revenue,CCHD,Day Care - South,Private & Voluntary Day Care,Mears Care,88.8, 07-May-2013
1149,Revenue,CCHD,Day Care - North,Private & Voluntary Day Care,Mears Care,251.6, 07-May-2013
1150,Revenue,CCHD,Under 65s -MH  Home Care Purch,Other Small Contracts,Mears Care,111, 07-May-2013
1151,Revenue,CCHD,Home Care - Elderly LD - KH,Private & Voluntary Home Care,Mears Care,51.8, 07-May-2013
1152,Revenue,CCHD,Home Care - Elderly - South,Other Small Contracts,Mears Care,695.6, 30-May-2013
1153,Revenue,CCHD,Home Care - Elderly - North,Other Small Contracts,Mears Care,7015.2, 30-May-2013
1154,Revenue,CCHD,Day Care - South,Private & Voluntary Day Care,Mears Care,88.8, 30-May-2013
1155,Revenue,CCHD,Day Care - North,Private & Voluntary Day Care,Mears Care,251.6, 30-May-2013
1156,Revenue,CCHD,Under 65s -MH  Home Care Purch,Other Small Contracts,Mears Care,111, 30-May-2013
1157,Revenue,CCHD,Home Care - Elderly LD - KH,Private & Voluntary Home Care,Mears Care,51.8, 30-May-2013
1158,Revenue,CCHD,Home Care - Elderly - South,Other Small Contracts,Mears Care,610.5, 30-May-2013
1159,Revenue,CCHD,Home Care - Elderly - North,Other Small Contracts,Mears Care,6504.6, 30-May-2013
1160,Revenue,CCHD,Day Care - South,Private & Voluntary Day Care,Mears Care,88.8, 30-May-2013
1161,Revenue,CCHD,Day Care - North,Private & Voluntary Day Care,Mears Care,255.3, 30-May-2013
1162,Revenue,CCHD,Under 65s -MH  Home Care Purch,Other Small Contracts,Mears Care,111, 30-May-2013
1163,Revenue,CCHD,Home Care - Elderly LD - KH,Private & Voluntary Home Care,Mears Care,51.8, 30-May-2013
1164,Revenue,CCHD,Home Care - Elderly - South,Other Small Contracts,Mears Care,629, 30-May-2013
1165,Revenue,CCHD,Home Care - Elderly - North,Other Small Contracts,Mears Care,6367.7, 30-May-2013
1166,Revenue,CCHD,Day Care - South,Private & Voluntary Day Care,Mears Care,88.8, 30-May-2013
1167,Revenue,CCHD,Day Care - North,Private & Voluntary Day Care,Mears Care,255.3, 30-May-2013
1168,Revenue,CCHD,Under 65s -MH  Home Care Purch,Other Small Contracts,Mears Care,114.7, 30-May-2013
1169,Revenue,CCHD,Home Care - Elderly LD - KH,Private & Voluntary Home Care,Mears Care,51.8, 30-May-2013
1170,Revenue,CCHD,Turnberries,Equipment Maintenance,Medaco,496, 17-May-2013
1171,Revenue,CCHD,Turnberries,Operational Equipment,Medaco,428, 30-May-2013
1172,Revenue,CCHD,NRS Contract,Daily Living Equipment,Medequip Assistive Technology Ltd,28623.77, 17-May-2013
1173,Revenue,CCHD,NRS Contract,Daily Living Equipment,Medequip Assistive Technology Ltd,81659.08, 17-May-2013
1174,Revenue,CCHD,Bed Purchasing - Under 65s PWLD - South,Residential Homes,Mencap,2219.16, 14-May-2013
1175,Revenue,CCHD,Supporting People Programme,Grants to Voluntary Bodies,Merlin Housing Society,15398.42, 01-May-2013
1176,Revenue,CCHD,Supporting People Programme,Grants to Voluntary Bodies,Merlin Housing Society,2423, 01-May-2013
1177,Revenue,CCHD,Supporting People Programme,Grants to Voluntary Bodies,Merlin Housing Society,51328.08, 01-May-2013
1178,Revenue,CCHD,Supporting People Programme,Grants to Voluntary Bodies,Merlin Housing Society,1026.58, 01-May-2013
1179,Revenue,CCHD,Supporting People Programme,Grants to Voluntary Bodies,Merlin Housing Society,15398.42, 31-May-2013
1180,Revenue,CCHD,Supporting People Programme,Grants to Voluntary Bodies,Merlin Housing Society,2423, 31-May-2013
1181,Revenue,CCHD,Supporting People Programme,Grants to Voluntary Bodies,Merlin Housing Society,51328.08, 31-May-2013
1182,Revenue,CCHD,Supporting People Programme,Grants to Voluntary Bodies,Merlin Housing Society,1026.58, 31-May-2013
1183,Revenue,CCHD,Bed Purchasing - Frenchay Hospital,Residential Homes,Milburn Finance,1040.12, 14-May-2013
1184,Revenue,CCHD,Tenancy Start Up Scheme,Other Supplies & Services,Milburys Estate Agents,1774.01, 29-May-2013
1185,Revenue,CCHD,Home Care - Elderly - South,Other Small Contracts,Milestones Outreach Dementia Services,2028.42, 30-May-2013
1186,Revenue,CCHD,Home Care - Elderly - North,Other Small Contracts,Milestones Outreach Dementia Services,339.98, 30-May-2013
1187,Revenue,CCHD,Day Care - South,Private & Voluntary Day Care,Milestones Outreach Dementia Services,61.12, 30-May-2013
1188,Revenue,CCHD,Day Care - North,Private & Voluntary Day Care,Milestones Outreach Dementia Services,168.72, 30-May-2013
1189,Revenue,CCHD,Home care - Elderly MH - North,Other Small Contracts,Milestones Outreach Dementia Services,80.22, 30-May-2013
1190,Revenue,CCHD,Elderly MH Day Care North,Private & Voluntary Day Care,Milestones Outreach Dementia Services,106.96, 30-May-2013
1191,Revenue,CCHD,Home Care - Elderly - South,Other Small Contracts,Milestones Outreach Dementia Services,1799.22, 15-May-2013
1192,Revenue,CCHD,Home Care - Elderly - North,Other Small Contracts,Milestones Outreach Dementia Services,615.02, 15-May-2013
1193,Revenue,CCHD,Day Care - South,Private & Voluntary Day Care,Milestones Outreach Dementia Services,61.12, 15-May-2013
1194,Revenue,CCHD,Day Care - North,Private & Voluntary Day Care,Milestones Outreach Dementia Services,164.16, 15-May-2013
1195,Revenue,CCHD,Home care - Elderly MH - North,Other Small Contracts,Milestones Outreach Dementia Services,84.04, 15-May-2013
1196,Revenue,CCHD,Elderly MH Day Care North,Private & Voluntary Day Care,Milestones Outreach Dementia Services,106.96, 15-May-2013
1197,Revenue,CCHD,Home Care - Elderly - South,Other Small Contracts,Milestones Outreach Dementia Services,1779.46, 15-May-2013
1198,Revenue,CCHD,Home Care - Elderly - North,Other Small Contracts,Milestones Outreach Dementia Services,621.46, 15-May-2013
1199,Revenue,CCHD,Day Care - South,Private & Voluntary Day Care,Milestones Outreach Dementia Services,61.76, 15-May-2013
1200,Revenue,CCHD,Day Care - North,Private & Voluntary Day Care,Milestones Outreach Dementia Services,164.16, 15-May-2013
1201,Revenue,CCHD,Home care - Elderly MH - North,Other Small Contracts,Milestones Outreach Dementia Services,84.92, 15-May-2013
1202,Revenue,CCHD,Elderly MH Day Care North,Private & Voluntary Day Care,Milestones Outreach Dementia Services,108.08, 15-May-2013
1203,Revenue,CCHD,Home Care - Elderly - South,Other Small Contracts,Milestones Outreach Dementia Services,1978.76, 16-May-2013
1204,Revenue,CCHD,Home Care - Elderly - North,Other Small Contracts,Milestones Outreach Dementia Services,343.8, 16-May-2013
1205,Revenue,CCHD,Day Care - South,Private & Voluntary Day Care,Milestones Outreach Dementia Services,61.12, 16-May-2013
1206,Revenue,CCHD,Day Care - North,Private & Voluntary Day Care,Milestones Outreach Dementia Services,164.16, 16-May-2013
1207,Revenue,CCHD,Home care - Elderly MH - North,Other Small Contracts,Milestones Outreach Dementia Services,87.86, 16-May-2013
1208,Revenue,CCHD,Elderly MH Day Care North,Private & Voluntary Day Care,Milestones Outreach Dementia Services,106.96, 16-May-2013
1209,Revenue,CCHD,Supported Living - North,Private & Voluntary Home Care,Milestones Trust,1533.7, 17-May-2013
1210,Revenue,CCHD,Supported Living - North,Private & Voluntary Home Care,Milestones Trust,588.44, 17-May-2013
1211,Revenue,CCHD,Supported Living - South,Private & Voluntary Home Care,Milestones Trust,928.02, 15-May-2013
1212,Revenue,CCHD,Supported Living - South,Private & Voluntary Home Care,Milestones Trust,1057.7, 17-May-2013
1213,Revenue,CCHD,Supported Living - South,Private & Voluntary Home Care,Milestones Trust,948.29, 17-May-2013
1214,Revenue,CCHD,Supported Living - South,Private & Voluntary Day Care,Milestones Trust,988.81, 17-May-2013
1215,Revenue,CCHD,Supported Living - South,Private & Voluntary Home Care,Milestones Trust,1223.86, 17-May-2013
1216,Revenue,CCHD,Supported Living (S28a) North,Private & Voluntary Home Care,Milestones Trust,8907.78, 01-May-2013
1217,Revenue,CCHD,Supported Living - North,Private & Voluntary Home Care,Milestones Trust,4992.48, 17-May-2013
1218,Revenue,CCHD,Supported Living (S28a) South,Private & Voluntary Home Care,Milestones Trust,6498.61, 23-May-2013
1219,Revenue,CCHD,Supported Living (S28a) South,Private & Voluntary Home Care,Milestones Trust,682.58, 02-May-2013
1220,Revenue,CCHD,Supported Living (S28a) North,Private & Voluntary Home Care,Milestones Trust,3936.2, 08-May-2013
1221,Revenue,CCHD,Supported Living (S28a) North,Private & Voluntary Home Care,Milestones Trust,9204.71, 08-May-2013
1222,Revenue,CCHD,Supported Living (S28a) North,Private & Voluntary Home Care,Milestones Trust,8965.83, 08-May-2013
1223,Revenue,CCHD,Supported Living (S28a) North,Private & Voluntary Home Care,Milestones Trust,6222.06, 08-May-2013
1224,Revenue,CCHD,Supported Living (S28a) North,Private & Voluntary Home Care,Milestones Trust,6137.77, 08-May-2013
1225,Revenue,CCHD,Supported Living - South,Private & Voluntary Home Care,Milestones Trust,2027, 03-May-2013
1226,Revenue,CCHD,Supported Living - South,Private & Voluntary Home Care,Milestones Trust,648.4, 03-May-2013
1227,Revenue,CCHD,Supported Living - South,Private & Voluntary Home Care,Milestones Trust,1759.72, 03-May-2013
1228,Revenue,CCHD,Supported Living - South,Private & Voluntary Home Care,Milestones Trust,691.05, 03-May-2013
1229,Revenue,CCHD,Supported Living (S28a) South,Private & Voluntary Home Care,Milestones Trust,2906.19, 08-May-2013
1230,Revenue,CCHD,Supported Living - South,Private & Voluntary Home Care,Milestones Trust,2703.23, 03-May-2013
1231,Revenue,CCHD,Supported Living (S28a) South,Private & Voluntary Home Care,Milestones Trust,3041, 08-May-2013
1232,Revenue,CCHD,Supported Living (S28a) South,Private & Voluntary Home Care,Milestones Trust,3065.85, 08-May-2013
1233,Revenue,CCHD,Purchase of Non-Res Care - South,Private & Voluntary Day Care,Milestones Trust,1309.83, 03-May-2013
1234,Revenue,CCHD,Purchase of Non-Res Care - South,Private & Voluntary Day Care,Milestones Trust,1263.78, 03-May-2013
1235,Revenue,CCHD,Purchase of Non-Res Care - South,Private & Voluntary Day Care,Milestones Trust,1080.61, 03-May-2013
1236,Revenue,CCHD,Purchase of Non-Res Care - South,Private & Voluntary Day Care,Milestones Trust,1636.44, 03-May-2013
1237,Revenue,CCHD,Purchase of Non-Res Care - South,Private & Voluntary Day Care,Milestones Trust,1353.45, 03-May-2013
1238,Revenue,CCHD,Purchase of Non-Res Care - South,Private & Voluntary Day Care,Milestones Trust,1735.34, 03-May-2013
1239,Revenue,CCHD,Purchase of Non-Res Care - South,Private & Voluntary Day Care,Milestones Trust,2577.25, 03-May-2013
1240,Revenue,CCHD,Purchase of Non-Res Care - South,Private & Voluntary Day Care,Milestones Trust,1448.9, 03-May-2013
1241,Revenue,CCHD,Purchase of Non-Res Care - South,Private & Voluntary Day Care,Milestones Trust,1513.13, 03-May-2013
1242,Revenue,CCHD,Purchase of Non-Res Care - South,Private & Voluntary Day Care,Milestones Trust,1141.45, 03-May-2013
1243,Revenue,CCHD,Supported Living - South,Private & Voluntary Home Care,Milestones Trust,1836.01, 03-May-2013
1244,Revenue,CCHD,Purchase of Non-Res Care - South,Private & Voluntary Day Care,Milestones Trust,1279.11, 03-May-2013
1245,Revenue,CCHD,Supported Living (S28a) North,Private & Voluntary Home Care,Milestones Trust,3842.95, 17-May-2013
1246,Revenue,CCHD,Supported Living (S28a) North,Private & Voluntary Home Care,Milestones Trust,3479.2, 17-May-2013
1247,Revenue,CCHD,Supported Living (S28a) North,Private & Voluntary Home Care,Milestones Trust,3479.2, 17-May-2013
1248,Revenue,CCHD,Supported Living - South,Private & Voluntary Home Care,Milestones Trust,14354.3, 09-May-2013
1249,Revenue,CCHD,Supported Living (S28a) North,Private & Voluntary Home Care,Milestones Trust,4869.99, 17-May-2013
1250,Revenue,CCHD,Supported Living - North,Private & Voluntary Home Care,Milestones Trust,4772.49, 14-May-2013
1251,Revenue,CCHD,Elderly MH Day Care South,Private & Voluntary Day Care,Milestones Trust,680, 21-May-2013
1252,Revenue,CCHD,Supported Living - South,Private & Voluntary Home Care,Milestones Trust,14459, 17-May-2013
1253,Revenue,CCHD,Supported Living (S28a) North,Private & Voluntary Home Care,Milestones Trust,1038.34, 30-May-2013
1254,Revenue,CCHD,Supported Living (S28a) South,Private & Voluntary Home Care,Milestones Trust,6349.38, 30-May-2013
1255,Revenue,CCHD,Supported Living (S28a) North,Private & Voluntary Home Care,Milestones Trust,4030.67, 30-May-2013
1256,Revenue,CCHD,Supported Living (S28a) North,Private & Voluntary Home Care,Milestones Trust,3512.6, 30-May-2013
1257,Revenue,CCHD,Supported Living (S28a) North,Private & Voluntary Home Care,Milestones Trust,3512.6, 30-May-2013
1258,Revenue,CCHD,Supported Living - South,Private & Voluntary Home Care,Milestones Trust,1275.14, 30-May-2013
1259,Revenue,CCHD,Supported Living - South,Private & Voluntary Home Care,Milestones Trust,563.67, 30-May-2013
1260,Revenue,CCHD,Supported Living (S28a) South,Private & Voluntary Home Care,Milestones Trust,640.92, 30-May-2013
1261,Revenue,CCHD,Supported Living (S28a) North,Private & Voluntary Home Care,Milestones Trust,3964.55, 30-May-2013
1262,Revenue,CCHD,Supported Living (S28a) North,Private & Voluntary Home Care,Milestones Trust,3964.55, 30-May-2013
1263,Revenue,CCHD,Supported Living - South,Private & Voluntary Home Care,Milestones Trust,545.41, 30-May-2013
1264,Revenue,CCHD,Supported Living - South,Private & Voluntary Home Care,Milestones Trust,914.06, 30-May-2013
1265,Revenue,CCHD,Supported Living - South,Private & Voluntary Home Care,Milestones Trust,929.23, 30-May-2013
1266,Revenue,CCHD,Supported Living (S28a) North,Private & Voluntary Home Care,Milestones Trust,8973.33, 30-May-2013
1267,Revenue,CCHD,Supported Living (S28a) North,Private & Voluntary Home Care,Milestones Trust,9001.72, 30-May-2013
1268,Revenue,CCHD,Supported Living (S28a) North,Private & Voluntary Home Care,Milestones Trust,4783.07, 30-May-2013
1269,Revenue,CCHD,Supported Living - South,Private & Voluntary Home Care,Milestones Trust,1780.93, 30-May-2013
1270,Revenue,CCHD,Supported Living - South,Private & Voluntary Home Care,Milestones Trust,652.9, 30-May-2013
1271,Revenue,CCHD,Supported Living - South,Private & Voluntary Home Care,Milestones Trust,1465.66, 30-May-2013
1272,Revenue,CCHD,Supported Living - South,Private & Voluntary Home Care,Milestones Trust,666.65, 30-May-2013
1273,Revenue,CCHD,Supported Living (S28a) South,Private & Voluntary Home Care,Milestones Trust,512.95, 30-May-2013
1274,Revenue,CCHD,Supported Living (S28a) South,Private & Voluntary Home Care,Milestones Trust,3362.53, 30-May-2013
1275,Revenue,CCHD,Supported Living (S28a) South,Private & Voluntary Home Care,Milestones Trust,2781.73, 30-May-2013
1276,Revenue,CCHD,Supported Living - South,Private & Voluntary Home Care,Milestones Trust,2691.56, 30-May-2013
1277,Revenue,CCHD,Supported Living (S28a) South,Private & Voluntary Home Care,Milestones Trust,3023.27, 30-May-2013
1278,Revenue,CCHD,Supported Living (S28a) North,Private & Voluntary Home Care,Milestones Trust,8340.07, 17-May-2013
1279,Revenue,CCHD,Bed Purchasing - S28A - Over 65- North,Residential Homes,Milestones Trust,2669.24, 14-May-2013
1280,Revenue,CCHD,Bed Purchasing - Elderly - South,Residential Homes,Milestones Trust,1408.28, 14-May-2013
1281,Revenue,CCHD,Bed Purchasing - Under 65s PWLD - South,Residential Homes,Milestones Trust,5703.84, 14-May-2013
1282,Revenue,CCHD,Bed purchasing - Elderly MH - North,Nursing Homes,Milestones Trust,2184.47, 14-May-2013
1283,Revenue,CCHD,Section 117 Placements MH Younger,Residential Homes,Milestones Trust,2342.62, 14-May-2013
1284,Revenue,CCHD,Bed purchasing - Elderly PWLD - North,Residential Homes,Milestones Trust,3420.84, 14-May-2013
1285,Revenue,CCHD,Bed Purchasing - Under 65s PWLD - South,Residential Homes,Milestones Trust,4882.36, 14-May-2013
1286,Revenue,CCHD,Bed Purchasing - Under 65s PWLD - South,Residential Homes,Milestones Trust,5458, 14-May-2013
1287,Revenue,CCHD,Bed Purchasing - Under 65s PWLD - South,Nursing Homes,Milestones Trust,2784.88, 14-May-2013
1288,Revenue,CCHD,Bed purchasing - Elderly MH - North,Nursing Homes,Milestones Trust,1434.2, 14-May-2013
1289,Revenue,CCHD,MH Purchasing - Younger,Nursing Homes,Milestones Trust,1473, 14-May-2013
1290,Revenue,CCHD,Section 117 Placements MH Younger,Nursing Homes,Milestones Trust,1615.36, 14-May-2013
1291,Revenue,CCHD,Bed purchasing - Elderly PWLD - South,Residential Homes,Milestones Trust,3602.92, 14-May-2013
1292,Revenue,CCHD,Bed purchasing - Elderly PWLD - South,Residential Homes,Milestones Trust,4144.04, 14-May-2013
1293,Revenue,CCHD,Bed purchasing -S28A  Under 65 - North,Nursing Homes,Milestones Trust,5853.56, 14-May-2013
1294,Revenue,CCHD,Bed purchasing -S28A  Under 65 - North,Residential Homes,Milestones Trust,5355.4, 14-May-2013
1295,Revenue,CCHD,Bed purchasing - Elderly PWLD - South,Residential Homes,Milestones Trust,3899.92, 14-May-2013
1296,Revenue,CCHD,Bed Purchasing - Under 65s PWLD - South,Residential Homes,Milestones Trust,9356.73, 14-May-2013
1297,Revenue,CCHD,Bed Purchasing - Elderly MH - South,Residential Homes,Milestones Trust,1290.88, 14-May-2013
1298,Revenue,CCHD,Bed Purchasing - Under 65s PWLD - South,Residential Homes,Milestones Trust,5090.24, 14-May-2013
1299,Revenue,CCHD,Bed purchasing - S28A Under 65 - South,Nursing Homes,Milestones Trust,7319.48, 14-May-2013
1300,Revenue,CCHD,MH Purchasing - Younger,Residential Homes,Milestones Trust,1020.8, 14-May-2013
1301,Revenue,CCHD,Bed purchasing - Elderly PWLD - South,Residential Homes,Milestones Trust,5145.48, 14-May-2013
1302,Revenue,CCHD,Bed purchasing - Elderly PWLD - South,Residential Homes,Milestones Trust,3823.68, 14-May-2013
1303,Revenue,CCHD,Bed purchasing - Elderly PWLD - North,Residential Homes,Milestones Trust,3027.2, 14-May-2013
1304,Revenue,CCHD,Bed purchasing -S28A  Under 65 - North,Residential Homes,Milestones Trust,5317.24, 14-May-2013
1305,Revenue,CCHD,Bed purchasing -S28A  Under 65 - North,Residential Homes,Milestones Trust,7077.48, 14-May-2013
1306,Revenue,CCHD,Bed purchasing -S28A  Under 65 - North,Nursing Homes,Milestones Trust,6272.72, 14-May-2013
1307,Revenue,CCHD,Bed Purchasing - Under 65s PWLD - South,Residential Homes,Milestones Trust,4535.2, 14-May-2013
1308,Revenue,CCHD,Bed purchasing -S28A  Under 65 - North,Residential Homes,Milestones Trust,6773.28, 14-May-2013
1309,Revenue,CCHD,Bed purchasing - S28A Under 65 - South,Residential Homes,Milestones Trust,4539.6, 14-May-2013
1310,Revenue,CCHD,Bed Purchasing - S28A - Over 65- North,Residential Homes,Milestones Trust,6510.76, 14-May-2013
1311,Revenue,CCHD,Bed Purchasing - LD S28A- Over 65- South,Residential Homes,Milestones Trust,4195.6, 14-May-2013
1312,Revenue,CCHD,Bed purchasing -S28A  Under 65 - North,Residential Homes,Milestones Trust,7077.48, 14-May-2013
1313,Revenue,CCHD,Bed purchasing -S28A  Under 65 - North,Residential Homes,Milestones Trust,7077.48, 14-May-2013
1314,Revenue,CCHD,Bed Purchasing - LD S28A- Over 65- South,Residential Homes,Milestones Trust,4117.16, 14-May-2013
1315,Revenue,CCHD,Bed purchasing - S28A Under 65 - South,Residential Homes,Milestones Trust,4882.36, 14-May-2013
1316,Revenue,CCHD,Bed purchasing - S28A Under 65 - South,Residential Homes,Milestones Trust,4775.6, 14-May-2013
1317,Revenue,CCHD,Bed purchasing - S28A Under 65 - South,Residential Homes,Milestones Trust,4301.68, 14-May-2013
1318,Revenue,CCHD,Bed Purchasing - LD S28A- Over 65- South,Residential Homes,Milestones Trust,5111.92, 14-May-2013
1319,Revenue,CCHD,Bed Purchasing - S28A - Over 65- North,Residential Homes,Milestones Trust,635.91, 14-May-2013
1320,Revenue,CCHD,Bed Purchasing - LD S28A- Over 65- South,Residential Homes,Milestones Trust,5051.8, 14-May-2013
1321,Revenue,CCHD,Bed Purchasing - LD S28A- Over 65- South,Residential Homes,Milestones Trust,5208.16, 14-May-2013
1322,Revenue,CCHD,Bed Purchasing - LD S28A- Over 65- South,Residential Homes,Milestones Trust,4372.64, 14-May-2013
1323,Revenue,CCHD,Bed Purchasing - LD S28A- Over 65- South,Residential Homes,Milestones Trust,5805.88, 14-May-2013
1324,Revenue,CCHD,Bed purchasing -S28A  Under 65 - North,Residential Homes,Milestones Trust,9179.96, 14-May-2013
1325,Revenue,CCHD,Bed purchasing -S28A  Under 65 - North,Nursing Homes,Milestones Trust,6356.08, 14-May-2013
1326,Revenue,CCHD,Bed Purchasing - LD S28A- Over 65- South,Residential Homes,Milestones Trust,4030.4, 14-May-2013
1327,Revenue,CCHD,Bed Purchasing - LD S28A- Over 65- South,Residential Homes,Milestones Trust,3011, 14-May-2013
1328,Revenue,CCHD,Bed Purchasing - S28A - Over 65- North,Residential Homes,Milestones Trust,2891.52, 14-May-2013
1329,Revenue,CCHD,Section 117 Placements MH Younger,Residential Homes,Milestones Trust,1336, 14-May-2013
1330,Revenue,CCHD,Bed purchasing - Elderly MH - North,Residential Homes,Milestones Trust,850, 14-May-2013
1331,Revenue,CCHD,Bed purchasing - S28A Under 65 - South,Residential Homes,Milestones Trust,4882.36, 14-May-2013
1332,Revenue,CCHD,Bed purchasing - Elderly PWLD - North,Residential Homes,Milestones Trust,4326.72, 14-May-2013
1333,Revenue,CCHD,Bed purchasing - Under 65s PWLD - North,Residential Homes,Milestones Trust,5564.04, 14-May-2013
1334,Revenue,CCHD,Bed purchasing - Elderly MH - North,Nursing Homes,Milestones Trust,1098.04, 14-May-2013
1335,Revenue,CCHD,Bed Purchasing - Under 65s PWLD - South,Residential Homes,Milestones Trust,4284.8, 14-May-2013
1336,Revenue,CCHD,Bed purchasing -S28A  Under 65 - North,Residential Homes,Milestones Trust,5691.56, 14-May-2013
1337,Revenue,CCHD,Bed Purchasing - S28A - Over 65- North,Residential Homes,Milestones Trust,3298.28, 14-May-2013
1338,Revenue,CCHD,Bed Purchasing - Elderly S117- North,Residential Homes,Milestones Trust,1732, 14-May-2013
1339,Revenue,CCHD,Bed Purchasing - Elderly S117- North,Residential Homes,Milestones Trust,1299, 14-May-2013
1340,Revenue,CCHD,MH Purchasing - Younger,Residential Homes,Milestones Trust,1020.8, 14-May-2013
1341,Revenue,CCHD,Bed Purchasing - S28A - Over 65- North,Residential Homes,Milestones Trust,3540.36, 14-May-2013
1342,Revenue,CCHD,Bed Purchasing - LD S28A- Over 65- South,Residential Homes,Milestones Trust,3900.48, 14-May-2013
1343,Revenue,CCHD,Bed purchasing - S28A Under 65 - South,Residential Homes,Milestones Trust,4938.12, 14-May-2013
1344,Revenue,CCHD,Bed purchasing - S28A Under 65 - South,Residential Homes,Milestones Trust,5826.2, 14-May-2013
1345,Revenue,CCHD,Bed Purchasing - LD S28A- Over 65- South,Residential Homes,Milestones Trust,5693.12, 14-May-2013
1346,Revenue,CCHD,Bed Purchasing - LD S28A- Over 65- South,Residential Homes,Milestones Trust,4823.12, 14-May-2013
1347,Revenue,CCHD,Bed Purchasing - LD S28A- Over 65- South,Residential Homes,Milestones Trust,4544.44, 14-May-2013
1348,Revenue,CCHD,Bed Purchasing - LD S28A- Over 65- South,Residential Homes,Milestones Trust,4619.68, 14-May-2013
1349,Revenue,CCHD,Bed purchasing - S28A Under 65 - South,Residential Homes,Milestones Trust,7342.16, 14-May-2013
1350,Revenue,CCHD,Bed Purchasing - LD S28A- Over 65- South,Residential Homes,Milestones Trust,4321.08, 14-May-2013
1351,Revenue,CCHD,Bed Purchasing - S28A - Over 65- North,Residential Homes,Milestones Trust,4788.84, 14-May-2013
1352,Revenue,CCHD,Bed Purchasing - S28A - Over 65- North,Residential Homes,Milestones Trust,3953.13, 14-May-2013
1353,Revenue,CCHD,Bed Purchasing - Elderly S117- North,Nursing Homes,Milestones Trust,1788, 14-May-2013
1354,Revenue,CCHD,Bed Purchasing - Elderly S117- North,Nursing Homes,Milestones Trust,1341, 14-May-2013
1355,Revenue,CCHD,Bed Purchasing - S28A - Over 65- North,Residential Homes,Milestones Trust,4608.32, 14-May-2013
1356,Revenue,CCHD,Bed Purchasing - S28A - Over 65- North,Residential Homes,Milestones Trust,4779.44, 14-May-2013
1357,Revenue,CCHD,Bed purchasing - S28A Under 65 - South,Residential Homes,Milestones Trust,4770.48, 14-May-2013
1358,Revenue,CCHD,Bed Purchasing - S28A - Over 65- North,Residential Homes,Milestones Trust,4522.8, 14-May-2013
1359,Revenue,CCHD,Bed purchasing - S28A Under 65 - South,Residential Homes,Milestones Trust,4608.24, 14-May-2013
1360,Revenue,CCHD,Bed purchasing -S28A  Under 65 - North,Residential Homes,Milestones Trust,7077.48, 14-May-2013
1361,Revenue,CCHD,Bed Purchasing - S28A - Over 65- North,Residential Homes,Milestones Trust,5631.96, 14-May-2013
1362,Revenue,CCHD,Bed purchasing -S28A  Under 65 - North,Residential Homes,Milestones Trust,2978.96, 14-May-2013
1363,Revenue,CCHD,Bed Purchasing - S28A - Over 65- North,Residential Homes,Milestones Trust,3150.68, 14-May-2013
1364,Revenue,CCHD,Bed Purchasing - S28A - Over 65- North,Residential Homes,Milestones Trust,3284.2, 14-May-2013
1365,Revenue,CCHD,Bed Purchasing - LD S28A- Over 65- South,Residential Homes,Milestones Trust,3102.88, 14-May-2013
1366,Revenue,CCHD,Bed Purchasing - Elderly - South,Nursing Homes,Milestones Trust,1468.52, 14-May-2013
1367,Revenue,CCHD,Bed purchasing - Under 65s PWLD - North,Residential Homes,Milestones Trust,6791.36, 14-May-2013
1368,Revenue,CCHD,MH Purchasing - Younger,Nursing Homes,Milestones Trust,924, 14-May-2013
1369,Revenue,CCHD,MH Purchasing - Younger,Nursing Homes,Milestones Trust,942, 14-May-2013
1370,Revenue,CCHD,Bed purchasing - Elderly PWLD - South,Residential Homes,Milestones Trust,3271.48, 14-May-2013
1371,Revenue,CCHD,Bed purchasing - S28A Under 65 - South,Residential Homes,Milestones Trust,5935.6, 14-May-2013
1372,Revenue,CCHD,Bed purchasing - S28A Under 65 - South,Residential Homes,Milestones Trust,6032.8, 14-May-2013
1373,Revenue,CCHD,Bed Purchasing - LD S28A- Over 65- South,Residential Homes,Milestones Trust,4372.64, 14-May-2013
1374,Revenue,CCHD,Bed Purchasing - Under 65s PWLD - South,Residential Homes,Milestones Trust,5936.04, 14-May-2013
1375,Revenue,CCHD,Bed Purchasing - LD S28A- Over 65- South,Nursing Homes,Milestones Trust,4464.72, 14-May-2013
1376,Revenue,CCHD,Bed Purchasing - LD S28A- Over 65- South,Residential Homes,Milestones Trust,5693.12, 14-May-2013
1377,Revenue,CCHD,Bed Purchasing - LD S28A- Over 65- South,Residential Homes,Milestones Trust,3627.32, 14-May-2013
1378,Revenue,CCHD,Bed Purchasing - LD S28A- Over 65- South,Residential Homes,Milestones Trust,4362.68, 14-May-2013
1379,Revenue,CCHD,Bed Purchasing - LD S28A- Over 65- South,Residential Homes,Milestones Trust,5975.88, 14-May-2013
1380,Revenue,CCHD,Bed Purchasing - Elderly MH - South,Residential Homes,Milestones Trust,1212.08, 14-May-2013
1381,Revenue,CCHD,Bed purchasing - S28A Under 65 - South,Nursing Homes,Milestones Trust,23357.07, 14-May-2013
1382,Revenue,CCHD,Bed purchasing - S28A Under 65 - South,Nursing Homes,Milestones Trust,5675.49, 14-May-2013
1383,Revenue,CCHD,Bed Purchasing - Under 65s PWLD - South,Residential Homes,Milestones Trust,17697.82, 14-May-2013
1384,Revenue,CCHD,Bed Purchasing - Under 65s PWLD - South,Residential Homes,Milestones Trust,9214.59, 14-May-2013
1385,Revenue,CCHD,Bed Purchasing - Elderly S117- North,Nursing Homes,Milestones Trust,1964, 14-May-2013
1386,Revenue,CCHD,Bed purchasing - Under 65s PWLD - North,Residential Homes,Milestones Trust,9550.6, 14-May-2013
1387,Revenue,CCHD,Section 117 Placements MH Younger,Residential Homes,Milestones Trust,2338, 14-May-2013
1388,Revenue,CCHD,Bed Purchasing - LD S28A- Over 65- South,Nursing Homes,Milestones Trust,3020.64, 14-May-2013
1389,Revenue,CCHD,Bed Purchasing - LD S28A- Over 65- South,Nursing Homes,Milestones Trust,2573.72, 14-May-2013
1390,Revenue,CCHD,Bed Purchasing - LD S28A- Over 65- South,Nursing Homes,Milestones Trust,3298.72, 14-May-2013
1391,Revenue,CCHD,Bed Purchasing - S28A - Over 65- North,Nursing Homes,Milestones Trust,3649.32, 14-May-2013
1392,Revenue,CCHD,Bed Purchasing - S28A - Over 65- North,Nursing Homes,Milestones Trust,3649.32, 14-May-2013
1393,Revenue,CCHD,Bed Purchasing - PWLD S 117 Placements,Residential Homes,Milestones Trust,33537.35, 14-May-2013
1394,Revenue,CCHD,Bed Purchasing - Southmead Hospital,Residential Homes,Mimosa Healthcare Holdings Ltd,6224.92, 14-May-2013
1395,Revenue,CCHD,Bed Purchasing - Southmead Hospital,Nursing Homes,Mimosa Healthcare Holdings Ltd,1024.54, 14-May-2013
1396,Revenue,CCHD,Bed purchasing - Elderly S117 - South,Residential Homes,Mostyn Lodge Residential Home,1900, 14-May-2013
1397,Revenue,CCHD,Bed Purchasing - Frenchay Hospital,Residential Homes,Mostyn Lodge Residential Home,617.08, 14-May-2013
1398,Revenue,CCHD,Supported Living - South,Private & Voluntary Home Care,Moving On,3720.61, 15-May-2013
1399,Revenue,CCHD,Supported Living - South,Private & Voluntary Home Care,Moving On,3622.06, 24-May-2013
1400,Revenue,CCHD,Supported Living - South,Private & Voluntary Home Care,Moving On,6565.42, 15-May-2013
1401,Revenue,CCHD,Supported Living - South,Private & Voluntary Home Care,Moving On,6406.6, 24-May-2013
1402,Revenue,CCHD,Social Lettings Agency,Other Supplies & Services,Individual,565, 22-May-2013
1403,Revenue,CCHD,Social Lettings Agency,Other Supplies & Services,Individual,655.41, 01-May-2013
1404,Revenue,CCHD,Social Lettings Agency,Other Supplies & Services,Individual,655.41, 31-May-2013
1405,Revenue,CCHD,Social Lettings Agency,Other Supplies & Services,Individual,850, 20-May-2013
1406,Revenue,CCHD,Tenancy Start Up Scheme,Other Supplies & Services,Individual,625, 24-May-2013
1407,Revenue,CCHD,Bed Purchasing - Under 65s PWLD - South,Residential Homes,Mr J Davis & Mrs S Davis,1583.52, 21-May-2013
1408,Revenue,CCHD,Social Lettings Agency,Other Supplies & Services,Individual,565, 08-May-2013
1409,Revenue,CCHD,Social Lettings Agency,Other Supplies & Services,Individual,632.81, 20-May-2013
1410,Revenue,CCHD,Social Lettings Agency,Other Supplies & Services,Individual,551.44, 08-May-2013
1411,Revenue,CCHD,Social Lettings Agency,Other Supplies & Services,Individual,565, 01-May-2013
1412,Revenue,CCHD,Social Lettings Agency,Other Supplies & Services,Individual,565, 31-May-2013
1413,Revenue,CCHD,Social Lettings Agency,Other Supplies & Services,Individual,572.8, 16-May-2013
1414,Revenue,CCHD,Social Lettings Agency,Other Supplies & Services,Individual,632.81, 13-May-2013
1415,Revenue,CCHD,Supported Living - South,Private & Voluntary Home Care,Mrs B Kimber,8296.66, 21-May-2013
1416,Revenue,CCHD,Supported Living - South,Private & Voluntary Home Care,Mrs B Kimber,10316.67, 17-May-2013
1417,Revenue,CCHD,Day Care - North,Private & Voluntary Day Care,Mrs B Kimber,684.21, 24-May-2013
1418,Revenue,CCHD,Supported Living - North,Private & Voluntary Home Care,Mrs B Kimber,891.57, 21-May-2013
1419,Revenue,CCHD,Supported Living - South,Private & Voluntary Home Care,Mrs B Kimber,1338.42, 21-May-2013
1420,Revenue,CCHD,Purchase of Non-Res Care - South,Private & Voluntary Day Care,Mrs B Kimber,1084.2, 30-May-2013
1421,Revenue,CCHD,Elderly MH Day Care South,Private & Voluntary Day Care,Mrs B Kimber,669.42, 21-May-2013
1422,Revenue,CCHD,Home Care - Elderly - South,Other Small Contracts,Mrs B Kimber - Stepping Stones,6050.7, 15-May-2013
1423,Revenue,CCHD,Home Care - Elderly - North,Other Small Contracts,Mrs B Kimber - Stepping Stones,4290.93, 15-May-2013
1424,Revenue,CCHD,Day Care - South,Private & Voluntary Day Care,Mrs B Kimber - Stepping Stones,514.35, 15-May-2013
1425,Revenue,CCHD,Day Care - North,Private & Voluntary Day Care,Mrs B Kimber - Stepping Stones,97.2, 15-May-2013
1426,Revenue,CCHD,Elderly MH Day Care North,Private & Voluntary Day Care,Mrs B Kimber - Stepping Stones,97.2, 15-May-2013
1427,Revenue,CCHD,Home care - Elderly MH - South,Other Small Contracts,Mrs B Kimber - Stepping Stones,218.7, 15-May-2013
1428,Revenue,CCHD,Supported Living - North,Private & Voluntary Home Care,Mrs B Kimber - Stepping Stones,793.8, 15-May-2013
1429,Revenue,CCHD,PWLD Home Care - Under 65 - KH,Private & Voluntary Home Care,Mrs B Kimber - Stepping Stones,89.1, 15-May-2013
1430,Revenue,CCHD,Home Care - Elderly LD - North,Private & Voluntary Home Care,Mrs B Kimber - Stepping Stones,972, 15-May-2013
1431,Revenue,CCHD,Home Care - Elderly - South,Other Small Contracts,Mrs B Kimber - Stepping Stones,6330.15, 15-May-2013
1432,Revenue,CCHD,Home Care - Elderly - North,Other Small Contracts,Mrs B Kimber - Stepping Stones,4428.63, 15-May-2013
1433,Revenue,CCHD,Day Care - South,Private & Voluntary Day Care,Mrs B Kimber - Stepping Stones,473.85, 15-May-2013
1434,Revenue,CCHD,Day Care - North,Private & Voluntary Day Care,Mrs B Kimber - Stepping Stones,32.4, 15-May-2013
1435,Revenue,CCHD,Elderly MH Day Care North,Private & Voluntary Day Care,Mrs B Kimber - Stepping Stones,97.2, 15-May-2013
1436,Revenue,CCHD,Home care - Elderly MH - South,Other Small Contracts,Mrs B Kimber - Stepping Stones,218.7, 15-May-2013
1437,Revenue,CCHD,Supported Living - North,Private & Voluntary Home Care,Mrs B Kimber - Stepping Stones,834.3, 15-May-2013
1438,Revenue,CCHD,PWLD Home Care - Under 65 - KH,Private & Voluntary Home Care,Mrs B Kimber - Stepping Stones,89.1, 15-May-2013
1439,Revenue,CCHD,Home Care - Elderly LD - North,Private & Voluntary Home Care,Mrs B Kimber - Stepping Stones,741.15, 15-May-2013
1440,Revenue,CCHD,Home Care - Elderly - South,Other Small Contracts,Mrs B Kimber - Stepping Stones,6488.1, 30-May-2013
1441,Revenue,CCHD,Home Care - Elderly - North,Other Small Contracts,Mrs B Kimber - Stepping Stones,3979.08, 30-May-2013
1442,Revenue,CCHD,Day Care - South,Private & Voluntary Day Care,Mrs B Kimber - Stepping Stones,550.8, 30-May-2013
1443,Revenue,CCHD,Day Care - North,Private & Voluntary Day Care,Mrs B Kimber - Stepping Stones,97.2, 30-May-2013
1444,Revenue,CCHD,Elderly MH Day Care North,Private & Voluntary Day Care,Mrs B Kimber - Stepping Stones,97.2, 30-May-2013
1445,Revenue,CCHD,Home care - Elderly MH - South,Other Small Contracts,Mrs B Kimber - Stepping Stones,218.7, 30-May-2013
1446,Revenue,CCHD,Supported Living - North,Private & Voluntary Home Care,Mrs B Kimber - Stepping Stones,490.05, 30-May-2013
1447,Revenue,CCHD,PWLD Home Care - Under 65 - KH,Private & Voluntary Home Care,Mrs B Kimber - Stepping Stones,89.1, 30-May-2013
1448,Revenue,CCHD,Home Care - Elderly LD - North,Private & Voluntary Home Care,Mrs B Kimber - Stepping Stones,530.55, 30-May-2013
1449,Revenue,CCHD,Home Care - Elderly - South,Other Small Contracts,Mrs B Kimber - Stepping Stones,6723, 30-May-2013
1450,Revenue,CCHD,Home Care - Elderly - North,Other Small Contracts,Mrs B Kimber - Stepping Stones,3196.95, 30-May-2013
1451,Revenue,CCHD,Day Care - South,Private & Voluntary Day Care,Mrs B Kimber - Stepping Stones,510.3, 30-May-2013
1452,Revenue,CCHD,Day Care - North,Private & Voluntary Day Care,Mrs B Kimber - Stepping Stones,28.35, 30-May-2013
1453,Revenue,CCHD,Elderly MH Day Care North,Private & Voluntary Day Care,Mrs B Kimber - Stepping Stones,97.2, 30-May-2013
1454,Revenue,CCHD,Home care - Elderly MH - South,Other Small Contracts,Mrs B Kimber - Stepping Stones,226.8, 30-May-2013
1455,Revenue,CCHD,PWLD Home Care - Under 65 - KH,Private & Voluntary Home Care,Mrs B Kimber - Stepping Stones,89.1, 30-May-2013
1456,Revenue,CCHD,Social Lettings Agency,Other Supplies & Services,Individual,565, 17-May-2013
1457,Revenue,CCHD,Social Lettings Agency,Other Supplies & Services,Individual,565, 24-May-2013
1458,Revenue,CCHD,Social Lettings Agency,Other Supplies & Services,Individual,565, 01-May-2013
1459,Revenue,CCHD,Social Lettings Agency,Other Supplies & Services,Individual,565, 31-May-2013
1460,Revenue,CCHD,Supported Living - North,Residential Homes,Mrs I M Bowerman,1300.86, 28-May-2013
1461,Revenue,CCHD,Social Lettings Agency,Other Supplies & Services,Individual,565, 10-May-2013
1462,Revenue,CCHD,Social Lettings Agency,Other Supplies & Services,Individual,655.41, 16-May-2013
1463,Revenue,CCHD,Purchase of Non-Res Care - North,Private & Voluntary Day Care,Mrs W Thompson,1484.4, 02-May-2013
1464,Revenue,CCHD,Purchase of Non-Res Care - North,Private & Voluntary Day Care,Mrs W Thompson,563.28, 02-May-2013
1465,Revenue,CCHD,Purchase of Non-Res Care - North,Private & Voluntary Day Care,Mrs W Thompson,1484, 30-May-2013
1466,Revenue,CCHD,Purchase of Non-Res Care - North,Private & Voluntary Day Care,Mrs W Thompson,563.28, 30-May-2013
1467,Revenue,CCHD,Social Lettings Agency,Other Supplies & Services,Individual,858.8, 10-May-2013
1468,Revenue,CCHD,Alexandra Way,Cleaning & Domestic Services,Muzzell Healthcare,489.65, 08-May-2013
1469,Revenue,CCHD,Younger MH non-res purchasing,Private & Voluntary Day Care,NAS Services Limited,578.8, 24-May-2013
1470,Revenue,CCHD,Younger MH non-res purchasing,Private & Voluntary Day Care,NAS Services Limited,782.6, 24-May-2013
1471,Revenue,CCHD,Younger MH non-res purchasing,Private & Voluntary Day Care,NAS Services Limited,706.7, 24-May-2013
1472,Revenue,CCHD,Younger MH non-res purchasing,Private & Voluntary Day Care,NAS Services Limited,706.7, 30-May-2013
1473,Revenue,CCHD,Bed Purchasing - Under 65s PWLD - South,Residential Homes,National Star College,4514.99, 14-May-2013
1474,Revenue,CCHD,Bed purchasing - Phys Dis - South,Residential Homes,National Star College FDY Limited,5539.33, 17-May-2013
1475,Revenue,CCHD,Learning Difficulties Development Fund,Other Supplies & Services,Natureworks Training Community Interest,5750, 13-May-2013
1476,Revenue,CCHD,Home Care - Elderly - South,Other Small Contracts,Network Health & Social Care,1401.4, 03-May-2013
1477,Revenue,CCHD,Home Care - Elderly - North,Other Small Contracts,Network Health & Social Care,2748.9, 03-May-2013
1478,Revenue,CCHD,Day Care - North,Private & Voluntary Day Care,Network Health & Social Care,26.95, 03-May-2013
1479,Revenue,CCHD,Social Lettings Agency,Other Supplies & Services,Individual,565, 03-May-2013
1480,Revenue,CCHD,Access Team,"Holidays, Outings & Visits",Neville Williams,1008, 31-May-2013
1481,Revenue,CCHD,Bed Purchasing - Under 65s PWLD - South,Residential Homes,Nightingale Nursing Home,3105.36, 14-May-2013
1482,Revenue,CCHD,Younger MH non-res purchasing,Private & Voluntary Day Care,North Somerset Council,3105.85, 01-May-2013
1483,Revenue,CCHD,Information Systems - Software,Software Support & Maintenance,Northgate Information Solutions UK Limited,8000, 03-May-2013
1484,Revenue,CCHD,Training - Adult Services,Training Expenses,Northgate Information Solutions UK Limited,1000, 10-May-2013
1485,Revenue,CCHD,Bed Purchasing - Under 65s PWLD - South,Residential Homes,Norwood   Broadway House,4899.44, 14-May-2013
1486,Revenue,CCHD,Bed Purchasing - Elderly MH - South,Residential Homes,Notaro Homes Ltd  Queensmead Court,1857.32, 14-May-2013
1487,Revenue,CCHD,Bed Purchasing - Southmead Hospital,Residential Homes,Notaro Homes Ltd  Queensmead Court,1371.32, 14-May-2013
1488,Revenue,CCHD,Section 117 Placements MH Younger,Residential Homes,Notaro Homes Ltd  Queensmead Court,5300.4, 14-May-2013
1489,Revenue,CCHD,Home Care - Elderly - South,Other Small Contracts,Nursing Solutions Limited,1428.2, 13-May-2013
1490,Revenue,CCHD,Home Care - Elderly - South,Other Small Contracts,Nursing Solutions Limited,1269.94, 13-May-2013
1491,Revenue,CCHD,Home Care - Elderly - South,Other Small Contracts,Nursing Solutions Limited,1037.4, 13-May-2013
1492,Revenue,CCHD,Home Care - Elderly - South,Other Small Contracts,Nursing Solutions Limited,1014, 13-May-2013
1493,Revenue,CCHD,Home Care - Elderly - South,Other Small Contracts,Nursing Solutions Limited,819, 13-May-2013
1494,Revenue,CCHD,Section 117 Placements MH Younger,Nursing Homes,Oaklands,6000, 14-May-2013
1495,Revenue,CCHD,Tenancy Start Up Scheme,Other Supplies & Services,Ocean Estate Agents,1606, 09-May-2013
1496,Revenue,CCHD,Woodleaze,Refuse Collection Charges,OCS Group UK Ltd,468.51, 09-May-2013
1497,Revenue,CCHD,Home Care - Elderly - South,Other Small Contracts,On the Up,550.08, 15-May-2013
1498,Revenue,CCHD,Home Care - Elderly - North,Other Small Contracts,On the Up,129.88, 15-May-2013
1499,Revenue,CCHD,Day Care - South,Private & Voluntary Day Care,On the Up,565.68, 15-May-2013
1500,Revenue,CCHD,Day Care - North,Private & Voluntary Day Care,On the Up,396.72, 15-May-2013
1501,Revenue,CCHD,Younger MH non-res purchasing,Private & Voluntary Day Care,On the Up,36.48, 15-May-2013
1502,Revenue,CCHD,Elderly MH Day Care North,Private & Voluntary Day Care,On the Up,61.12, 15-May-2013
1503,Revenue,CCHD,Home Care - Elderly - South,Other Small Contracts,On the Up,615.02, 30-May-2013
1504,Revenue,CCHD,Home Care - Elderly - North,Other Small Contracts,On the Up,91.68, 30-May-2013
1505,Revenue,CCHD,Day Care - South,Private & Voluntary Day Care,On the Up,484.34, 30-May-2013
1506,Revenue,CCHD,Day Care - North,Private & Voluntary Day Care,On the Up,401.28, 30-May-2013
1507,Revenue,CCHD,Elderly MH Day Care North,Private & Voluntary Day Care,On the Up,61.12, 30-May-2013
1508,Revenue,CCHD,Home Care - Elderly - South,Other Small Contracts,On the Up,652.34, 15-May-2013
1509,Revenue,CCHD,Home Care - Elderly - North,Other Small Contracts,On the Up,138.96, 15-May-2013
1510,Revenue,CCHD,Day Care - South,Private & Voluntary Day Care,On the Up,552.48, 15-May-2013
1511,Revenue,CCHD,Day Care - North,Private & Voluntary Day Care,On the Up,396.72, 15-May-2013
1512,Revenue,CCHD,Younger MH non-res purchasing,Private & Voluntary Day Care,On the Up,36.48, 15-May-2013
1513,Revenue,CCHD,Elderly MH Day Care North,Private & Voluntary Day Care,On the Up,123.52, 15-May-2013
1514,Revenue,CCHD,Home Care - Elderly - South,Other Small Contracts,On the Up,1003.6, 15-May-2013
1515,Revenue,CCHD,Home Care - Elderly - North,Other Small Contracts,On the Up,138.96, 15-May-2013
1516,Revenue,CCHD,Day Care - South,Private & Voluntary Day Care,On the Up,155.76, 15-May-2013
1517,Revenue,CCHD,Day Care - North,Private & Voluntary Day Care,On the Up,410.4, 15-May-2013
1518,Revenue,CCHD,Younger MH non-res purchasing,Private & Voluntary Day Care,On the Up,36.48, 15-May-2013
1519,Revenue,CCHD,Elderly MH Day Care North,Private & Voluntary Day Care,On the Up,50.18, 15-May-2013
1520,Revenue,CCHD,Bed purchasing - Under 65s PWLD - North,Residential Homes,Orchard End Limited,6919.82, 14-May-2013
1521,Revenue,CCHD,Bed purchasing -S28A  Under 65 - North,Residential Homes,Orchard End Limited,546.58, 14-May-2013
1522,Revenue,CCHD,Turnberries,"Provisions (Food, etc)",Origin Cafe,550.8, 30-May-2013
1523,Revenue,CCHD,Bed Purchasing - Elderly S117- North,Residential Homes,Osbourne Court,1900, 14-May-2013
1524,Revenue,CCHD,Bed Purchasing - Elderly - North,Residential Homes,Osbourne Court,2639.36, 14-May-2013
1525,Revenue,CCHD,Bed Purchasing - Elderly - North,Residential Homes,Osbourne Court,2413.44, 14-May-2013
1526,Revenue,CCHD,Bed Purchasing - Elderly S117- North,Residential Homes,Osbourne Court,1732.48, 14-May-2013
1527,Revenue,CCHD,Bed Purchasing - Elderly - North,Residential Homes,Osbourne Court,1414, 14-May-2013
1528,Revenue,CCHD,Bed Purchasing - Elderly S117- North,Residential Homes,Osbourne Court,1900, 14-May-2013
1529,Revenue,CCHD,Bed Purchasing - Elderly - North,Residential Homes,Osbourne Court,1191.17, 14-May-2013
1530,Revenue,CCHD,Bed Purchasing - Southmead Hospital,Residential Homes,Osbourne Court,859.4, 14-May-2013
1531,Revenue,CCHD,Bed Purchasing - Under 65s PWLD - South,Residential Homes,Osprey Court,13364.33, 14-May-2013
1532,Revenue,CCHD,Bed purchasing - S28A Under 65 - South,Residential Homes,Osprey Court,4259.36, 14-May-2013
1533,Revenue,CCHD,Bed purchasing - S28A Under 65 - South,Residential Homes,Osprey Court,6305.32, 14-May-2013
1534,Revenue,CCHD,Learning Difficulties Development Fund,Other Supplies & Services,Our Place Community Flat,4660, 02-May-2013
1535,Revenue,CCHD,Bed Purchasing - Southmead Hospital,Nursing Homes,Palm Court Nursing Home,1503.36, 14-May-2013
1536,Revenue,CCHD,Bed Purchasing - Elderly MH - South,Residential Homes,Park Farm House,1333.44, 14-May-2013
1537,Revenue,CCHD,Bed Purchasing - Elderly - South,Residential Homes,Park Farm House,1780.96, 14-May-2013
1538,Revenue,CCHD,Bed Purchasing - Elderly - South,Residential Homes,Park Farm House,1335.72, 14-May-2013
1539,Revenue,CCHD,Bed Purchasing - Elderly - South,Residential Homes,Park Farm House,950, 14-May-2013
1540,Revenue,CCHD,Bed Purchasing - Elderly MH - South,Residential Homes,Park Farm House,1593.2, 14-May-2013
1541,Revenue,CCHD,Bed Purchasing - Under 65s PWLD - South,Residential Homes,Park Hall,5552, 14-May-2013
1542,Revenue,CCHD,Bed purchasing - Under 65s PWLD - North,Residential Homes,Park Hall,5131.28, 14-May-2013
1543,Revenue,CCHD,Bed Purchasing - Under 65s PWLD - South,Residential Homes,Park Hall,4940.84, 14-May-2013
1544,Revenue,CCHD,Bed purchasing - Elderly PWLD - South,Residential Homes,Park Hall,2520.96, 14-May-2013
1545,Revenue,CCHD,Bed Purchasing - Under 65s PWLD - South,Residential Homes,Park Hall,3824.16, 14-May-2013
1546,Revenue,CCHD,Bed purchasing - Elderly PWLD - North,Residential Homes,Park Hall,4897.8, 14-May-2013
1547,Revenue,CCHD,Bed purchasing - S28A Under 65 - South,Residential Homes,Park Hall,4614.16, 14-May-2013
1548,Revenue,CCHD,Bed Purchasing - Under 65s PWLD - South,Residential Homes,Park Hall,4917.16, 14-May-2013
1549,Revenue,CCHD,Bed purchasing - Under 65s PWLD - North,Residential Homes,Park Hall,4242.04, 14-May-2013
1550,Revenue,CCHD,Bed Purchasing - S28A - Over 65- North,Residential Homes,Park Hall,5286.8, 14-May-2013
1551,Revenue,CCHD,Bed Purchasing - Under 65s PWLD - South,Residential Homes,Park Hall,10610.92, 14-May-2013
1552,Revenue,CCHD,Bed purchasing -S28A  Under 65 - North,Residential Homes,Park Hall,5844.16, 14-May-2013
1553,Revenue,CCHD,Bed purchasing - S28A Under 65 - South,Residential Homes,Park Hall,5565.72, 14-May-2013
1554,Revenue,CCHD,Bed Purchasing - Elderly - North,Residential Homes,Park House Residential Home,779.84, 14-May-2013
1555,Revenue,CCHD,Minor Adaptations Service,Operational Equipment,Patterson Medical Limited,997.43, 22-May-2013
1556,Revenue,CCHD,Social Lettings Agency,Other Supplies & Services,Individual,565, 28-May-2013
1557,Revenue,CCHD,Bed Purchasing - Under 65s PWLD - South,Residential Homes,Penleigh House Care Home,4493.52, 14-May-2013
1558,Revenue,CCHD,Bed Purchasing - Under 65s PWLD - South,Residential Homes,Penleigh House Care Home,5224.4, 14-May-2013
1559,Revenue,CCHD,Bed purchasing - Elderly PWLD - South,Residential Homes,Penleigh House Care Home,4258.48, 14-May-2013
1560,Revenue,CCHD,Bed purchasing - S28A Under 65 - South,Residential Homes,Penleigh House Care Home,5417.04, 14-May-2013
1561,Revenue,CCHD,Bed Purchasing - Under 65s PWLD - South,Residential Homes,Penleigh House Care Home,4893.28, 14-May-2013
1562,Revenue,CCHD,Supporting People Programme,Grants to Voluntary Bodies,Places for People,1117.67, 01-May-2013
1563,Revenue,CCHD,Supporting People Programme,Grants to Voluntary Bodies,Places for People,1117.67, 31-May-2013
1564,Revenue,CCHD,Bed and Breakfast,Bed & Breakfast,Pleasant Bed & Breakfast Limited,588, 24-May-2013
1565,Revenue,CCHD,Bed and Breakfast,Bed & Breakfast,Pleasant Bed & Breakfast Limited,588, 24-May-2013
1566,Revenue,CCHD,Home Care - Elderly - South,Other Small Contracts,Premier Homecare Limited,811.68, 15-May-2013
1567,Revenue,CCHD,Home Care - Elderly - North,Other Small Contracts,Premier Homecare Limited,7118.16, 15-May-2013
1568,Revenue,CCHD,Younger MH non-res purchasing,Private & Voluntary Day Care,Premier Homecare Limited,31.92, 15-May-2013
1569,Revenue,CCHD,Home care - Elderly MH - North,Other Small Contracts,Premier Homecare Limited,164.16, 15-May-2013
1570,Revenue,CCHD,Elderly MH Day Care North,Private & Voluntary Day Care,Premier Homecare Limited,150.48, 15-May-2013
1571,Revenue,CCHD,Home Care - Elderly - South,Other Small Contracts,Premier Homecare Limited,766.08, 15-May-2013
1572,Revenue,CCHD,Home Care - Elderly - North,Other Small Contracts,Premier Homecare Limited,7574.16, 15-May-2013
1573,Revenue,CCHD,Younger MH non-res purchasing,Private & Voluntary Day Care,Premier Homecare Limited,27.36, 15-May-2013
1574,Revenue,CCHD,Home care - Elderly MH - North,Other Small Contracts,Premier Homecare Limited,164.16, 15-May-2013
1575,Revenue,CCHD,Elderly MH Day Care North,Private & Voluntary Day Care,Premier Homecare Limited,159.6, 15-May-2013
1576,Revenue,CCHD,Home Care - Elderly - South,Other Small Contracts,Premier Homecare Limited,542.64, 30-May-2013
1577,Revenue,CCHD,Home Care - Elderly - North,Other Small Contracts,Premier Homecare Limited,7961.76, 30-May-2013
1578,Revenue,CCHD,Younger MH non-res purchasing,Private & Voluntary Day Care,Premier Homecare Limited,27.36, 30-May-2013
1579,Revenue,CCHD,Home care - Elderly MH - North,Other Small Contracts,Premier Homecare Limited,164.16, 30-May-2013
1580,Revenue,CCHD,Elderly MH Day Care North,Private & Voluntary Day Care,Premier Homecare Limited,209.76, 30-May-2013
1581,Revenue,CCHD,Home Care - Elderly - South,Other Small Contracts,Premier Homecare Limited,387.6, 30-May-2013
1582,Revenue,CCHD,Home Care - Elderly - North,Other Small Contracts,Premier Homecare Limited,7478.4, 30-May-2013
1583,Revenue,CCHD,Day Care - North,Private & Voluntary Day Care,Premier Homecare Limited,13.68, 30-May-2013
1584,Revenue,CCHD,Younger MH non-res purchasing,Private & Voluntary Day Care,Premier Homecare Limited,27.36, 30-May-2013
1585,Revenue,CCHD,Home care - Elderly MH - North,Other Small Contracts,Premier Homecare Limited,164.16, 30-May-2013
1586,Revenue,CCHD,Elderly MH Day Care North,Private & Voluntary Day Care,Premier Homecare Limited,155.04, 30-May-2013
1587,Revenue,CCHD,Home Care - Elderly - South,Other Small Contracts,Prestige Nursing,866.81, 15-May-2013
1588,Revenue,CCHD,Home Care - Elderly - North,Other Small Contracts,Prestige Nursing,1234.03, 15-May-2013
1589,Revenue,CCHD,Day Care - South,Private & Voluntary Day Care,Prestige Nursing,166.53, 15-May-2013
1590,Revenue,CCHD,Day Care - North,Private & Voluntary Day Care,Prestige Nursing,644.77, 15-May-2013
1591,Revenue,CCHD,Home Care - Elderly - South,Other Small Contracts,Prestige Nursing,939.58, 15-May-2013
1592,Revenue,CCHD,Home Care - Elderly - North,Other Small Contracts,Prestige Nursing,1249.7, 15-May-2013
1593,Revenue,CCHD,Day Care - South,Private & Voluntary Day Care,Prestige Nursing,202.57, 15-May-2013
1594,Revenue,CCHD,Day Care - North,Private & Voluntary Day Care,Prestige Nursing,680.5, 15-May-2013
1595,Revenue,CCHD,Elderly MH Day Care North,Private & Voluntary Day Care,Prestige Nursing,189.64, 15-May-2013
1596,Revenue,CCHD,Home Care - Elderly - South,Other Small Contracts,Prestige Nursing,974.06, 15-May-2013
1597,Revenue,CCHD,Home Care - Elderly - North,Other Small Contracts,Prestige Nursing,1379.2, 15-May-2013
1598,Revenue,CCHD,Day Care - South,Private & Voluntary Day Care,Prestige Nursing,249.98, 15-May-2013
1599,Revenue,CCHD,Day Care - North,Private & Voluntary Day Care,Prestige Nursing,676.19, 15-May-2013
1600,Revenue,CCHD,Elderly MH Day Care North,Private & Voluntary Day Care,Prestige Nursing,189.64, 15-May-2013
1601,Revenue,CCHD,Bed purchasing - Elderly MH - North,Nursing Homes,Ravenswood,1269.48, 14-May-2013
1602,Revenue,CCHD,Bed Purchasing - Elderly - South,Residential Homes,Ravenswood,3803.36, 14-May-2013
1603,Revenue,CCHD,Bed Purchasing - Elderly - North,Nursing Homes,Ravenswood,1536.52, 14-May-2013
1604,Revenue,CCHD,Bed Purchasing - PWLD S 117 Placements,Residential Homes,Real Life Options,7979.92, 14-May-2013
1605,Revenue,CCHD,Bed Purchasing - Elderly S117- North,Nursing Homes,Redholme Memory Care Limited,1962.8, 14-May-2013
1606,Revenue,CCHD,Supporting People Programme,Grants to Voluntary Bodies,Redland Housing Association Ltd,726.92, 01-May-2013
1607,Revenue,CCHD,Supporting People Programme,Grants to Voluntary Bodies,Redland Housing Association Ltd,726.92, 31-May-2013
1608,Revenue,CCHD,Bed Purchasing - Elderly - South,Nursing Homes,Regent House,2224.96, 14-May-2013
1609,Revenue,CCHD,Bed Purchasing - Elderly - South,Nursing Homes,Regent House,1649.08, 14-May-2013
1610,Revenue,CCHD,Bed Purchasing - Elderly - South,Nursing Homes,Regent House,1951.08, 14-May-2013
1611,Revenue,CCHD,Bed Purchasing - Elderly MH - South,Nursing Homes,Regent House,1995.88, 14-May-2013
1612,Revenue,CCHD,Bed Purchasing - Elderly - South,Nursing Homes,Regent House,1699.68, 14-May-2013
1613,Revenue,CCHD,Bed Purchasing - Elderly - South,Nursing Homes,Regent House,2044.68, 14-May-2013
1614,Revenue,CCHD,Bed Purchasing - Southmead Hospital,Nursing Homes,Regent House,2681.63, 14-May-2013
1615,Revenue,CCHD,Bed Purchasing - Elderly - South,Nursing Homes,Regent House,1977.08, 14-May-2013
1616,Revenue,CCHD,Bed Purchasing - Elderly - South,Nursing Homes,Regent House,1803.4, 14-May-2013
1617,Revenue,CCHD,Bed Purchasing - Elderly - South,Nursing Homes,Regent House,1649.08, 14-May-2013
1618,Revenue,CCHD,Bed Purchasing - Elderly - South,Nursing Homes,Regent House,616.04, 14-May-2013
1619,Revenue,CCHD,Bed Purchasing - Elderly - South,Nursing Homes,Regent House,2052.28, 14-May-2013
1620,Revenue,CCHD,Bed Purchasing - Southmead Hospital,Nursing Homes,Regent House,1388.52, 14-May-2013
1621,Revenue,CCHD,Bed Purchasing - Elderly - South,Nursing Homes,Regent House,2118.96, 14-May-2013
1622,Revenue,CCHD,Bed Purchasing - Elderly - South,Nursing Homes,Regent House,1589.22, 14-May-2013
1623,Revenue,CCHD,Bed Purchasing - Elderly - South,Nursing Homes,Regent House,1646.36, 14-May-2013
1624,Revenue,CCHD,Bed Purchasing - Elderly MH - South,Nursing Homes,Regent House,1192.64, 14-May-2013
1625,Revenue,CCHD,Bed purchasing - Elderly MH - North,Nursing Homes,Regent House,1277.24, 14-May-2013
1626,Revenue,CCHD,Bed Purchasing - Elderly - South,Nursing Homes,Regent House,2605.96, 14-May-2013
1627,Revenue,CCHD,Bed Purchasing - Under 65s PWLD - South,Residential Homes,Ridgeway House,3450.56, 14-May-2013
1628,Revenue,CCHD,Bed Purchasing - Under 65s PWLD - South,Residential Homes,Riverside House,3557.92, 14-May-2013
1629,Revenue,CCHD,Bed Purchasing - Elderly - South,Nursing Homes,Riversway Nursing Home,1162.02, 14-May-2013
1630,Revenue,CCHD,Bed purchasing - Elderly PWLD - South,Residential Homes,Rockleaze,1408.56, 14-May-2013
1631,Revenue,CCHD,Bed Purchasing - LD S28A- Over 65- South,Residential Homes,Rockleaze,2054.24, 14-May-2013
1632,Revenue,CCHD,Bed purchasing - Elderly PWLD - South,Residential Homes,Rockleaze,2382.32, 14-May-2013
1633,Revenue,CCHD,Bed purchasing - Elderly PWLD - South,Residential Homes,Rockleaze,2151.24, 14-May-2013
1634,Revenue,CCHD,Bed purchasing - Elderly PWLD - South,Residential Homes,Rockleaze,1408.56, 14-May-2013
1635,Revenue,CCHD,Bed Purchasing - Under 65s PWLD - South,Residential Homes,Rosewood Lodge & Brook House,4502.6, 14-May-2013
1636,Revenue,CCHD,Bed Purchasing - Elderly MH - South,Residential Homes,Ross Healthcare,1287.52, 14-May-2013
1637,Revenue,CCHD,MH Purchasing - Younger,Residential Homes,Ruskin Mill,2526.66, 14-May-2013
1638,Revenue,CCHD,Bed Purchasing - Elderly - North,Nursing Homes,Saffron Gardens,1668.31, 14-May-2013
1639,Revenue,CCHD,Bed Purchasing - Southmead Hospital,Residential Homes,Saffron Gardens,1243.32, 14-May-2013
1640,Revenue,CCHD,Bed Purchasing - Elderly MH - South,Nursing Homes,Saffron Gardens,2044.68, 14-May-2013
1641,Revenue,CCHD,Bed Purchasing - Elderly - North,Nursing Homes,Saffron Gardens,1370.4, 14-May-2013
1642,Revenue,CCHD,Bed Purchasing - Elderly - South,Nursing Homes,Saffron Gardens,1922.96, 14-May-2013
1643,Revenue,CCHD,Bed Purchasing - Elderly - South,Residential Homes,Saffron Gardens,1278.28, 14-May-2013
1644,Revenue,CCHD,Bed Purchasing - Under 65s PWLD - South,Residential Homes,Salters Hill Barn,2014.52, 14-May-2013
1645,Revenue,CCHD,Bed Purchasing - Southmead Hospital,Residential Homes,Sanctuary Care Limited,1719.12, 14-May-2013
1646,Revenue,CCHD,Learning Difficulties PSL,Rent,Individual,1400, 01-May-2013
1647,Revenue,CCHD,Learning Difficulties PSL,Rent,Individual,1400, 31-May-2013
1648,Revenue,CCHD,Woodleaze,"Provisions (Food, etc)",School Milk Services Limited,879.01, 01-May-2013
1649,Revenue,CCHD,Bed purchasing - Under 65s PWLD - North,Residential Homes,Scope   Accounts Dept,4956.52, 14-May-2013
1650,Revenue,CCHD,Bed Purchasing - Elderly - South,Residential Homes,Seaford Homes Ltd,1199.08, 14-May-2013
1651,Revenue,CCHD,Supported Living - North,Private & Voluntary Home Care,SeeAbility,1924.22, 17-May-2013
1652,Revenue,CCHD,Supported Living - North,Private & Voluntary Home Care,SeeAbility,4517.1, 30-May-2013
1653,Revenue,CCHD,Supported Living - North,Private & Voluntary Home Care,SeeAbility,1877.53, 30-May-2013
1654,Revenue,CCHD,Supported Living - North,Private & Voluntary Home Care,SeeAbility,1297.98, 30-May-2013
1655,Revenue,CCHD,Supported Living - North,Private & Voluntary Home Care,SeeAbility,6461.77, 30-May-2013
1656,Revenue,CCHD,Bed Purchasing - Southmead Hospital,Nursing Homes,Sefton Hall Res. & Nursing Home,1964, 14-May-2013
1657,Revenue,CCHD,Supported Living - South,Private & Voluntary Home Care,Selborne Care Ltd,510.08, 03-May-2013
1658,Revenue,CCHD,Supported Living - South,Private & Voluntary Home Care,Selborne Care Ltd,1743, 17-May-2013
1659,Revenue,CCHD,Supported Living - South,Private & Voluntary Home Care,Selborne Care Ltd,2739.58, 17-May-2013
1660,Revenue,CCHD,Purchase of Non-Res Care - North,Private & Voluntary Day Care,Selborne Care Ltd,1556.66, 17-May-2013
1661,Revenue,CCHD,Supported Living - South,Private & Voluntary Home Care,Selborne Care Ltd,5104.56, 17-May-2013
1662,Revenue,CCHD,Supported Living - South,Private & Voluntary Home Care,Selborne Care Ltd,1151.45, 17-May-2013
1663,Revenue,CCHD,Purchase of Non-Res Care - North,Private & Voluntary Day Care,Selborne Care Ltd,851.52, 17-May-2013
1664,Revenue,CCHD,Supported Living - South,Private & Voluntary Home Care,Selborne Care Ltd,512.48, 17-May-2013
1665,Revenue,CCHD,Supported Living - South,Private & Voluntary Home Care,Selborne Care Ltd,4598.94, 17-May-2013
1666,Revenue,CCHD,Purchase of Non-Res Care - North,Private & Voluntary Day Care,Selborne Care Ltd,758.66, 17-May-2013
1667,Revenue,CCHD,Supported Living - South,Private & Voluntary Home Care,Selborne Care Ltd,551.98, 17-May-2013
1668,Revenue,CCHD,Supported Living - South,Private & Voluntary Home Care,Selborne Care Ltd,1757.04, 17-May-2013
1669,Revenue,CCHD,Purchase of Non-Res Care - North,Private & Voluntary Day Care,Selborne Care Ltd,556.08, 17-May-2013
1670,Revenue,CCHD,Supported Living (S28a) South,Private & Voluntary Home Care,Selborne Care Ltd,3310.26, 23-May-2013
1671,Revenue,CCHD,Purchase of Non-Res Care - North,Private & Voluntary Day Care,Selborne Care Ltd,673.68, 20-May-2013
1672,Revenue,CCHD,Woodleaze,Furniture & Fittings Loose,Seton Limited,532.65, 09-May-2013
1673,Revenue,CCHD,Bed purchasing - Elderly PWLD - South,Nursing Homes,Shaw Healthcare Limited,8060.64, 14-May-2013
1674,Revenue,CCHD,Bed Purchasing - Southmead Hospital,Nursing Homes,Shaw Healthcare Ltd,1478, 14-May-2013
1675,Revenue,CCHD,Bed Purchasing - Elderly - South,Nursing Homes,Shaw Healthcare Ltd,1603.76, 14-May-2013
1676,Revenue,CCHD,Bed Purchasing - Elderly S117- North,Nursing Homes,Shaw Healthcare Ltd,1962.68, 14-May-2013
1677,Revenue,CCHD,Bed purchasing - Elderly S117 - South,Nursing Homes,Shaw Healthcare Ltd,1992.16, 14-May-2013
1678,Revenue,CCHD,Bed purchasing - Elderly MH - North,Nursing Homes,Shaw Healthcare Ltd,1226.88, 14-May-2013
1679,Revenue,CCHD,Bed purchasing - S28A Under 65 - South,Residential Homes,Shaw Healthcare Ltd,10507.8, 14-May-2013
1680,Revenue,CCHD,Bed purchasing - S28A Under 65 - South,Residential Homes,Shaw Healthcare Ltd,10505.36, 14-May-2013
1681,Revenue,CCHD,Bed purchasing - S28A Under 65 - South,Residential Homes,Shaw Healthcare Ltd,10337, 14-May-2013
1682,Revenue,CCHD,S117 Placements PCT,Residential Homes,Shaw Healthcare Ltd,15508.24, 14-May-2013
1683,Revenue,CCHD,Bed Purchasing - Under 65s PWLD - South,Nursing Homes,Shaw Healthcare Ltd,9754.04, 14-May-2013
1684,Revenue,CCHD,Bed Purchasing - Under 65s PWLD - South,Residential Homes,Shaw Healthcare Ltd,9760.6, 14-May-2013
1685,Revenue,CCHD,Bed purchasing - Elderly PWLD - South,Residential Homes,Shaw Healthcare Ltd,3907.68, 14-May-2013
1686,Revenue,CCHD,Bed purchasing - S28A Under 65 - South,Residential Homes,Shaw Healthcare Ltd,10393.88, 14-May-2013
1687,Revenue,CCHD,Bed purchasing - S28A Under 65 - South,Residential Homes,Shaw Healthcare Ltd,12056.36, 14-May-2013
1688,Revenue,CCHD,Bed Purchasing - S28A - Over 65- North,Residential Homes,Shaw Healthcare Ltd,4238.92, 14-May-2013
1689,Revenue,CCHD,Bed Purchasing - S28A - Over 65- North,Residential Homes,Shaw Healthcare Ltd,4246.2, 14-May-2013
1690,Revenue,CCHD,Bed purchasing -S28A  Under 65 - North,Residential Homes,Shaw Healthcare Ltd,3190.65, 14-May-2013
1691,Revenue,CCHD,Bed Purchasing - S28A - Over 65- North,Residential Homes,Shaw Healthcare Ltd,3549.15, 14-May-2013
1692,Revenue,CCHD,Bed Purchasing - LD S28A- Over 65- South,Residential Homes,Shaw Healthcare Ltd,4763.2, 14-May-2013
1693,Revenue,CCHD,Bed Purchasing - Under 65s PWLD - South,Nursing Homes,Shaw Healthcare Ltd,10091.08, 14-May-2013
1694,Revenue,CCHD,Bed Purchasing - LD S28A- Over 65- South,Residential Homes,Shaw Healthcare Ltd,4449.32, 14-May-2013
1695,Revenue,CCHD,Bed purchasing -S28A  Under 65 - North,Residential Homes,Shaw Healthcare Ltd,9174, 14-May-2013
1696,Revenue,CCHD,Bed Purchasing - S28A - Over 65- North,Residential Homes,Shaw Healthcare Ltd,8580.2, 14-May-2013
1697,Revenue,CCHD,Bed Purchasing - Southmead Hospital,Residential Homes,Shaw Healthcare Ltd,870.72, 14-May-2013
1698,Revenue,CCHD,Bed Purchasing - Elderly - North,Residential Homes,Shaw Healthcare Ltd,1262, 14-May-2013
1699,Revenue,CCHD,Bed Purchasing - Frenchay Hospital,Residential Homes,Shaw Healthcare Ltd,1119.32, 14-May-2013
1700,Revenue,CCHD,Purchase of Non-Res Care - North,Private & Voluntary Day Care,Shaw Healthcare Specialist Services Limited,664.53, 16-May-2013
1701,Revenue,CCHD,Purchase of Non-Res Care - North,Private & Voluntary Day Care,Shaw Healthcare Specialist Services Limited,777.67, 31-May-2013
1702,Revenue,CCHD,Supported Living - South,Private & Voluntary Home Care,Silva Care Limited,4415.44, 03-May-2013
1703,Revenue,CCHD,Supported Living - South,Private & Voluntary Home Care,Silva Care Limited,4415.44, 03-May-2013
1704,Revenue,CCHD,Day Care - North,Private & Voluntary Day Care,Silva Care Limited,823.98, 24-May-2013
1705,Revenue,CCHD,Downend Day Centre,Refuse Collection Charges,SITA UK LTD,793.1, 22-May-2013
1706,Revenue,CCHD,Bed purchasing - Under 65s PWLD - North,Residential Homes,Small House Homes Limited,17754.92, 14-May-2013
1707,Revenue,CCHD,Day Care - South,Private & Voluntary Day Care,Smile Independent Living Support Limited,627.24, 14-May-2013
1708,Revenue,CCHD,Purchase of Non-Res Care - South,Private & Voluntary Day Care,Smile Independent Living Support Limited,724.39, 15-May-2013
1709,Revenue,CCHD,Purchase of Non-Res Care - North,Private & Voluntary Day Care,Smile Independent Living Support Limited,1200.02, 14-May-2013
1710,Revenue,CCHD,Purchase of Non-Res Care - North,Private & Voluntary Day Care,Smile Independent Living Support Limited,633.21, 14-May-2013
1711,Revenue,CCHD,Purchase of Non-Res Care - North,Private & Voluntary Day Care,Smile Independent Living Support Limited,1265.07, 14-May-2013
1712,Revenue,CCHD,Purchase of Non-Res Care - North,Private & Voluntary Day Care,Smile Independent Living Support Limited,1017.82, 14-May-2013
1713,Revenue,CCHD,Purchase of Non-Res Care - North,Private & Voluntary Day Care,Smile Independent Living Support Limited,726.11, 14-May-2013
1714,Revenue,CCHD,Supported Living - North,Private & Voluntary Home Care,Smile Independent Living Support Limited,3247.11, 14-May-2013
1715,Revenue,CCHD,Supported Living - North,Private & Voluntary Home Care,Smile Independent Living Support Limited,3247.11, 14-May-2013
1716,Revenue,CCHD,Supported Living - North,Private & Voluntary Home Care,Smile Independent Living Support Limited,2634.01, 14-May-2013
1717,Revenue,CCHD,Purchase of Non-Res Care - North,Private & Voluntary Day Care,Smile Independent Living Support Limited,1261.78, 14-May-2013
1718,Revenue,CCHD,Training - Adult Services,Training Expenses,South Gloucestershire and Stroud College,695, 22-May-2013
1719,Revenue,CCHD,Training - Adult Services,Training Expenses,South Gloucestershire and Stroud College,995, 22-May-2013
1720,Revenue,CCHD,Minor Adaptations Service,Premises Maintenance by Contractor,Southern Electric Contracting Limited,36.81, 13-May-2013
1721,Revenue,CCHD,Minor Adaptations Service,Premises Maintenance by Contractor,Southern Electric Contracting Limited,294.1, 08-May-2013
1722,Revenue,CCHD,Day Care - North,Private & Voluntary Day Care,Sports 1st Limited,750, 31-May-2013
1723,Revenue,CCHD,Day Care - North,Private & Voluntary Day Care,Sports 1st Limited,7620, 17-May-2013
1724,Revenue,CCHD,Bed Purchasing - Under 65s PWLD - South,Residential Homes,St Brigas,2055.56, 14-May-2013
1725,Revenue,CCHD,Bed Purchasing - Under 65s PWLD - South,Residential Homes,St Brigas,2972.08, 14-May-2013
1726,Revenue,CCHD,Bed Purchasing - Under 65s PWLD - South,Residential Homes,St Brigas,2003.32, 14-May-2013
1727,Revenue,CCHD,Bed Purchasing - Frenchay Hospital,Nursing Homes,St George Nursing Home,1302, 14-May-2013
1728,Revenue,CCHD,Bed Purchasing - Southmead Hospital,Nursing Homes,St George Nursing Home,1302, 14-May-2013
1729,Revenue,CCHD,Bed Purchasing - Elderly - South,Nursing Homes,St George Nursing Home,1302, 14-May-2013
1730,Revenue,CCHD,Bed Purchasing - Southmead Hospital,Nursing Homes,St George Nursing Home,1314, 14-May-2013
1731,Revenue,CCHD,Bed Purchasing - Southmead Hospital,Nursing Homes,St George Nursing Home,994.5, 14-May-2013
1732,Revenue,CCHD,Bed Purchasing - Frenchay Hospital,Nursing Homes,St George Nursing Home,2266.6, 14-May-2013
1733,Revenue,CCHD,Bed Purchasing - Frenchay Hospital,Nursing Homes,St George Nursing Home,1302, 14-May-2013
1734,Revenue,CCHD,Bed Purchasing - Frenchay Hospital,Nursing Homes,St George Nursing Home,976.5, 14-May-2013
1735,Revenue,CCHD,Bed Purchasing - Frenchay Hospital,Nursing Homes,St George Nursing Home,1040.8, 14-May-2013
1736,Revenue,CCHD,Bed Purchasing - Frenchay Hospital,Nursing Homes,St George Nursing Home,662.16, 14-May-2013
1737,Revenue,CCHD,Bed Purchasing - Elderly - North,Nursing Homes,St Monicas Trust,2790.36, 14-May-2013
1738,Revenue,CCHD,Bed Purchasing - Elderly - South,Nursing Homes,St Roses School,3982.76, 10-May-2013
1739,Revenue,CCHD,Bed purchasing - Under 65s PWLD - North,Residential Homes,St Roses School,3420, 14-May-2013
1740,Revenue,CCHD,Bed Purchasing - Under 65s PWLD - South,Residential Homes,Stepping Stones Re-Sett. Unit,7484.8, 14-May-2013
1741,Revenue,CCHD,Section 117 Placements MH Younger,Private & Voluntary Day Care,Supported Independence Ltd,1319.28, 31-May-2013
1742,Revenue,CCHD,Younger MH non-res purchasing,Private & Voluntary Day Care,Supported Independence Ltd,505.67, 31-May-2013
1743,Revenue,CCHD,Supported Living - South,Private & Voluntary Home Care,Supported Independence Ltd,713.88, 30-May-2013
1744,Revenue,CCHD,Day Care - North,Private & Voluntary Day Care,Supported Independence Ltd,1338.4, 31-May-2013
1745,Revenue,CCHD,Younger MH non-res purchasing,Private & Voluntary Day Care,Supported Independence Ltd,951.84, 31-May-2013
1746,Revenue,CCHD,Section 117 Placements MH Younger,Private & Voluntary Day Care,Supported Independence Ltd,1147.2, 31-May-2013
1747,Revenue,CCHD,Younger MH non-res purchasing,Private & Voluntary Day Care,Supported Independence Ltd,2388.62, 31-May-2013
1748,Revenue,CCHD,Supported Living - South,Private & Voluntary Home Care,Supported Independence Ltd,713.88, 03-May-2013
1749,Revenue,CCHD,Younger MH non-res purchasing,Private & Voluntary Day Care,Supported Independence Ltd,536.09, 20-May-2013
1750,Revenue,CCHD,Section 117 Placements MH Younger,Private & Voluntary Day Care,Supported Independence Ltd,1271.1, 20-May-2013
1751,Revenue,CCHD,Supported Living - South,Private & Voluntary Home Care,Supported Independence Ltd,741.88, 30-May-2013
1752,Revenue,CCHD,Section 117 Placements MH Younger,Private & Voluntary Day Care,Supported Independence Ltd,500.72, 20-May-2013
1753,Revenue,CCHD,Younger MH non-res purchasing,Private & Voluntary Day Care,Supported Independence Ltd,535.58, 20-May-2013
1754,Revenue,CCHD,Section 117 Placements MH Younger,Private & Voluntary Day Care,Supported Independence Ltd,535.58, 20-May-2013
1755,Revenue,CCHD,Younger MH non-res purchasing,Private & Voluntary Day Care,Supported Independence Ltd,638.73, 20-May-2013
1756,Revenue,CCHD,Younger MH non-res purchasing,Private & Voluntary Day Care,Supported Independence Ltd,1048.77, 20-May-2013
1757,Revenue,CCHD,Section 117 Placements MH Younger,Private & Voluntary Day Care,Supported Independence Ltd,3478.46, 31-May-2013
1758,Revenue,CCHD,Section 117 Placements MH Younger,Private & Voluntary Day Care,Supported Independence Ltd,2372.3, 21-May-2013
1759,Revenue,CCHD,Section 117 Placements MH Younger,Private & Voluntary Day Care,Supported Independence Ltd,1081.36, 21-May-2013
1760,Revenue,CCHD,Younger MH non-res purchasing,Private & Voluntary Day Care,Supported Independence Ltd,1018.93, 21-May-2013
1761,Revenue,CCHD,Younger MH non-res purchasing,Private & Voluntary Day Care,Supported Independence Ltd,2485.97, 21-May-2013
1762,Revenue,CCHD,Supported Living - North,Private & Voluntary Home Care,Supported Independence Ltd,640.07, 21-May-2013
1763,Revenue,CCHD,Section 117 Placements MH Younger,Private & Voluntary Day Care,Supported Independence Ltd,3532.66, 21-May-2013
1764,Revenue,CCHD,Supported Living - South,Private & Voluntary Home Care,Supported Independence Ltd,1678.26, 24-May-2013
1765,Revenue,CCHD,Section 117 Placements MH Younger,Private & Voluntary Day Care,Supported Independence Ltd,2014.9, 28-May-2013
1766,Revenue,CCHD,Supporting People Programme,Grants to Voluntary Bodies,Supported Independence Ltd,6176.25, 01-May-2013
1767,Revenue,CCHD,Supporting People Programme,Grants to Voluntary Bodies,Supported Independence Ltd,2986.92, 01-May-2013
1768,Revenue,CCHD,Supporting People Programme,Grants to Voluntary Bodies,Supported Independence Ltd,6176.25, 31-May-2013
1769,Revenue,CCHD,Supporting People Programme,Grants to Voluntary Bodies,Supported Independence Ltd,2986.92, 31-May-2013
1770,Revenue,CCHD,Supporting People Programme,Grants to Voluntary Bodies,Supported Independent Living Schemes,4638.08, 01-May-2013
1771,Revenue,CCHD,Supporting People Programme,Grants to Voluntary Bodies,Supported Independent Living Schemes,6008.83, 01-May-2013
1772,Revenue,CCHD,Supporting People Programme,Grants to Voluntary Bodies,Supported Independent Living Schemes,4638.08, 31-May-2013
1773,Revenue,CCHD,Supporting People Programme,Grants to Voluntary Bodies,Supported Independent Living Schemes,6008.83, 31-May-2013
1774,Revenue,CCHD,Supported Living - South,Private & Voluntary Home Care,Supported Independent Living Schemes,642.96, 30-May-2013
1775,Revenue,CCHD,Younger MH non-res purchasing,Private & Voluntary Day Care,Supporting Options,562.65, 21-May-2013
1776,Revenue,CCHD,Supported Living - South,Private & Voluntary Home Care,Supporting Options,760.8, 17-May-2013
1777,Revenue,CCHD,Day Care - South,Private & Voluntary Day Care,Survive,668.48, 31-May-2013
1778,Revenue,CCHD,Bed Purchasing - Under 65s PWLD - South,Residential Homes,The Ann Coleman Centre,6103.76, 14-May-2013
1779,Revenue,CCHD,Bed Purchasing - Southmead Hospital,Residential Homes,The Beeches,691.88, 14-May-2013
1780,Revenue,CCHD,Bed Purchasing - Frenchay Hospital,Residential Homes,The Beeches,1149.8, 14-May-2013
1781,Revenue,CCHD,Bed Purchasing - Southmead Hospital,Residential Homes,The Beeches,1246, 14-May-2013
1782,Revenue,CCHD,Purchase of Non-Res Care - North,Private & Voluntary Day Care,The Brandon Trust,1517, 17-May-2013
1783,Revenue,CCHD,Purchase of Non-Res Care - South,Private & Voluntary Day Care,The Brandon Trust,871.08, 17-May-2013
1784,Revenue,CCHD,Purchase of Non-Res Care - South,Private & Voluntary Day Care,The Brandon Trust,3485, 17-May-2013
1785,Revenue,CCHD,Purchase of Non-Res Care - South,Private & Voluntary Day Care,The Brandon Trust,632.7, 17-May-2013
1786,Revenue,CCHD,Supported Living - North,Private & Voluntary Home Care,The Brandon Trust,9005.03, 09-May-2013
1787,Revenue,CCHD,Day Care - North,Private & Voluntary Day Care,The Brandon Trust,687.72, 20-May-2013
1788,Revenue,CCHD,Purchase of Non-Res Care - North,Private & Voluntary Day Care,The Brandon Trust,823.18, 16-May-2013
1789,Revenue,CCHD,Purchase of Non-Res Care - South,Private & Voluntary Day Care,The Brandon Trust,739.82, 03-May-2013
1790,Revenue,CCHD,Purchase of Non-Res Care - South,Private & Voluntary Day Care,The Brandon Trust,506.16, 03-May-2013
1791,Revenue,CCHD,Purchase of Non-Res Care - South,Private & Voluntary Day Care,The Brandon Trust,506.16, 03-May-2013
1792,Revenue,CCHD,Purchase of Non-Res Care - South,Private & Voluntary Day Care,The Brandon Trust,506.16, 03-May-2013
1793,Revenue,CCHD,Supported Living - South,Private & Voluntary Home Care,The Brandon Trust,759.24, 03-May-2013
1794,Revenue,CCHD,Purchase of Non-Res Care - South,Private & Voluntary Day Care,The Brandon Trust,5835.2, 03-May-2013
1795,Revenue,CCHD,Day Care - South,Private & Voluntary Day Care,The Brandon Trust,506.16, 07-May-2013
1796,Revenue,CCHD,Purchase of Non-Res Care - South,Private & Voluntary Day Care,The Brandon Trust,3647, 03-May-2013
1797,Revenue,CCHD,Purchase of Non-Res Care - South,Private & Voluntary Day Care,The Brandon Trust,885.78, 03-May-2013
1798,Revenue,CCHD,Bed purchasing - S28A Under 65 - South,Residential Homes,The Brandon Trust,27998.36, 23-May-2013
1799,Revenue,CCHD,Purchase of Non-Res Care - South,Private & Voluntary Day Care,The Brandon Trust,1000.32, 17-May-2013
1800,Revenue,CCHD,Day Care - North,Private & Voluntary Day Care,The Brandon Trust,812.76, 20-May-2013
1801,Revenue,CCHD,Purchase of Non-Res Care - South,Private & Voluntary Day Care,The Brandon Trust,632.7, 17-May-2013
1802,Revenue,CCHD,Purchase of Non-Res Care - South,Private & Voluntary Day Care,The Brandon Trust,949.05, 17-May-2013
